Department Family,Entity,Date,Expense Type,Expense Area,Supplier,Supplier Type,Transaction Number,Amount,Description,Expenditure Type
Land Registry,Land Registry,01/10/2013,Birkenhead Office,Rates Payable,Wirral Metrpolitan Borough Council,Large,213070,24021,Rates Payable,Administration
Land Registry,Land Registry,02/10/2013,Central Facilities Management Team,Transport Hire of Cars and Vans,Enterprise Rent-A-Car (UK) Ltd,Large,972528,34606.1,Transport Hire of Cars and Vans,Administration
Land Registry,Land Registry,04/10/2013,Forward Scanning,Maps & Plans Data Migration,TNT (UK) Ltd,Large,973020,226251.84,Maps & Plans Data Migration,Administration
Land Registry,Land Registry,04/10/2013,IS Service Delivery,Data Network Lines,Vodafone Corporate Ltd,Large,973022,57526.98,Data Network Lines,Administration
Land Registry,Land Registry,07/10/2013,Weymouth Office,Rates Payable,West Dorset District Council,Large,213090,18487,Rates Payable,Administration
Land Registry,Land Registry,08/10/2013,Birkenhead Office,Vending Machine Consumables & Repairs,Carillion Services Ltd,Large,973601,740.63,Vending Machine Consumables & Repairs,Administration
Land Registry,Land Registry,08/10/2013,Birkenhead Office,Grounds Maintenance,Carillion Services Ltd,Large,973601,387.21,Grounds Maintenance,Administration
Land Registry,Land Registry,08/10/2013,Birkenhead Office,Security Expenses,Carillion Services Ltd,Large,973601,3266.87,Security Expenses,Administration
Land Registry,Land Registry,08/10/2013,Birkenhead Office,Waste Disposal,Carillion Services Ltd,Large,973601,632.65,Waste Disposal,Administration
Land Registry,Land Registry,08/10/2013,Birkenhead Office,Pest Control,Carillion Services Ltd,Large,973601,41.9,Pest Control,Administration
Land Registry,Land Registry,08/10/2013,Birkenhead Office,Office Cleaning Expenses,Carillion Services Ltd,Large,973601,5935.66,Office Cleaning Expenses,Administration
Land Registry,Land Registry,08/10/2013,Birkenhead Office,Property Maintenance,Carillion Services Ltd,Large,973601,4771.24,Property Maintenance,Administration
Land Registry,Land Registry,08/10/2013,Birkenhead Office,FF&F:Maintenance,Carillion Services Ltd,Large,973601,183.16,FF&F:Maintenance,Administration
Land Registry,Land Registry,08/10/2013,Birkenhead Office,Property Maintenance,Carillion Services Ltd,Large,973601,150.34,Property Maintenance,Administration
Land Registry,Land Registry,08/10/2013,Birkenhead Office,FM Ext Helpdesk,Carillion Services Ltd,Large,973601,394.97,Facilities External Help Desk,Administration
Land Registry,Land Registry,08/10/2013,Birkenhead Office,FM Managed Services,Carillion Services Ltd,Large,973601,5164.97,Facilities Managed Service,Administration
Land Registry,Land Registry,08/10/2013,RFS1 - Telford,Gas,Carillion Services Ltd,Large,973601,321.63,Gas,Administration
Land Registry,Land Registry,08/10/2013,RFS1 - Telford,Property Maintenance,Carillion Services Ltd,Large,973601,1704.71,Property Maintenance,Administration
Land Registry,Land Registry,08/10/2013,RFS1 - Telford,FM Ext Helpdesk,Carillion Services Ltd,Large,973601,104.4,Facilities External Help Desk,Administration
Land Registry,Land Registry,08/10/2013,RFS1 - Telford,FM Managed Services,Carillion Services Ltd,Large,973601,349.2,Facilities Managed Service,Administration
Land Registry,Land Registry,08/10/2013,Telford Office,Water,Carillion Services Ltd,Large,973601,1192.42,Water,Administration
Land Registry,Land Registry,08/10/2013,Telford Office,Electricity,Carillion Services Ltd,Large,973601,4691.15,Electricity,Administration
Land Registry,Land Registry,08/10/2013,Telford Office,Gas,Carillion Services Ltd,Large,973601,1009.39,Gas,Administration
Land Registry,Land Registry,08/10/2013,Telford Office,Vending Machine Consumables & Repairs,Carillion Services Ltd,Large,973601,228,Vending Machine Consumables & Repairs,Administration
Land Registry,Land Registry,08/10/2013,Telford Office,Grounds Maintenance,Carillion Services Ltd,Large,973601,1247.04,Grounds Maintenance,Administration
Land Registry,Land Registry,08/10/2013,Telford Office,Security Expenses,Carillion Services Ltd,Large,973601,2860.81,Security Expenses,Administration
Land Registry,Land Registry,08/10/2013,Telford Office,Waste Disposal,Carillion Services Ltd,Large,973601,279.53,Waste Disposal,Administration
Land Registry,Land Registry,08/10/2013,Telford Office,Pest Control,Carillion Services Ltd,Large,973601,44.98,Pest Control,Administration
Land Registry,Land Registry,08/10/2013,Telford Office,Office Cleaning Expenses,Carillion Services Ltd,Large,973601,5331.59,Office Cleaning Expenses,Administration
Land Registry,Land Registry,08/10/2013,Telford Office,Property Maintenance,Carillion Services Ltd,Large,973601,5531.2,Property Maintenance,Administration
Land Registry,Land Registry,08/10/2013,Telford Office,FF&F:Maintenance,Carillion Services Ltd,Large,973601,183.16,FF&F:Maintenance,Administration
Land Registry,Land Registry,08/10/2013,Telford Office,Property Maintenance,Carillion Services Ltd,Large,973601,154.13,Property Maintenance,Administration
Land Registry,Land Registry,08/10/2013,Telford Office,FM Ext Helpdesk,Carillion Services Ltd,Large,973601,419.14,Facilities External Help Desk,Administration
Land Registry,Land Registry,08/10/2013,Telford Office,FM Managed Services,Carillion Services Ltd,Large,973601,4033.01,Facilities Managed Service,Administration
Land Registry,Land Registry,08/10/2013,Peterborough Office,Gas,Carillion Services Ltd,Large,973601,926.26,Gas,Administration
Land Registry,Land Registry,08/10/2013,Nottingham Office,Water,Carillion Services Ltd,Large,973601,-1591.57,Water,Administration
Land Registry,Land Registry,08/10/2013,Nottingham Office,Electricity,Carillion Services Ltd,Large,973601,3217.74,Electricity,Administration
Land Registry,Land Registry,08/10/2013,Nottingham Office,Gas,Carillion Services Ltd,Large,973601,-38.93,Gas,Administration
Land Registry,Land Registry,08/10/2013,Nottingham Office,Vending Machine Consumables & Repairs,Carillion Services Ltd,Large,973601,37.4,Vending Machine Consumables & Repairs,Administration
Land Registry,Land Registry,08/10/2013,Central Facilities Management Team,Property Maintenance,Carillion Services Ltd,Large,973601,3322.19,Property Maintenance,Administration
Land Registry,Land Registry,08/10/2013,Nottingham Office,FM Managed Services,Carillion Services Ltd,Large,973601,22912.97,Facilities Managed Service,Administration
Land Registry,Land Registry,08/10/2013,Leicester Office,Gas,Carillion Services Ltd,Large,973601,84.91,Gas,Administration
Land Registry,Land Registry,08/10/2013,Leicester Office,Grounds Maintenance,Carillion Services Ltd,Large,973601,79.86,Grounds Maintenance,Administration
Land Registry,Land Registry,08/10/2013,Leicester Office,Pest Control,Carillion Services Ltd,Large,973601,16.25,Pest Control,Administration
Land Registry,Land Registry,08/10/2013,Leicester Office,Office Cleaning Expenses,Carillion Services Ltd,Large,973601,186.86,Office Cleaning Expenses,Administration
Land Registry,Land Registry,08/10/2013,Leicester Office,Property Maintenance,Carillion Services Ltd,Large,973601,369.99,Property Maintenance,Administration
Land Registry,Land Registry,08/10/2013,Leicester Office,FF&F:Maintenance,Carillion Services Ltd,Large,973601,91.58,FF&F:Maintenance,Administration
Land Registry,Land Registry,08/10/2013,Leicester Office,FM Ext Helpdesk,Carillion Services Ltd,Large,973601,21.03,Facilities External Help Desk,Administration
Land Registry,Land Registry,08/10/2013,Leicester Office,FM Managed Services,Carillion Services Ltd,Large,973601,70.34,Facilities Managed Service,Administration
Land Registry,Land Registry,08/10/2013,Leicester Office,Electricity,Carillion Services Ltd,Large,973601,2524.83,Electricity,Administration
Land Registry,Land Registry,08/10/2013,Leicester Office,Gas,Carillion Services Ltd,Large,973601,84.82,Gas,Administration
Land Registry,Land Registry,08/10/2013,Leicester Office,Vending Machine Consumables & Repairs,Carillion Services Ltd,Large,973601,158.47,Vending Machine Consumables & Repairs,Administration
Land Registry,Land Registry,08/10/2013,Leicester Office,Grounds Maintenance,Carillion Services Ltd,Large,973601,157.79,Grounds Maintenance,Administration
Land Registry,Land Registry,08/10/2013,Leicester Office,Security Expenses,Carillion Services Ltd,Large,973601,2754.52,Security Expenses,Administration
Land Registry,Land Registry,08/10/2013,Leicester Office,Waste Disposal,Carillion Services Ltd,Large,973601,333.11,Waste Disposal,Administration
Land Registry,Land Registry,08/10/2013,Leicester Office,Pest Control,Carillion Services Ltd,Large,973601,39.62,Pest Control,Administration
Land Registry,Land Registry,08/10/2013,Leicester Office,Office Cleaning Expenses,Carillion Services Ltd,Large,973601,3750.2,Office Cleaning Expenses,Administration
Land Registry,Land Registry,08/10/2013,Leicester Office,Property Maintenance,Carillion Services Ltd,Large,973601,7881.79,Property Maintenance,Administration
Land Registry,Land Registry,08/10/2013,Leicester Office,FF&F:Maintenance,Carillion Services Ltd,Large,973601,183.16,FF&F:Maintenance,Administration
Land Registry,Land Registry,08/10/2013,Leicester Office,Property Maintenance,Carillion Services Ltd,Large,973601,111.13,Property Maintenance,Administration
Land Registry,Land Registry,08/10/2013,Leicester Office,FM Ext Helpdesk,Carillion Services Ltd,Large,973601,412.61,Facilities External Help Desk,Administration
Land Registry,Land Registry,08/10/2013,Leicester Office,FM Managed Services,Carillion Services Ltd,Large,973601,4011.17,Facilities Managed Service,Administration
Land Registry,Land Registry,08/10/2013,Gloucester Computer Centre,Electricity,Carillion Services Ltd,Large,973601,28027.85,Electricity,Administration
Land Registry,Land Registry,08/10/2013,Gloucester Computer Centre,Gas,Carillion Services Ltd,Large,973601,64.26,Gas,Administration
Land Registry,Land Registry,08/10/2013,Gloucester Computer Centre,Vending Machine Consumables & Repairs,Carillion Services Ltd,Large,973601,18.7,Vending Machine Consumables & Repairs,Administration
Land Registry,Land Registry,08/10/2013,Gloucester Computer Centre,Grounds Maintenance,Carillion Services Ltd,Large,973601,157.79,Grounds Maintenance,Administration
Land Registry,Land Registry,08/10/2013,Gloucester Computer Centre,Security Expenses,Carillion Services Ltd,Large,973601,8308.09,Security Expenses,Administration
Land Registry,Land Registry,08/10/2013,Gloucester Computer Centre,Waste Disposal,Carillion Services Ltd,Large,973601,93.09,Waste Disposal,Administration
Land Registry,Land Registry,08/10/2013,Gloucester Computer Centre,Pest Control,Carillion Services Ltd,Large,973601,28.64,Pest Control,Administration
Land Registry,Land Registry,08/10/2013,Gloucester Computer Centre,Office Cleaning Expenses,Carillion Services Ltd,Large,973601,10.68,Office Cleaning Expenses,Administration
Land Registry,Land Registry,08/10/2013,Gloucester Computer Centre,Property Maintenance,Carillion Services Ltd,Large,973601,6961.89,Property Maintenance,Administration
Land Registry,Land Registry,08/10/2013,Gloucester Computer Centre,FF&F:Maintenance,Carillion Services Ltd,Large,973601,183.16,FF&F:Maintenance,Administration
Land Registry,Land Registry,08/10/2013,Gloucester Computer Centre,Property Maintenance,Carillion Services Ltd,Large,973601,55.63,Property Maintenance,Administration
Land Registry,Land Registry,08/10/2013,Gloucester Computer Centre,FM Ext Helpdesk,Carillion Services Ltd,Large,973601,460.58,Facilities External Help Desk,Administration
Land Registry,Land Registry,08/10/2013,Gloucester Computer Centre,FM Managed Services,Carillion Services Ltd,Large,973601,1867.62,Facilities Managed Service,Administration
Land Registry,Land Registry,08/10/2013,Gloucester Office,Water,Carillion Services Ltd,Large,973601,900.37,Water,Administration
Land Registry,Land Registry,08/10/2013,Gloucester Office,Electricity,Carillion Services Ltd,Large,973601,4549.12,Electricity,Administration
Land Registry,Land Registry,08/10/2013,Gloucester Office,Gas,Carillion Services Ltd,Large,973601,315.46,Gas,Administration
Land Registry,Land Registry,08/10/2013,Gloucester Office,Vending Machine Consumables & Repairs,Carillion Services Ltd,Large,973601,733.09,Vending Machine Consumables & Repairs,Administration
Land Registry,Land Registry,08/10/2013,Gloucester Office,Grounds Maintenance,Carillion Services Ltd,Large,973601,674.85,Grounds Maintenance,Administration
Land Registry,Land Registry,08/10/2013,Gloucester Office,Security Expenses,Carillion Services Ltd,Large,973601,10566.8,Security Expenses,Administration
Land Registry,Land Registry,08/10/2013,Gloucester Office,Waste Disposal,Carillion Services Ltd,Large,973601,233.82,Waste Disposal,Administration
Land Registry,Land Registry,08/10/2013,Gloucester Office,Pest Control,Carillion Services Ltd,Large,973601,46.74,Pest Control,Administration
Land Registry,Land Registry,08/10/2013,Gloucester Office,Office Cleaning Expenses,Carillion Services Ltd,Large,973601,6043.96,Office Cleaning Expenses,Administration
Land Registry,Land Registry,08/10/2013,Gloucester Office,Property Maintenance,Carillion Services Ltd,Large,973601,3147.85,Property Maintenance,Administration
Land Registry,Land Registry,08/10/2013,Gloucester Office,FF&F:Maintenance,Carillion Services Ltd,Large,973601,183.16,FF&F:Maintenance,Administration
Land Registry,Land Registry,08/10/2013,Gloucester Office,Property Maintenance,Carillion Services Ltd,Large,973601,111.13,Property Maintenance,Administration
Land Registry,Land Registry,08/10/2013,Gloucester Office,FM Ext Helpdesk,Carillion Services Ltd,Large,973601,496.48,Facilities External Help Desk,Administration
Land Registry,Land Registry,08/10/2013,Gloucester Office,FM Managed Services,Carillion Services Ltd,Large,973601,2994.75,Facilities Managed Service,Administration
Land Registry,Land Registry,08/10/2013,Peterborough Office,Vending Machine Consumables & Repairs,Carillion Services Ltd,Large,973601,125.58,Vending Machine Consumables & Repairs,Administration
Land Registry,Land Registry,08/10/2013,Peterborough Office,Security Expenses,Carillion Services Ltd,Large,973601,14.65,Security Expenses,Administration
Land Registry,Land Registry,08/10/2013,Peterborough Office,Pest Control,Carillion Services Ltd,Large,973601,39.33,Pest Control,Administration
Land Registry,Land Registry,08/10/2013,Peterborough Office,Office Cleaning Expenses,Carillion Services Ltd,Large,973601,2924.53,Office Cleaning Expenses,Administration
Land Registry,Land Registry,08/10/2013,Peterborough Office,Property Maintenance,Carillion Services Ltd,Large,973601,2874.19,Property Maintenance,Administration
Land Registry,Land Registry,08/10/2013,Peterborough Office,FM Ext Helpdesk,Carillion Services Ltd,Large,973601,467.77,Facilities External Help Desk,Administration
Land Registry,Land Registry,08/10/2013,Peterborough Office,FM Managed Services,Carillion Services Ltd,Large,973601,4446.84,Facilities Managed Service,Administration
Land Registry,Land Registry,08/10/2013,Nottingham Office,Electricity,Carillion Services Ltd,Large,973601,4295.43,Electricity,Administration
Land Registry,Land Registry,08/10/2013,Nottingham Office,Gas,Carillion Services Ltd,Large,973601,-269.16,Gas,Administration
Land Registry,Land Registry,08/10/2013,Nottingham Office,Vending Machine Consumables & Repairs,Carillion Services Ltd,Large,973601,125.58,Vending Machine Consumables & Repairs,Administration
Land Registry,Land Registry,08/10/2013,Nottingham Office,Grounds Maintenance,Carillion Services Ltd,Large,973601,87.8,Grounds Maintenance,Administration
Land Registry,Land Registry,08/10/2013,Nottingham Office,Security Expenses,Carillion Services Ltd,Large,973601,3175.09,Security Expenses,Administration
Land Registry,Land Registry,08/10/2013,Nottingham Office,Waste Disposal,Carillion Services Ltd,Large,973601,290.69,Waste Disposal,Administration
Land Registry,Land Registry,08/10/2013,Nottingham Office,Pest Control,Carillion Services Ltd,Large,973601,128.93,Pest Control,Administration
Land Registry,Land Registry,08/10/2013,Nottingham Office,Office Cleaning Expenses,Carillion Services Ltd,Large,973601,6317.16,Office Cleaning Expenses,Administration
Land Registry,Land Registry,08/10/2013,Nottingham Office,Property Maintenance,Carillion Services Ltd,Large,973601,5382.83,Property Maintenance,Administration
Land Registry,Land Registry,08/10/2013,Nottingham Office,FM Ext Helpdesk,Carillion Services Ltd,Large,973601,1416.24,Facilities External Help Desk,Administration
Land Registry,Land Registry,08/10/2013,Nottingham Office,FM Managed Services,Carillion Services Ltd,Large,973601,10304.25,Facilities Managed Service,Administration
Land Registry,Land Registry,08/10/2013,Fylde Office,Electricity,Carillion Services Ltd,Large,973601,53.95,Electricity,Administration
Land Registry,Land Registry,08/10/2013,Weymouth Office,Gas,Carillion Services Ltd,Large,973601,67.6,Gas,Administration
Land Registry,Land Registry,08/10/2013,Hull Office,Gas,Carillion Services Ltd,Large,973601,121.22,Gas,Administration
Land Registry,Land Registry,08/10/2013,RFS4 - Coventry,Office Cleaning Expenses,Carillion Services Ltd,Large,973601,248.61,Office Cleaning Expenses,Administration
Land Registry,Land Registry,08/10/2013,RFS4 - Coventry,Property Maintenance,Carillion Services Ltd,Large,973601,55.5,Property Maintenance,Administration
Land Registry,Land Registry,08/10/2013,RFS4 - Coventry,FM Ext Helpdesk,Carillion Services Ltd,Large,973601,7.13,Facilities External Help Desk,Administration
Land Registry,Land Registry,08/10/2013,RFS4 - Coventry,FM Managed Services,Carillion Services Ltd,Large,973601,13.67,Facilities Managed Service,Administration
Land Registry,Land Registry,08/10/2013,Central Facilities Management Team,Gas,Carillion Services Ltd,Large,973601,129.61,Gas,Administration
Land Registry,Land Registry,08/10/2013,Central Facilities Management Team,Security Expenses,Carillion Services Ltd,Large,973601,939.73,Security Expenses,Administration
Land Registry,Land Registry,08/10/2013,Central Facilities Management Team,Waste Disposal,Carillion Services Ltd,Large,973601,60.7,Waste Disposal,Administration
Land Registry,Land Registry,08/10/2013,Central Facilities Management Team,Property Maintenance,Carillion Services Ltd,Large,973601,1283.85,Property Maintenance,Administration
Land Registry,Land Registry,08/10/2013,Central Facilities Management Team,FM Managed Services,Carillion Services Ltd,Large,973601,251.15,Facilities Managed Service,Administration
Land Registry,Land Registry,08/10/2013,Hull Office,Water,Carillion Services Ltd,Large,973601,317.13,Water,Administration
Land Registry,Land Registry,08/10/2013,Hull Office,Electricity,Carillion Services Ltd,Large,973601,5241.3,Electricity,Administration
Land Registry,Land Registry,08/10/2013,Hull Office,Gas,Carillion Services Ltd,Large,973601,345.75,Gas,Administration
Land Registry,Land Registry,08/10/2013,Hull Office,Vending Machine Consumables & Repairs,Carillion Services Ltd,Large,973601,216.19,Vending Machine Consumables & Repairs,Administration
Land Registry,Land Registry,08/10/2013,Hull Office,Grounds Maintenance,Carillion Services Ltd,Large,973601,667.98,Grounds Maintenance,Administration
Land Registry,Land Registry,08/10/2013,Hull Office,Security Expenses,Carillion Services Ltd,Large,973601,3249.22,Security Expenses,Administration
Land Registry,Land Registry,08/10/2013,Hull Office,Waste Disposal,Carillion Services Ltd,Large,973601,139.72,Waste Disposal,Administration
Land Registry,Land Registry,08/10/2013,Hull Office,Pest Control,Carillion Services Ltd,Large,973601,50.07,Pest Control,Administration
Land Registry,Land Registry,08/10/2013,Hull Office,Office Cleaning Expenses,Carillion Services Ltd,Large,973601,5322.05,Office Cleaning Expenses,Administration
Land Registry,Land Registry,08/10/2013,Hull Office,Property Maintenance,Carillion Services Ltd,Large,973601,5753.55,Property Maintenance,Administration
Land Registry,Land Registry,08/10/2013,Hull Office,FF&F:Maintenance,Carillion Services Ltd,Large,973601,183.16,FF&F:Maintenance,Administration
Land Registry,Land Registry,08/10/2013,Hull Office,Property Maintenance,Carillion Services Ltd,Large,973601,137.34,Property Maintenance,Administration
Land Registry,Land Registry,08/10/2013,Hull Office,FM Ext Helpdesk,Carillion Services Ltd,Large,973601,387.41,Facilities External Help Desk,Administration
Land Registry,Land Registry,08/10/2013,Hull Office,FM Managed Services,Carillion Services Ltd,Large,973601,4564.22,Facilities Managed Service,Administration
Land Registry,Land Registry,08/10/2013,Fylde Office,Electricity,Carillion Services Ltd,Large,973601,3634.97,Electricity,Administration
Land Registry,Land Registry,08/10/2013,Fylde Office,Gas,Carillion Services Ltd,Large,973601,502.25,Gas,Administration
Land Registry,Land Registry,08/10/2013,Fylde Office,Vending Machine Consumables & Repairs,Carillion Services Ltd,Large,973601,219.77,Vending Machine Consumables & Repairs,Administration
Land Registry,Land Registry,08/10/2013,Fylde Office,Grounds Maintenance,Carillion Services Ltd,Large,973601,1380.88,Grounds Maintenance,Administration
Land Registry,Land Registry,08/10/2013,Fylde Office,Security Expenses,Carillion Services Ltd,Large,973601,2618.38,Security Expenses,Administration
Land Registry,Land Registry,08/10/2013,Fylde Office,Waste Disposal,Carillion Services Ltd,Large,973601,111.34,Waste Disposal,Administration
Land Registry,Land Registry,08/10/2013,Fylde Office,Pest Control,Carillion Services Ltd,Large,973601,39.62,Pest Control,Administration
Land Registry,Land Registry,08/10/2013,Fylde Office,Office Cleaning Expenses,Carillion Services Ltd,Large,973601,5407.55,Office Cleaning Expenses,Administration
Land Registry,Land Registry,08/10/2013,Fylde Office,Property Maintenance,Carillion Services Ltd,Large,973601,3542.19,Property Maintenance,Administration
Land Registry,Land Registry,08/10/2013,Fylde Office,FF&F:Maintenance,Carillion Services Ltd,Large,973601,183.16,FF&F:Maintenance,Administration
Land Registry,Land Registry,08/10/2013,Fylde Office,Property Maintenance,Carillion Services Ltd,Large,973601,163.49,Property Maintenance,Administration
Land Registry,Land Registry,08/10/2013,Fylde Office,FM Ext Helpdesk,Carillion Services Ltd,Large,973601,344.73,Facilities External Help Desk,Administration
Land Registry,Land Registry,08/10/2013,Fylde Office,FM Managed Services,Carillion Services Ltd,Large,973601,7287.39,Facilities Managed Service,Administration
Land Registry,Land Registry,08/10/2013,RFS5 - Durham Belmont,Water,Carillion Services Ltd,Large,973601,118.11,Water,Administration
Land Registry,Land Registry,08/10/2013,RFS5 - Durham Belmont,Property Maintenance,Carillion Services Ltd,Large,973601,788.95,Property Maintenance,Administration
Land Registry,Land Registry,08/10/2013,RFS5 - Durham Belmont,Gas,Carillion Services Ltd,Large,973601,209.14,Gas,Administration
Land Registry,Land Registry,08/10/2013,RFS5 - Durham Belmont,Property Maintenance,Carillion Services Ltd,Large,973601,4422.37,Property Maintenance,Administration
Land Registry,Land Registry,08/10/2013,Durham Office,Electricity,Carillion Services Ltd,Large,973601,3962.58,Electricity,Administration
Land Registry,Land Registry,08/10/2013,Durham Office,Gas,Carillion Services Ltd,Large,973601,380.84,Gas,Administration
Land Registry,Land Registry,08/10/2013,Durham Office,Grounds Maintenance,Carillion Services Ltd,Large,973601,956.75,Grounds Maintenance,Administration
Land Registry,Land Registry,08/10/2013,Durham Office,Security Expenses,Carillion Services Ltd,Large,973601,3481.8,Security Expenses,Administration
Land Registry,Land Registry,08/10/2013,Durham Office,Waste Disposal,Carillion Services Ltd,Large,973601,367.19,Waste Disposal,Administration
Land Registry,Land Registry,08/10/2013,Durham Office,Pest Control,Carillion Services Ltd,Large,973601,49.02,Pest Control,Administration
Land Registry,Land Registry,08/10/2013,Durham Office,Office Cleaning Expenses,Carillion Services Ltd,Large,973601,8766.98,Office Cleaning Expenses,Administration
Land Registry,Land Registry,08/10/2013,Durham Office,Property Maintenance,Carillion Services Ltd,Large,973601,5644.76,Property Maintenance,Administration
Land Registry,Land Registry,08/10/2013,Durham Office,FF&F:Maintenance,Carillion Services Ltd,Large,973601,183.16,FF&F:Maintenance,Administration
Land Registry,Land Registry,08/10/2013,Durham Office,Property Maintenance,Carillion Services Ltd,Large,973601,117.88,Property Maintenance,Administration
Land Registry,Land Registry,08/10/2013,Durham Office,FM Ext Helpdesk,Carillion Services Ltd,Large,973601,495.7,Facilities External Help Desk,Administration
Land Registry,Land Registry,08/10/2013,Durham Office,FM Managed Services,Carillion Services Ltd,Large,973601,8040.74,Facilities Managed Service,Administration
Land Registry,Land Registry,08/10/2013,RFS8 - Birkenhead,Vending Machine Consumables & Repairs,Carillion Services Ltd,Large,973601,54.87,Vending Machine Consumables & Repairs,Administration
Land Registry,Land Registry,08/10/2013,RFS8 - Birkenhead,Office Cleaning Expenses,Carillion Services Ltd,Large,973601,7.55,Office Cleaning Expenses,Administration
Land Registry,Land Registry,08/10/2013,Birkenhead Office,Electricity,Carillion Services Ltd,Large,973601,3022.67,Electricity,Administration
Land Registry,Land Registry,08/10/2013,Birkenhead Office,Gas,Carillion Services Ltd,Large,973601,396.78,Gas,Administration
Land Registry,Land Registry,08/10/2013,Gloucester Office,FM Managed Services,Carillion Services Ltd,Large,973601,1540,Facilities Managed Service,Administration
Land Registry,Land Registry,08/10/2013,Coventry Office,Electricity,Carillion Services Ltd,Large,973601,4459.23,Electricity,Administration
Land Registry,Land Registry,08/10/2013,Coventry Office,Gas,Carillion Services Ltd,Large,973601,812.05,Gas,Administration
Land Registry,Land Registry,08/10/2013,Coventry Office,Vending Machine Consumables & Repairs,Carillion Services Ltd,Large,973601,223.11,Vending Machine Consumables & Repairs,Administration
Land Registry,Land Registry,08/10/2013,Coventry Office,Grounds Maintenance,Carillion Services Ltd,Large,973601,791.26,Grounds Maintenance,Administration
Land Registry,Land Registry,08/10/2013,Coventry Office,Security Expenses,Carillion Services Ltd,Large,973601,7968.05,Security Expenses,Administration
Land Registry,Land Registry,08/10/2013,Coventry Office,Waste Disposal,Carillion Services Ltd,Large,973601,349.94,Waste Disposal,Administration
Land Registry,Land Registry,08/10/2013,Coventry Office,Pest Control,Carillion Services Ltd,Large,973601,53.41,Pest Control,Administration
Land Registry,Land Registry,08/10/2013,Coventry Office,Office Cleaning Expenses,Carillion Services Ltd,Large,973601,7736.05,Office Cleaning Expenses,Administration
Land Registry,Land Registry,08/10/2013,Coventry Office,Property Maintenance,Carillion Services Ltd,Large,973601,10541.47,Property Maintenance,Administration
Land Registry,Land Registry,08/10/2013,Coventry Office,FF&F:Maintenance,Carillion Services Ltd,Large,973601,183.16,FF&F:Maintenance,Administration
Land Registry,Land Registry,08/10/2013,Coventry Office,Property Maintenance,Carillion Services Ltd,Large,973601,295.81,Property Maintenance,Administration
Land Registry,Land Registry,08/10/2013,Coventry Office,FM Ext Helpdesk,Carillion Services Ltd,Large,973601,801.42,Facilities External Help Desk,Administration
Land Registry,Land Registry,08/10/2013,Coventry Office,FM Managed Services,Carillion Services Ltd,Large,973601,8247.81,Facilities Managed Service,Administration
Land Registry,Land Registry,08/10/2013,Wales Office,Grounds Maintenance,Carillion Services Ltd,Large,973601,9.16,Grounds Maintenance,Administration
Land Registry,Land Registry,08/10/2013,Wales Office,Pest Control,Carillion Services Ltd,Large,973601,18.62,Pest Control,Administration
Land Registry,Land Registry,08/10/2013,Wales Office,Office Cleaning Expenses,Carillion Services Ltd,Large,973601,19.29,Office Cleaning Expenses,Administration
Land Registry,Land Registry,08/10/2013,Wales Office,Property Maintenance,Carillion Services Ltd,Large,973601,757.54,Property Maintenance,Administration
Land Registry,Land Registry,08/10/2013,Wales Office,FF&F:Maintenance,Carillion Services Ltd,Large,973601,183.16,FF&F:Maintenance,Administration
Land Registry,Land Registry,08/10/2013,Wales Office,Property Maintenance,Carillion Services Ltd,Large,973601,111.13,Property Maintenance,Administration
Land Registry,Land Registry,08/10/2013,Wales Office,FM Ext Helpdesk,Carillion Services Ltd,Large,973601,29.18,Facilities External Help Desk,Administration
Land Registry,Land Registry,08/10/2013,Wales Office,FM Managed Services,Carillion Services Ltd,Large,973601,412.48,Facilities Managed Service,Administration
Land Registry,Land Registry,08/10/2013,Wales Office,Electricity,Carillion Services Ltd,Large,973601,4045.52,Electricity,Administration
Land Registry,Land Registry,08/10/2013,Wales Office,Gas,Carillion Services Ltd,Large,973601,214.27,Gas,Administration
Land Registry,Land Registry,08/10/2013,Wales Office,Vending Machine Consumables & Repairs,Carillion Services Ltd,Large,973601,201.59,Vending Machine Consumables & Repairs,Administration
Land Registry,Land Registry,08/10/2013,Wales Office,Grounds Maintenance,Carillion Services Ltd,Large,973601,523.75,Grounds Maintenance,Administration
Land Registry,Land Registry,08/10/2013,Wales Office,Security Expenses,Carillion Services Ltd,Large,973601,2919.7,Security Expenses,Administration
Land Registry,Land Registry,08/10/2013,Wales Office,Waste Disposal,Carillion Services Ltd,Large,973601,521.48,Waste Disposal,Administration
Land Registry,Land Registry,08/10/2013,Wales Office,Pest Control,Carillion Services Ltd,Large,973601,40.76,Pest Control,Administration
Land Registry,Land Registry,08/10/2013,Wales Office,Office Cleaning Expenses,Carillion Services Ltd,Large,973601,4935.35,Office Cleaning Expenses,Administration
Land Registry,Land Registry,08/10/2013,Wales Office,Property Maintenance,Carillion Services Ltd,Large,973601,3858.47,Property Maintenance,Administration
Land Registry,Land Registry,08/10/2013,Wales Office,FF&F:Maintenance,Carillion Services Ltd,Large,973601,183.16,FF&F:Maintenance,Administration
Land Registry,Land Registry,08/10/2013,Wales Office,Property Maintenance,Carillion Services Ltd,Large,973601,197.23,Property Maintenance,Administration
Land Registry,Land Registry,08/10/2013,Wales Office,FM Ext Helpdesk,Carillion Services Ltd,Large,973601,346.17,Facilities External Help Desk,Administration
Land Registry,Land Registry,08/10/2013,Wales Office,FM Managed Services,Carillion Services Ltd,Large,973601,7524.4,Facilities Managed Service,Administration
Land Registry,Land Registry,08/10/2013,Croydon Office,Electricity,Carillion Services Ltd,Large,973601,6679.38,Electricity,Administration
Land Registry,Land Registry,08/10/2013,Croydon Office,Gas,Carillion Services Ltd,Large,973601,514.25,Gas,Administration
Land Registry,Land Registry,08/10/2013,Croydon Office,Vending Machine Consumables & Repairs,Carillion Services Ltd,Large,973601,190,Vending Machine Consumables & Repairs,Administration
Land Registry,Land Registry,08/10/2013,Croydon Office,Grounds Maintenance,Carillion Services Ltd,Large,973601,81.23,Grounds Maintenance,Administration
Land Registry,Land Registry,08/10/2013,Croydon Office,Security Expenses,Carillion Services Ltd,Large,973601,9414.54,Security Expenses,Administration
Land Registry,Land Registry,08/10/2013,Croydon Office,Waste Disposal,Carillion Services Ltd,Large,973601,244.04,Waste Disposal,Administration
Land Registry,Land Registry,08/10/2013,Croydon Office,Pest Control,Carillion Services Ltd,Large,973601,40.24,Pest Control,Administration
Land Registry,Land Registry,08/10/2013,Croydon Office,Office Cleaning Expenses,Carillion Services Ltd,Large,973601,6200.85,Office Cleaning Expenses,Administration
Land Registry,Land Registry,08/10/2013,Croydon Office,Property Maintenance,Carillion Services Ltd,Large,973601,7109.07,Property Maintenance,Administration
Land Registry,Land Registry,08/10/2013,Croydon Office,FF&F:Maintenance,Carillion Services Ltd,Large,973601,183.16,FF&F:Maintenance,Administration
Land Registry,Land Registry,08/10/2013,Croydon Office,Property Maintenance,Carillion Services Ltd,Large,973601,100.28,Property Maintenance,Administration
Land Registry,Land Registry,08/10/2013,Croydon Office,FM Ext Helpdesk,Carillion Services Ltd,Large,973601,475.42,Facilities External Help Desk,Administration
Land Registry,Land Registry,08/10/2013,Croydon Office,FM Managed Services,Carillion Services Ltd,Large,973601,8454.65,Facilities Managed Service,Administration
Land Registry,Land Registry,08/10/2013,Weymouth Office,Grounds Maintenance,Carillion Services Ltd,Large,973601,81.23,Grounds Maintenance,Administration
Land Registry,Land Registry,08/10/2013,Weymouth Office,Pest Control,Carillion Services Ltd,Large,973601,25.3,Pest Control,Administration
Land Registry,Land Registry,08/10/2013,Weymouth Office,Office Cleaning Expenses,Carillion Services Ltd,Large,973601,270.42,Office Cleaning Expenses,Administration
Land Registry,Land Registry,08/10/2013,Weymouth Office,Property Maintenance,Carillion Services Ltd,Large,973601,369.89,Property Maintenance,Administration
Land Registry,Land Registry,08/10/2013,Weymouth Office,FF&F:Maintenance,Carillion Services Ltd,Large,973601,91.58,FF&F:Maintenance,Administration
Land Registry,Land Registry,08/10/2013,Weymouth Office,Property Maintenance,Carillion Services Ltd,Large,973601,83.68,Property Maintenance,Administration
Land Registry,Land Registry,08/10/2013,Weymouth Office,FM Ext Helpdesk,Carillion Services Ltd,Large,973601,26.66,Facilities External Help Desk,Administration
Land Registry,Land Registry,08/10/2013,Weymouth Office,FM Managed Services,Carillion Services Ltd,Large,973601,229.73,Facilities Managed Service,Administration
Land Registry,Land Registry,08/10/2013,Weymouth Office,Water,Carillion Services Ltd,Large,973601,3887.49,Water,Administration
Land Registry,Land Registry,08/10/2013,Weymouth Office,Electricity,Carillion Services Ltd,Large,973601,3010.34,Electricity,Administration
Land Registry,Land Registry,08/10/2013,Weymouth Office,Gas,Carillion Services Ltd,Large,973601,335.25,Gas,Administration
Land Registry,Land Registry,08/10/2013,Weymouth Office,Vending Machine Consumables & Repairs,Carillion Services Ltd,Large,973601,120.66,Vending Machine Consumables & Repairs,Administration
Land Registry,Land Registry,08/10/2013,Weymouth Office,Grounds Maintenance,Carillion Services Ltd,Large,973601,642.25,Grounds Maintenance,Administration
Land Registry,Land Registry,08/10/2013,Weymouth Office,Security Expenses,Carillion Services Ltd,Large,973601,3144.08,Security Expenses,Administration
Land Registry,Land Registry,08/10/2013,Weymouth Office,Waste Disposal,Carillion Services Ltd,Large,973601,222.19,Waste Disposal,Administration
Land Registry,Land Registry,08/10/2013,Weymouth Office,Pest Control,Carillion Services Ltd,Large,973601,41.9,Pest Control,Administration
Land Registry,Land Registry,08/10/2013,Weymouth Office,Office Cleaning Expenses,Carillion Services Ltd,Large,973601,3865.85,Office Cleaning Expenses,Administration
Land Registry,Land Registry,08/10/2013,Weymouth Office,Property Maintenance,Carillion Services Ltd,Large,973601,1976.72,Property Maintenance,Administration
Land Registry,Land Registry,08/10/2013,Weymouth Office,FF&F:Maintenance,Carillion Services Ltd,Large,973601,183.16,FF&F:Maintenance,Administration
Land Registry,Land Registry,08/10/2013,Weymouth Office,Property Maintenance,Carillion Services Ltd,Large,973601,237.19,Property Maintenance,Administration
Land Registry,Land Registry,08/10/2013,Weymouth Office,FM Ext Helpdesk,Carillion Services Ltd,Large,973601,278.47,Facilities External Help Desk,Administration
Land Registry,Land Registry,08/10/2013,Weymouth Office,FM Managed Services,Carillion Services Ltd,Large,973601,4071.99,Facilities Managed Service,Administration
Land Registry,Land Registry,08/10/2013,Governance & Policy,Electricity,Carillion Services Ltd,Large,973601,19143.88,Electricity,Administration
Land Registry,Land Registry,08/10/2013,Governance & Policy,Gas,Carillion Services Ltd,Large,973601,40.78,Gas,Administration
Land Registry,Land Registry,08/10/2013,Governance & Policy,Grounds Maintenance,Carillion Services Ltd,Large,973601,151.84,Grounds Maintenance,Administration
Land Registry,Land Registry,08/10/2013,Governance & Policy,Security Expenses,Carillion Services Ltd,Large,973601,7757.62,Security Expenses,Administration
Land Registry,Land Registry,08/10/2013,Governance & Policy,Waste Disposal,Carillion Services Ltd,Large,973601,320.39,Waste Disposal,Administration
Land Registry,Land Registry,08/10/2013,Governance & Policy,Pest Control,Carillion Services Ltd,Large,973601,172.01,Pest Control,Administration
Land Registry,Land Registry,08/10/2013,Governance & Policy,Office Cleaning Expenses,Carillion Services Ltd,Large,973601,446.7,Office Cleaning Expenses,Administration
Land Registry,Land Registry,08/10/2013,Governance & Policy,Property Maintenance,Carillion Services Ltd,Large,973601,5147.02,Property Maintenance,Administration
Land Registry,Land Registry,08/10/2013,Governance & Policy,FF&F:Maintenance,Carillion Services Ltd,Large,973601,183.16,FF&F:Maintenance,Administration
Land Registry,Land Registry,08/10/2013,Governance & Policy,Property Maintenance,Carillion Services Ltd,Large,973601,139.18,Property Maintenance,Administration
Land Registry,Land Registry,08/10/2013,Governance & Policy,FM Ext Helpdesk,Carillion Services Ltd,Large,973601,394.72,Facilities External Help Desk,Administration
Land Registry,Land Registry,08/10/2013,Governance & Policy,FM Managed Services,Carillion Services Ltd,Large,973601,2237.88,Facilities Managed Service,Administration
Land Registry,Land Registry,08/10/2013,Governance & Policy,Electricity,Carillion Services Ltd,Large,973601,16766.94,Electricity,Administration
Land Registry,Land Registry,08/10/2013,Governance & Policy,Gas,Carillion Services Ltd,Large,973601,245.4,Gas,Administration
Land Registry,Land Registry,08/10/2013,Governance & Policy,Grounds Maintenance,Carillion Services Ltd,Large,973601,151.84,Grounds Maintenance,Administration
Land Registry,Land Registry,08/10/2013,Governance & Policy,Security Expenses,Carillion Services Ltd,Large,973601,7757.62,Security Expenses,Administration
Land Registry,Land Registry,08/10/2013,Governance & Policy,Waste Disposal,Carillion Services Ltd,Large,973601,180.83,Waste Disposal,Administration
Land Registry,Land Registry,08/10/2013,Governance & Policy,Pest Control,Carillion Services Ltd,Large,973601,262.93,Pest Control,Administration
Land Registry,Land Registry,08/10/2013,Governance & Policy,Office Cleaning Expenses,Carillion Services Ltd,Large,973601,332.57,Office Cleaning Expenses,Administration
Land Registry,Land Registry,08/10/2013,Governance & Policy,Property Maintenance,Carillion Services Ltd,Large,973601,4984.85,Property Maintenance,Administration
Land Registry,Land Registry,08/10/2013,Governance & Policy,FF&F:Maintenance,Carillion Services Ltd,Large,973601,183.16,FF&F:Maintenance,Administration
Land Registry,Land Registry,08/10/2013,Governance & Policy,Property Maintenance,Carillion Services Ltd,Large,973601,115.83,Property Maintenance,Administration
Land Registry,Land Registry,08/10/2013,Governance & Policy,FM Ext Helpdesk,Carillion Services Ltd,Large,973601,390.01,Facilities External Help Desk,Administration
Land Registry,Land Registry,08/10/2013,Governance & Policy,FM Managed Services,Carillion Services Ltd,Large,973601,2211.17,Facilities Managed Service,Administration
Land Registry,Land Registry,08/10/2013,RFS15 - Plymouth Drakes Hill Court,Water,Carillion Services Ltd,Large,973601,28.29,Water,Administration
Land Registry,Land Registry,08/10/2013,RFS15 - Plymouth Drakes Hill Court,Electricity,Carillion Services Ltd,Large,973601,1905.47,Electricity,Administration
Land Registry,Land Registry,08/10/2013,RFS15 - Plymouth Drakes Hill Court,Gas,Carillion Services Ltd,Large,973601,507.49,Gas,Administration
Land Registry,Land Registry,08/10/2013,RFS15 - Plymouth Drakes Hill Court,Grounds Maintenance,Carillion Services Ltd,Large,973601,297.27,Grounds Maintenance,Administration
Land Registry,Land Registry,08/10/2013,RFS15 - Plymouth Drakes Hill Court,Waste Disposal,Carillion Services Ltd,Large,973601,20.01,Waste Disposal,Administration
Land Registry,Land Registry,08/10/2013,RFS15 - Plymouth Drakes Hill Court,Pest Control,Carillion Services Ltd,Large,973601,543.33,Pest Control,Administration
Land Registry,Land Registry,08/10/2013,RFS15 - Plymouth Drakes Hill Court,Office Cleaning Expenses,Carillion Services Ltd,Large,973601,521.67,Office Cleaning Expenses,Administration
Land Registry,Land Registry,08/10/2013,RFS15 - Plymouth Drakes Hill Court,Property Maintenance,Carillion Services Ltd,Large,973601,3249.74,Property Maintenance,Administration
Land Registry,Land Registry,08/10/2013,RFS15 - Plymouth Drakes Hill Court,FF&F:Maintenance,Carillion Services Ltd,Large,973601,91.58,FF&F:Maintenance,Administration
Land Registry,Land Registry,08/10/2013,RFS15 - Plymouth Drakes Hill Court,Property Maintenance,Carillion Services Ltd,Large,973601,120.52,Property Maintenance,Administration
Land Registry,Land Registry,08/10/2013,RFS15 - Plymouth Drakes Hill Court,FM Ext Helpdesk,Carillion Services Ltd,Large,973601,118.44,Facilities External Help Desk,Administration
Land Registry,Land Registry,08/10/2013,RFS15 - Plymouth Drakes Hill Court,FM Managed Services,Carillion Services Ltd,Large,973601,671.51,Facilities Managed Service,Administration
Land Registry,Land Registry,08/10/2013,Governance & Policy,Electricity,Carillion Services Ltd,Large,973601,9241.74,Electricity,Administration
Land Registry,Land Registry,08/10/2013,Governance & Policy,Gas,Carillion Services Ltd,Large,973601,478.21,Gas,Administration
Land Registry,Land Registry,08/10/2013,Governance & Policy,Grounds Maintenance,Carillion Services Ltd,Large,973601,1636.95,Grounds Maintenance,Administration
Land Registry,Land Registry,08/10/2013,Governance & Policy,Security Expenses,Carillion Services Ltd,Large,973601,7163.98,Security Expenses,Administration
Land Registry,Land Registry,08/10/2013,Governance & Policy,Waste Disposal,Carillion Services Ltd,Large,973601,1604.45,Waste Disposal,Administration
Land Registry,Land Registry,08/10/2013,Governance & Policy,Pest Control,Carillion Services Ltd,Large,973601,90.04,Pest Control,Administration
Land Registry,Land Registry,08/10/2013,Governance & Policy,Office Cleaning Expenses,Carillion Services Ltd,Large,973601,8539.18,Office Cleaning Expenses,Administration
Land Registry,Land Registry,08/10/2013,Governance & Policy,Property Maintenance,Carillion Services Ltd,Large,973601,5442.63,Property Maintenance,Administration
Land Registry,Land Registry,08/10/2013,Governance & Policy,FF&F:Maintenance,Carillion Services Ltd,Large,973601,183.16,FF&F:Maintenance,Administration
Land Registry,Land Registry,08/10/2013,Governance & Policy,Property Maintenance,Carillion Services Ltd,Large,973601,153.71,Property Maintenance,Administration
Land Registry,Land Registry,08/10/2013,Governance & Policy,FM Ext Helpdesk,Carillion Services Ltd,Large,973601,474.56,Facilities External Help Desk,Administration
Land Registry,Land Registry,08/10/2013,Governance & Policy,FM Managed Services,Carillion Services Ltd,Large,973601,7052.2,Facilities Managed Service,Administration
Land Registry,Land Registry,08/10/2013,Dir: Finance,Electricity,Carillion Services Ltd,Large,973601,1073.23,Electricity,Administration
Land Registry,Land Registry,08/10/2013,Dir: Finance,Gas,Carillion Services Ltd,Large,973601,136.42,Gas,Administration
Land Registry,Land Registry,08/10/2013,Dir: Finance,"Property Management; Advice, Surveys & Inspections",Carillion Services Ltd,Large,973601,763.51,"Property Management; Advice, Surveys & Inspections",Administration
Land Registry,Land Registry,08/10/2013,Finance Director,Employment Agency Staff Costs,Penna Plc,Large,973606,27840,Employment Agency Staff Costs,Administration
Land Registry,Land Registry,08/10/2013,IS Service Delivery,DITI Impact Change Controls Only,Steria Limited,Large,973607,54214.76,IT Managed Service Change Controls,Administration
Land Registry,Land Registry,09/10/2013,Peterborough Office,Property Maintenance,Carillion Services Ltd,Large,973817,267.5,Property Maintenance,Administration
Land Registry,Land Registry,09/10/2013,Nottingham Office,FF&F:Removals,Carillion Services Ltd,Large,973817,1226.16,FF&F:Removals,Administration
Land Registry,Land Registry,09/10/2013,RFS4 - Coventry,Property Maintenance,Carillion Services Ltd,Large,973817,687.72,Property Maintenance,Administration
Land Registry,Land Registry,09/10/2013,Hull Office,Waste Disposal,Carillion Services Ltd,Large,973817,377.51,Waste Disposal,Administration
Land Registry,Land Registry,09/10/2013,Hull Office,Property Maintenance,Carillion Services Ltd,Large,973817,4654.93,Property Maintenance,Administration
Land Registry,Land Registry,09/10/2013,Hull Office,FF&F:Maintenance,Carillion Services Ltd,Large,973817,300.47,FF&F:Maintenance,Administration
Land Registry,Land Registry,09/10/2013,Fylde Office,FF&F:Removals,Carillion Services Ltd,Large,973817,615.25,FF&F:Removals,Administration
Land Registry,Land Registry,09/10/2013,Fylde Office,Grounds Maintenance,Carillion Services Ltd,Large,973817,6356.41,Grounds Maintenance,Administration
Land Registry,Land Registry,09/10/2013,Fylde Office,Security Expenses,Carillion Services Ltd,Large,973817,139.01,Security Expenses,Administration
Land Registry,Land Registry,09/10/2013,Fylde Office,Waste Disposal,Carillion Services Ltd,Large,973817,1337.65,Waste Disposal,Administration
Land Registry,Land Registry,09/10/2013,Fylde Office,Pest Control,Carillion Services Ltd,Large,973817,711.55,Pest Control,Administration
Land Registry,Land Registry,09/10/2013,Fylde Office,Property Maintenance,Carillion Services Ltd,Large,973817,690.56,Property Maintenance,Administration
Land Registry,Land Registry,09/10/2013,Fylde Office,FF&F:Maintenance,Carillion Services Ltd,Large,973817,651.78,FF&F:Maintenance,Administration
Land Registry,Land Registry,09/10/2013,Durham Office,FF&F:Maintenance,Carillion Services Ltd,Large,973817,1309.92,FF&F:Maintenance,Administration
Land Registry,Land Registry,09/10/2013,Birkenhead Office,Office Cleaning Expenses,Carillion Services Ltd,Large,973817,569.24,Office Cleaning Expenses,Administration
Land Registry,Land Registry,09/10/2013,Birkenhead Office,Property Maintenance,Carillion Services Ltd,Large,973817,1658.5,Property Maintenance,Administration
Land Registry,Land Registry,09/10/2013,Birkenhead Office,FF&F:Maintenance,Carillion Services Ltd,Large,973817,1191.61,FF&F:Maintenance,Administration
Land Registry,Land Registry,09/10/2013,Birkenhead Office,Property Maintenance,Carillion Services Ltd,Large,973817,445.12,Property Maintenance,Administration
Land Registry,Land Registry,09/10/2013,Telford Office,Grounds Maintenance,Carillion Services Ltd,Large,973817,1956.39,Grounds Maintenance,Administration
Land Registry,Land Registry,09/10/2013,Telford Office,Property Maintenance,Carillion Services Ltd,Large,973817,3908.5,Property Maintenance,Administration
Land Registry,Land Registry,09/10/2013,Peterborough Office,Waste Disposal,Carillion Services Ltd,Large,973817,115.56,Waste Disposal,Administration
Land Registry,Land Registry,09/10/2013,Peterborough Office,FF&F:Maintenance,Carillion Services Ltd,Large,973817,810.06,FF&F:Maintenance,Administration
Land Registry,Land Registry,09/10/2013,Nottingham Office,Property Maintenance,Carillion Services Ltd,Large,973817,706.2,Property Maintenance,Administration
Land Registry,Land Registry,09/10/2013,Nottingham Office,FF&F:Maintenance,Carillion Services Ltd,Large,973817,1042.67,FF&F:Maintenance,Administration
Land Registry,Land Registry,09/10/2013,Leicester Office,Vending Machine Consumables & Repairs,Carillion Services Ltd,Large,973817,14.9,Vending Machine Consumables & Repairs,Administration
Land Registry,Land Registry,09/10/2013,Leicester Office,Waste Disposal,Carillion Services Ltd,Large,973817,648.21,Waste Disposal,Administration
Land Registry,Land Registry,09/10/2013,Leicester Office,FF&F:Maintenance,Carillion Services Ltd,Large,973817,610.5,FF&F:Maintenance,Administration
Land Registry,Land Registry,09/10/2013,Gloucester Computer Centre,Vending Machine Consumables & Repairs,Carillion Services Ltd,Large,973817,7.45,Vending Machine Consumables & Repairs,Administration
Land Registry,Land Registry,09/10/2013,Gloucester Computer Centre,Property Maintenance,Carillion Services Ltd,Large,973817,556.23,Property Maintenance,Administration
Land Registry,Land Registry,09/10/2013,Gloucester Office,Waste Disposal,Carillion Services Ltd,Large,973817,14.29,Waste Disposal,Administration
Land Registry,Land Registry,09/10/2013,Gloucester Office,Property Maintenance,Carillion Services Ltd,Large,973817,63149.49,Property Maintenance,Administration
Land Registry,Land Registry,09/10/2013,Coventry Office,Grounds Maintenance,Carillion Services Ltd,Large,973817,1538.66,Grounds Maintenance,Administration
Land Registry,Land Registry,09/10/2013,Coventry Office,Office Cleaning Expenses,Carillion Services Ltd,Large,973817,85.87,Office Cleaning Expenses,Administration
Land Registry,Land Registry,09/10/2013,Coventry Office,FF&F:Maintenance,Carillion Services Ltd,Large,973817,379.42,FF&F:Maintenance,Administration
Land Registry,Land Registry,09/10/2013,Coventry Office,Property Maintenance,Carillion Services Ltd,Large,973817,1337.5,Property Maintenance,Administration
Land Registry,Land Registry,09/10/2013,Wales Office,Waste Disposal,Carillion Services Ltd,Large,973817,216.42,Waste Disposal,Administration
Land Registry,Land Registry,09/10/2013,Wales Office,Property Maintenance,Carillion Services Ltd,Large,973817,6335.74,Property Maintenance,Administration
Land Registry,Land Registry,09/10/2013,Croydon Office,FF&F:Removals,Carillion Services Ltd,Large,973817,-307.48,FF&F:Removals,Administration
Land Registry,Land Registry,09/10/2013,Croydon Office,Waste Disposal,Carillion Services Ltd,Large,973817,281.49,Waste Disposal,Administration
Land Registry,Land Registry,09/10/2013,Weymouth Office,Waste Disposal,Carillion Services Ltd,Large,973817,1669.14,Waste Disposal,Administration
Land Registry,Land Registry,09/10/2013,Weymouth Office,Property Maintenance,Carillion Services Ltd,Large,973817,6862.86,Property Maintenance,Administration
Land Registry,Land Registry,09/10/2013,Weymouth Office,FF&F:Maintenance,Carillion Services Ltd,Large,973817,239.25,FF&F:Maintenance,Administration
Land Registry,Land Registry,09/10/2013,Governance & Policy,Waste Disposal,Carillion Services Ltd,Large,973817,171.2,Waste Disposal,Administration
Land Registry,Land Registry,09/10/2013,Governance & Policy,Property Maintenance,Carillion Services Ltd,Large,973817,2749.45,Property Maintenance,Administration
Land Registry,Land Registry,09/10/2013,RFS15 - Plymouth Drakes Hill Court,Security Expenses,Carillion Services Ltd,Large,973817,21469.38,Security Expenses,Administration
Land Registry,Land Registry,09/10/2013,Governance & Policy,FF&F:Removals,Carillion Services Ltd,Large,973817,161.86,FF&F:Removals,Administration
Land Registry,Land Registry,09/10/2013,Governance & Policy,Waste Disposal,Carillion Services Ltd,Large,973817,193.39,Waste Disposal,Administration
Land Registry,Land Registry,09/10/2013,Governance & Policy,FF&F:Maintenance,Carillion Services Ltd,Large,973817,239.25,FF&F:Maintenance,Administration
Land Registry,Land Registry,09/10/2013,Dir: Finance,Property Management; Other Fees,Carillion Services Ltd,Large,973817,317.26,Property Management; Other Fees,Administration
Land Registry,Land Registry,09/10/2013,IS Service Delivery,Computer Equipment Maintenance,CGI IT UK Limited,Large,973818,67756,Computer Equipment Maintenance,Administration
Land Registry,Land Registry,09/10/2013,IS Service Delivery,Computer Equipment Maintenance,Hewlett-Packard Ltd,Large,973820,53400.72,Computer Equipment Maintenance,Administration
Land Registry,Land Registry,10/10/2013,Wales Office,Stationery National Contracts,Banner Business Services Ltd,Large,974027,10.83,Stationery National Contracts,Administration
Land Registry,Land Registry,10/10/2013,Plymouth Office,Stationery National Contracts,Banner Business Services Ltd,Large,974027,9.47,Stationery National Contracts,Administration
Land Registry,Land Registry,10/10/2013,Birkenhead Office,Stationery National Contracts,Banner Business Services Ltd,Large,974027,45.13,Stationery National Contracts,Administration
Land Registry,Land Registry,10/10/2013,Durham Office,Stationery National Contracts,Banner Business Services Ltd,Large,974027,16.36,Stationery National Contracts,Administration
Land Registry,Land Registry,10/10/2013,Plymouth Office,Stationery National Contracts,Banner Business Services Ltd,Large,974027,16.36,Stationery National Contracts,Administration
Land Registry,Land Registry,10/10/2013,Croydon Office,Stationery National Contracts,Banner Business Services Ltd,Large,974027,23.85,Stationery National Contracts,Administration
Land Registry,Land Registry,10/10/2013,Plymouth Office,Stationery National Contracts,Banner Business Services Ltd,Large,974027,3.61,Stationery National Contracts,Administration
Land Registry,Land Registry,10/10/2013,Croydon Office,Stationery National Contracts,Banner Business Services Ltd,Large,974027,27.82,Stationery National Contracts,Administration
Land Registry,Land Registry,10/10/2013,Telford Office,Stationery National Contracts,Banner Business Services Ltd,Large,974027,16.36,Stationery National Contracts,Administration
Land Registry,Land Registry,10/10/2013,Gloucester Office,Stationery National Contracts,Banner Business Services Ltd,Large,974027,16.36,Stationery National Contracts,Administration
Land Registry,Land Registry,10/10/2013,Telford Office,Stationery National Contracts,Banner Business Services Ltd,Large,974027,9.47,Stationery National Contracts,Administration
Land Registry,Land Registry,10/10/2013,Gloucester Office,Stationery National Contracts,Banner Business Services Ltd,Large,974027,3.61,Stationery National Contracts,Administration
Land Registry,Land Registry,10/10/2013,Croydon Office,Stationery National Contracts,Banner Business Services Ltd,Large,974027,48.42,Stationery National Contracts,Administration
Land Registry,Land Registry,10/10/2013,Telford Office,Stationery National Contracts,Banner Business Services Ltd,Large,974027,3.61,Stationery National Contracts,Administration
Land Registry,Land Registry,10/10/2013,Leicester Office,Stationery National Contracts,Banner Business Services Ltd,Large,974027,19.97,Stationery National Contracts,Administration
Land Registry,Land Registry,10/10/2013,Internal Solutions Group,Stationery National Contracts,Banner Business Services Ltd,Large,974027,27.16,Stationery National Contracts,Administration
Land Registry,Land Registry,10/10/2013,Central Operations Group,Stationery National Contracts,Banner Business Services Ltd,Large,974027,1,Stationery National Contracts,Administration
Land Registry,Land Registry,10/10/2013,Projects and Programme Centre,Stationery National Contracts,Banner Business Services Ltd,Large,974027,3.37,Stationery National Contracts,Administration
Land Registry,Land Registry,10/10/2013,Internal Solutions Group,Stationery National Contracts,Banner Business Services Ltd,Large,974027,2.55,Stationery National Contracts,Administration
Land Registry,Land Registry,10/10/2013,Projects and Programme Centre,Stationery National Contracts,Banner Business Services Ltd,Large,974027,6.95,Stationery National Contracts,Administration
Land Registry,Land Registry,10/10/2013,Birkenhead Office,Stationery National Contracts,Banner Business Services Ltd,Large,974027,6.51,Stationery National Contracts,Administration
Land Registry,Land Registry,10/10/2013,Internal Solutions Group,Stationery National Contracts,Banner Business Services Ltd,Large,974027,2.55,Stationery National Contracts,Administration
Land Registry,Land Registry,10/10/2013,Projects and Programme Centre,Stationery National Contracts,Banner Business Services Ltd,Large,974027,4.05,Stationery National Contracts,Administration
Land Registry,Land Registry,10/10/2013,Plymouth Office,Stationery National Contracts,Banner Business Services Ltd,Large,974027,1.64,Stationery National Contracts,Administration
Land Registry,Land Registry,10/10/2013,Birkenhead Office,Stationery National Contracts,Banner Business Services Ltd,Large,974027,4.9,Stationery National Contracts,Administration
Land Registry,Land Registry,10/10/2013,Projects and Programme Centre,Stationery National Contracts,Banner Business Services Ltd,Large,974027,9.12,Stationery National Contracts,Administration
Land Registry,Land Registry,10/10/2013,Plymouth Office,Stationery National Contracts,Banner Business Services Ltd,Large,974027,9.41,Stationery National Contracts,Administration
Land Registry,Land Registry,10/10/2013,Birkenhead Office,Stationery National Contracts,Banner Business Services Ltd,Large,974027,1.8,Stationery National Contracts,Administration
Land Registry,Land Registry,10/10/2013,Internal Solutions Group,Stationery National Contracts,Banner Business Services Ltd,Large,974027,2.55,Stationery National Contracts,Administration
Land Registry,Land Registry,10/10/2013,Plymouth Office,Stationery National Contracts,Banner Business Services Ltd,Large,974027,0.8,Stationery National Contracts,Administration
Land Registry,Land Registry,10/10/2013,Gloucester Office,Stationery National Contracts,Banner Business Services Ltd,Large,974027,0.14,Stationery National Contracts,Administration
Land Registry,Land Registry,10/10/2013,Birkenhead Office,Stationery National Contracts,Banner Business Services Ltd,Large,974027,1.8,Stationery National Contracts,Administration
Land Registry,Land Registry,10/10/2013,Internal Solutions Group,Stationery National Contracts,Banner Business Services Ltd,Large,974027,2.55,Stationery National Contracts,Administration
Land Registry,Land Registry,10/10/2013,Wales Office,Stationery National Contracts,Banner Business Services Ltd,Large,974027,26.66,Stationery National Contracts,Administration
Land Registry,Land Registry,10/10/2013,Plymouth Office,Stationery National Contracts,Banner Business Services Ltd,Large,974027,0.64,Stationery National Contracts,Administration
Land Registry,Land Registry,10/10/2013,Gloucester Office,Stationery National Contracts,Banner Business Services Ltd,Large,974027,0.22,Stationery National Contracts,Administration
Land Registry,Land Registry,10/10/2013,Birkenhead Office,Stationery National Contracts,Banner Business Services Ltd,Large,974027,1.8,Stationery National Contracts,Administration
Land Registry,Land Registry,10/10/2013,Internal Solutions Group,Stationery National Contracts,Banner Business Services Ltd,Large,974027,2.55,Stationery National Contracts,Administration
Land Registry,Land Registry,10/10/2013,Wales Office,Stationery National Contracts,Banner Business Services Ltd,Large,974027,11.26,Stationery National Contracts,Administration
Land Registry,Land Registry,10/10/2013,Plymouth Office,Stationery National Contracts,Banner Business Services Ltd,Large,974027,7.26,Stationery National Contracts,Administration
Land Registry,Land Registry,10/10/2013,Gloucester Office,Stationery National Contracts,Banner Business Services Ltd,Large,974027,0.54,Stationery National Contracts,Administration
Land Registry,Land Registry,10/10/2013,Birkenhead Office,Stationery National Contracts,Banner Business Services Ltd,Large,974027,1.8,Stationery National Contracts,Administration
Land Registry,Land Registry,10/10/2013,Internal Solutions Group,Stationery National Contracts,Banner Business Services Ltd,Large,974027,2.55,Stationery National Contracts,Administration
Land Registry,Land Registry,10/10/2013,Weymouth Office,Stationery National Contracts,Banner Business Services Ltd,Large,974027,0.94,Stationery National Contracts,Administration
Land Registry,Land Registry,10/10/2013,Wales Office,Stationery National Contracts,Banner Business Services Ltd,Large,974027,770.22,Stationery National Contracts,Administration
Land Registry,Land Registry,10/10/2013,Plymouth Office,Stationery National Contracts,Banner Business Services Ltd,Large,974027,1,Stationery National Contracts,Administration
Land Registry,Land Registry,10/10/2013,Nottingham Office,Stationery National Contracts,Banner Business Services Ltd,Large,974027,1.62,Stationery National Contracts,Administration
Land Registry,Land Registry,10/10/2013,Fylde Office,Stationery National Contracts,Banner Business Services Ltd,Large,974027,35,Stationery National Contracts,Administration
Land Registry,Land Registry,10/10/2013,Gloucester Office,Stationery National Contracts,Banner Business Services Ltd,Large,974027,1.48,Stationery National Contracts,Administration
Land Registry,Land Registry,10/10/2013,Birkenhead Office,Stationery National Contracts,Banner Business Services Ltd,Large,974027,119.7,Stationery National Contracts,Administration
Land Registry,Land Registry,10/10/2013,IS Service Delivery,Stationery National Contracts,Banner Business Services Ltd,Large,974027,0.42,Stationery National Contracts,Administration
Land Registry,Land Registry,10/10/2013,Internal Solutions Group,Stationery National Contracts,Banner Business Services Ltd,Large,974027,2.55,Stationery National Contracts,Administration
Land Registry,Land Registry,10/10/2013,Projects and Programme Centre,Stationery National Contracts,Banner Business Services Ltd,Large,974027,1.99,Stationery National Contracts,Administration
Land Registry,Land Registry,10/10/2013,Weymouth Office,Stationery National Contracts,Banner Business Services Ltd,Large,974027,13.96,Stationery National Contracts,Administration
Land Registry,Land Registry,10/10/2013,Wales Office,Stationery National Contracts,Banner Business Services Ltd,Large,974027,4,Stationery National Contracts,Administration
Land Registry,Land Registry,10/10/2013,Plymouth Office,Stationery National Contracts,Banner Business Services Ltd,Large,974027,0.9,Stationery National Contracts,Administration
Land Registry,Land Registry,10/10/2013,Peterborough Office,Stationery National Contracts,Banner Business Services Ltd,Large,974027,12.04,Stationery National Contracts,Administration
Land Registry,Land Registry,10/10/2013,Nottingham Office,Stationery National Contracts,Banner Business Services Ltd,Large,974027,2.16,Stationery National Contracts,Administration
Land Registry,Land Registry,10/10/2013,Fylde Office,Stationery National Contracts,Banner Business Services Ltd,Large,974027,73.1,Stationery National Contracts,Administration
Land Registry,Land Registry,10/10/2013,Gloucester Office,Stationery National Contracts,Banner Business Services Ltd,Large,974027,9.01,Stationery National Contracts,Administration
Land Registry,Land Registry,10/10/2013,Coventry Office,Stationery National Contracts,Banner Business Services Ltd,Large,974027,0.6,Stationery National Contracts,Administration
Land Registry,Land Registry,10/10/2013,Birkenhead Office,Stationery National Contracts,Banner Business Services Ltd,Large,974027,325.42,Stationery National Contracts,Administration
Land Registry,Land Registry,10/10/2013,IS Service Delivery,Stationery National Contracts,Banner Business Services Ltd,Large,974027,7.04,Stationery National Contracts,Administration
Land Registry,Land Registry,10/10/2013,Internal Solutions Group,Stationery National Contracts,Banner Business Services Ltd,Large,974027,2.55,Stationery National Contracts,Administration
Land Registry,Land Registry,10/10/2013,Projects and Programme Centre,Stationery National Contracts,Banner Business Services Ltd,Large,974027,15.21,Stationery National Contracts,Administration
Land Registry,Land Registry,10/10/2013,Weymouth Office,Stationery National Contracts,Banner Business Services Ltd,Large,974027,17.22,Stationery National Contracts,Administration
Land Registry,Land Registry,10/10/2013,Wales Office,Stationery National Contracts,Banner Business Services Ltd,Large,974027,6.02,Stationery National Contracts,Administration
Land Registry,Land Registry,10/10/2013,Telford Office,Stationery National Contracts,Banner Business Services Ltd,Large,974027,26.66,Stationery National Contracts,Administration
Land Registry,Land Registry,10/10/2013,Plymouth Office,Stationery National Contracts,Banner Business Services Ltd,Large,974027,18.16,Stationery National Contracts,Administration
Land Registry,Land Registry,10/10/2013,Peterborough Office,Stationery National Contracts,Banner Business Services Ltd,Large,974027,0.82,Stationery National Contracts,Administration
Land Registry,Land Registry,10/10/2013,Nottingham Office,Stationery National Contracts,Banner Business Services Ltd,Large,974027,2.49,Stationery National Contracts,Administration
Land Registry,Land Registry,10/10/2013,Fylde Office,Stationery National Contracts,Banner Business Services Ltd,Large,974027,59.18,Stationery National Contracts,Administration
Land Registry,Land Registry,10/10/2013,Gloucester Office,Stationery National Contracts,Banner Business Services Ltd,Large,974027,17.5,Stationery National Contracts,Administration
Land Registry,Land Registry,10/10/2013,Durham Office,Stationery National Contracts,Banner Business Services Ltd,Large,974027,0.74,Stationery National Contracts,Administration
Land Registry,Land Registry,10/10/2013,Coventry Office,Stationery National Contracts,Banner Business Services Ltd,Large,974027,0.94,Stationery National Contracts,Administration
Land Registry,Land Registry,10/10/2013,Birkenhead Office,Stationery National Contracts,Banner Business Services Ltd,Large,974027,300.12,Stationery National Contracts,Administration
Land Registry,Land Registry,10/10/2013,IS Service Delivery,Stationery National Contracts,Banner Business Services Ltd,Large,974027,1.67,Stationery National Contracts,Administration
Land Registry,Land Registry,10/10/2013,Governance & Policy,Stationery National Contracts,Banner Business Services Ltd,Large,974027,20.1,Stationery National Contracts,Administration
Land Registry,Land Registry,10/10/2013,Internal Solutions Group,Stationery National Contracts,Banner Business Services Ltd,Large,974027,1.46,Stationery National Contracts,Administration
Land Registry,Land Registry,10/10/2013,Projects and Programme Centre,Stationery National Contracts,Banner Business Services Ltd,Large,974027,5.87,Stationery National Contracts,Administration
Land Registry,Land Registry,10/10/2013,Weymouth Office,Stationery National Contracts,Banner Business Services Ltd,Large,974027,22.04,Stationery National Contracts,Administration
Land Registry,Land Registry,10/10/2013,Wales Office,Stationery National Contracts,Banner Business Services Ltd,Large,974027,10.62,Stationery National Contracts,Administration
Land Registry,Land Registry,10/10/2013,Telford Office,Stationery National Contracts,Banner Business Services Ltd,Large,974027,0.8,Stationery National Contracts,Administration
Land Registry,Land Registry,10/10/2013,Plymouth Office,Stationery National Contracts,Banner Business Services Ltd,Large,974027,76.14,Stationery National Contracts,Administration
Land Registry,Land Registry,10/10/2013,Peterborough Office,Stationery National Contracts,Banner Business Services Ltd,Large,974027,55.08,Stationery National Contracts,Administration
Land Registry,Land Registry,10/10/2013,Nottingham Office,Stationery National Contracts,Banner Business Services Ltd,Large,974027,0.43,Stationery National Contracts,Administration
Land Registry,Land Registry,10/10/2013,Fylde Office,Stationery National Contracts,Banner Business Services Ltd,Large,974027,17.5,Stationery National Contracts,Administration
Land Registry,Land Registry,10/10/2013,Gloucester Office,Stationery National Contracts,Banner Business Services Ltd,Large,974027,31.77,Stationery National Contracts,Administration
Land Registry,Land Registry,10/10/2013,Durham Office,Stationery National Contracts,Banner Business Services Ltd,Large,974027,59.18,Stationery National Contracts,Administration
Land Registry,Land Registry,10/10/2013,Coventry Office,Stationery National Contracts,Banner Business Services Ltd,Large,974027,61.81,Stationery National Contracts,Administration
Land Registry,Land Registry,10/10/2013,Birkenhead Office,Stationery National Contracts,Banner Business Services Ltd,Large,974027,92.72,Stationery National Contracts,Administration
Land Registry,Land Registry,10/10/2013,IS Service Delivery,Stationery National Contracts,Banner Business Services Ltd,Large,974027,1.09,Stationery National Contracts,Administration
Land Registry,Land Registry,10/10/2013,Governance & Policy,Stationery National Contracts,Banner Business Services Ltd,Large,974027,16.9,Stationery National Contracts,Administration
Land Registry,Land Registry,10/10/2013,Internal Solutions Group,Stationery National Contracts,Banner Business Services Ltd,Large,974027,4.05,Stationery National Contracts,Administration
Land Registry,Land Registry,10/10/2013,Central Operations Group,Stationery National Contracts,Banner Business Services Ltd,Large,974027,16.49,Stationery National Contracts,Administration
Land Registry,Land Registry,10/10/2013,Projects and Programme Centre,Stationery National Contracts,Banner Business Services Ltd,Large,974027,1.34,Stationery National Contracts,Administration
Land Registry,Land Registry,10/10/2013,Weymouth Office,Stationery National Contracts,Banner Business Services Ltd,Large,974027,102.56,Stationery National Contracts,Administration
Land Registry,Land Registry,10/10/2013,Wales Office,Stationery National Contracts,Banner Business Services Ltd,Large,974027,21.34,Stationery National Contracts,Administration
Land Registry,Land Registry,10/10/2013,Telford Office,Stationery National Contracts,Banner Business Services Ltd,Large,974027,1.23,Stationery National Contracts,Administration
Land Registry,Land Registry,10/10/2013,Plymouth Office,Stationery National Contracts,Banner Business Services Ltd,Large,974027,58.5,Stationery National Contracts,Administration
Land Registry,Land Registry,10/10/2013,Peterborough Office,Stationery National Contracts,Banner Business Services Ltd,Large,974027,161.6,Stationery National Contracts,Administration
Land Registry,Land Registry,10/10/2013,Nottingham Office,Stationery National Contracts,Banner Business Services Ltd,Large,974027,28.61,Stationery National Contracts,Administration
Land Registry,Land Registry,10/10/2013,Fylde Office,Stationery National Contracts,Banner Business Services Ltd,Large,974027,31.74,Stationery National Contracts,Administration
Land Registry,Land Registry,10/10/2013,Gloucester Office,Stationery National Contracts,Banner Business Services Ltd,Large,974027,143.34,Stationery National Contracts,Administration
Land Registry,Land Registry,10/10/2013,Durham Office,Stationery National Contracts,Banner Business Services Ltd,Large,974027,16.63,Stationery National Contracts,Administration
Land Registry,Land Registry,10/10/2013,Coventry Office,Stationery National Contracts,Banner Business Services Ltd,Large,974027,48.73,Stationery National Contracts,Administration
Land Registry,Land Registry,10/10/2013,Birkenhead Office,Stationery National Contracts,Banner Business Services Ltd,Large,974027,136.78,Stationery National Contracts,Administration
Land Registry,Land Registry,10/10/2013,Property Asset Management Group,Stationery National Contracts,Banner Business Services Ltd,Large,974027,1.05,Stationery National Contracts,Administration
Land Registry,Land Registry,10/10/2013,IS Service Delivery,Stationery National Contracts,Banner Business Services Ltd,Large,974027,0.75,Stationery National Contracts,Administration
Land Registry,Land Registry,10/10/2013,Governance & Policy,Stationery National Contracts,Banner Business Services Ltd,Large,974027,21.28,Stationery National Contracts,Administration
Land Registry,Land Registry,10/10/2013,Internal Solutions Group,Stationery National Contracts,Banner Business Services Ltd,Large,974027,10.89,Stationery National Contracts,Administration
Land Registry,Land Registry,10/10/2013,Central Operations Group,Stationery National Contracts,Banner Business Services Ltd,Large,974027,0.57,Stationery National Contracts,Administration
Land Registry,Land Registry,10/10/2013,Projects and Programme Centre,Stationery National Contracts,Banner Business Services Ltd,Large,974027,0.84,Stationery National Contracts,Administration
Land Registry,Land Registry,10/10/2013,Weymouth Office,Stationery National Contracts,Banner Business Services Ltd,Large,974027,58.71,Stationery National Contracts,Administration
Land Registry,Land Registry,10/10/2013,Wales Office,Stationery National Contracts,Banner Business Services Ltd,Large,974027,5.6,Stationery National Contracts,Administration
Land Registry,Land Registry,10/10/2013,Telford Office,Stationery National Contracts,Banner Business Services Ltd,Large,974027,1.57,Stationery National Contracts,Administration
Land Registry,Land Registry,10/10/2013,Plymouth Office,Stationery National Contracts,Banner Business Services Ltd,Large,974027,115,Stationery National Contracts,Administration
Land Registry,Land Registry,10/10/2013,Peterborough Office,Stationery National Contracts,Banner Business Services Ltd,Large,974027,163.6,Stationery National Contracts,Administration
Land Registry,Land Registry,10/10/2013,Nottingham Office,Stationery National Contracts,Banner Business Services Ltd,Large,974027,0.97,Stationery National Contracts,Administration
Land Registry,Land Registry,10/10/2013,Fylde Office,Stationery National Contracts,Banner Business Services Ltd,Large,974027,30.37,Stationery National Contracts,Administration
Land Registry,Land Registry,10/10/2013,Gloucester Office,Stationery National Contracts,Banner Business Services Ltd,Large,974027,29.68,Stationery National Contracts,Administration
Land Registry,Land Registry,10/10/2013,Durham Office,Stationery National Contracts,Banner Business Services Ltd,Large,974027,81.29,Stationery National Contracts,Administration
Land Registry,Land Registry,10/10/2013,Coventry Office,Stationery National Contracts,Banner Business Services Ltd,Large,974027,109.9,Stationery National Contracts,Administration
Land Registry,Land Registry,10/10/2013,Birkenhead Office,Stationery National Contracts,Banner Business Services Ltd,Large,974027,10.84,Stationery National Contracts,Administration
Land Registry,Land Registry,10/10/2013,Nottingham Office,Stationery National Contracts,Banner Business Services Ltd,Large,974027,3.6,Stationery National Contracts,Administration
Land Registry,Land Registry,10/10/2013,Property Asset Management Group,Stationery National Contracts,Banner Business Services Ltd,Large,974027,0.68,Stationery National Contracts,Administration
Land Registry,Land Registry,10/10/2013,IS Service Delivery,Stationery National Contracts,Banner Business Services Ltd,Large,974027,4.37,Stationery National Contracts,Administration
Land Registry,Land Registry,10/10/2013,Governance & Policy,Stationery National Contracts,Banner Business Services Ltd,Large,974027,6.64,Stationery National Contracts,Administration
Land Registry,Land Registry,10/10/2013,Internal Solutions Group,Stationery National Contracts,Banner Business Services Ltd,Large,974027,9.04,Stationery National Contracts,Administration
Land Registry,Land Registry,10/10/2013,Central Operations Group,Stationery National Contracts,Banner Business Services Ltd,Large,974027,0.57,Stationery National Contracts,Administration
Land Registry,Land Registry,10/10/2013,Projects and Programme Centre,Stationery National Contracts,Banner Business Services Ltd,Large,974027,15.98,Stationery National Contracts,Administration
Land Registry,Land Registry,10/10/2013,Property Asset Management Group,Stationery National Contracts,Banner Business Services Ltd,Large,974027,1.09,Stationery National Contracts,Administration
Land Registry,Land Registry,10/10/2013,IS Service Delivery,Stationery National Contracts,Banner Business Services Ltd,Large,974027,8.69,Stationery National Contracts,Administration
Land Registry,Land Registry,10/10/2013,Governance & Policy,Stationery National Contracts,Banner Business Services Ltd,Large,974027,46.97,Stationery National Contracts,Administration
Land Registry,Land Registry,10/10/2013,Internal Solutions Group,Stationery National Contracts,Banner Business Services Ltd,Large,974027,15.1,Stationery National Contracts,Administration
Land Registry,Land Registry,10/10/2013,Independent Complaints Reviewer,Stationery National Contracts,Banner Business Services Ltd,Large,974027,8.15,Stationery National Contracts,Administration
Land Registry,Land Registry,10/10/2013,Customer Services,Stationery National Contracts,Banner Business Services Ltd,Large,974027,13.66,Stationery National Contracts,Administration
Land Registry,Land Registry,10/10/2013,Projects and Programme Centre,Stationery National Contracts,Banner Business Services Ltd,Large,974027,3.99,Stationery National Contracts,Administration
Land Registry,Land Registry,10/10/2013,Finance Group,Stationery National Contracts,Banner Business Services Ltd,Large,974027,1.8,Stationery National Contracts,Administration
Land Registry,Land Registry,10/10/2013,International Unit,Stationery National Contracts,Banner Business Services Ltd,Large,974027,1.11,Stationery National Contracts,Administration
Land Registry,Land Registry,10/10/2013,Chief Executives Office,Stationery National Contracts,Banner Business Services Ltd,Large,974027,25.32,Stationery National Contracts,Administration
Land Registry,Land Registry,10/10/2013,Weymouth Office,Stationery National Contracts,Banner Business Services Ltd,Large,974027,98.87,Stationery National Contracts,Administration
Land Registry,Land Registry,10/10/2013,Wales Office,Stationery National Contracts,Banner Business Services Ltd,Large,974027,407.15,Stationery National Contracts,Administration
Land Registry,Land Registry,10/10/2013,Telford Office,Stationery National Contracts,Banner Business Services Ltd,Large,974027,34.08,Stationery National Contracts,Administration
Land Registry,Land Registry,10/10/2013,Plymouth Office,Stationery National Contracts,Banner Business Services Ltd,Large,974027,294.42,Stationery National Contracts,Administration
Land Registry,Land Registry,10/10/2013,Peterborough Office,Stationery National Contracts,Banner Business Services Ltd,Large,974027,186.52,Stationery National Contracts,Administration
Land Registry,Land Registry,10/10/2013,Nottingham Office,Stationery National Contracts,Banner Business Services Ltd,Large,974027,69.5,Stationery National Contracts,Administration
Land Registry,Land Registry,10/10/2013,Leicester Office,Stationery National Contracts,Banner Business Services Ltd,Large,974027,66.42,Stationery National Contracts,Administration
Land Registry,Land Registry,10/10/2013,Fylde Office,Stationery National Contracts,Banner Business Services Ltd,Large,974027,268.37,Stationery National Contracts,Administration
Land Registry,Land Registry,10/10/2013,Hull Office,Stationery National Contracts,Banner Business Services Ltd,Large,974027,22.58,Stationery National Contracts,Administration
Land Registry,Land Registry,10/10/2013,Gloucester Office,Stationery National Contracts,Banner Business Services Ltd,Large,974027,150.64,Stationery National Contracts,Administration
Land Registry,Land Registry,10/10/2013,Durham Office,Stationery National Contracts,Banner Business Services Ltd,Large,974027,164.25,Stationery National Contracts,Administration
Land Registry,Land Registry,10/10/2013,Coventry Office,Stationery National Contracts,Banner Business Services Ltd,Large,974027,619.62,Stationery National Contracts,Administration
Land Registry,Land Registry,10/10/2013,Birkenhead Office,Stationery National Contracts,Banner Business Services Ltd,Large,974027,87.98,Stationery National Contracts,Administration
Land Registry,Land Registry,10/10/2013,Nottingham Office,Stationery National Contracts,Banner Business Services Ltd,Large,974027,27.82,Stationery National Contracts,Administration
Land Registry,Land Registry,10/10/2013,Business Development,Stationery National Contracts,Banner Business Services Ltd,Large,974027,2.69,Stationery National Contracts,Administration
Land Registry,Land Registry,10/10/2013,Property Asset Management Group,Stationery National Contracts,Banner Business Services Ltd,Large,974027,2.76,Stationery National Contracts,Administration
Land Registry,Land Registry,10/10/2013,IS Service Delivery,Stationery National Contracts,Banner Business Services Ltd,Large,974027,6.16,Stationery National Contracts,Administration
Land Registry,Land Registry,10/10/2013,Governance & Policy,Stationery National Contracts,Banner Business Services Ltd,Large,974027,58.44,Stationery National Contracts,Administration
Land Registry,Land Registry,10/10/2013,Internal Solutions Group,Stationery National Contracts,Banner Business Services Ltd,Large,974027,11.16,Stationery National Contracts,Administration
Land Registry,Land Registry,10/10/2013,Independent Complaints Reviewer,Stationery National Contracts,Banner Business Services Ltd,Large,974027,2.28,Stationery National Contracts,Administration
Land Registry,Land Registry,10/10/2013,Customer Services,Stationery National Contracts,Banner Business Services Ltd,Large,974027,23.62,Stationery National Contracts,Administration
Land Registry,Land Registry,10/10/2013,Projects and Programme Centre,Stationery National Contracts,Banner Business Services Ltd,Large,974027,7.35,Stationery National Contracts,Administration
Land Registry,Land Registry,10/10/2013,Finance Group,Stationery National Contracts,Banner Business Services Ltd,Large,974027,0.32,Stationery National Contracts,Administration
Land Registry,Land Registry,10/10/2013,International Unit,Stationery National Contracts,Banner Business Services Ltd,Large,974027,1.12,Stationery National Contracts,Administration
Land Registry,Land Registry,10/10/2013,Capability,Stationery National Contracts,Banner Business Services Ltd,Large,974027,7.4,Stationery National Contracts,Administration
Land Registry,Land Registry,10/10/2013,HR,Stationery National Contracts,Banner Business Services Ltd,Large,974027,0.2,Stationery National Contracts,Administration
Land Registry,Land Registry,10/10/2013,Chief Executives Office,Stationery National Contracts,Banner Business Services Ltd,Large,974027,19.78,Stationery National Contracts,Administration
Land Registry,Land Registry,10/10/2013,Weymouth Office,Stationery National Contracts,Banner Business Services Ltd,Large,974027,248,Stationery National Contracts,Administration
Land Registry,Land Registry,10/10/2013,Wales Office,Stationery National Contracts,Banner Business Services Ltd,Large,974027,333.22,Stationery National Contracts,Administration
Land Registry,Land Registry,10/10/2013,Telford Office,Stationery National Contracts,Banner Business Services Ltd,Large,974027,95.41,Stationery National Contracts,Administration
Land Registry,Land Registry,10/10/2013,Plymouth Office,Stationery National Contracts,Banner Business Services Ltd,Large,974027,456.38,Stationery National Contracts,Administration
Land Registry,Land Registry,10/10/2013,Peterborough Office,Stationery National Contracts,Banner Business Services Ltd,Large,974027,108.34,Stationery National Contracts,Administration
Land Registry,Land Registry,10/10/2013,Nottingham Office,Stationery National Contracts,Banner Business Services Ltd,Large,974027,130.36,Stationery National Contracts,Administration
Land Registry,Land Registry,10/10/2013,Leicester Office,Stationery National Contracts,Banner Business Services Ltd,Large,974027,143.34,Stationery National Contracts,Administration
Land Registry,Land Registry,10/10/2013,Fylde Office,Stationery National Contracts,Banner Business Services Ltd,Large,974027,388.76,Stationery National Contracts,Administration
Land Registry,Land Registry,10/10/2013,Hull Office,Stationery National Contracts,Banner Business Services Ltd,Large,974027,287.94,Stationery National Contracts,Administration
Land Registry,Land Registry,10/10/2013,Gloucester Office,Stationery National Contracts,Banner Business Services Ltd,Large,974027,173.78,Stationery National Contracts,Administration
Land Registry,Land Registry,10/10/2013,Durham Office,Stationery National Contracts,Banner Business Services Ltd,Large,974027,244.6,Stationery National Contracts,Administration
Land Registry,Land Registry,10/10/2013,Croydon Office,Stationery National Contracts,Banner Business Services Ltd,Large,974027,88.84,Stationery National Contracts,Administration
Land Registry,Land Registry,10/10/2013,Coventry Office,Stationery National Contracts,Banner Business Services Ltd,Large,974027,316.99,Stationery National Contracts,Administration
Land Registry,Land Registry,10/10/2013,Hull Office,Stationery National Contracts,Banner Business Services Ltd,Large,974027,4.84,Stationery National Contracts,Administration
Land Registry,Land Registry,10/10/2013,Gloucester Office,Stationery National Contracts,Banner Business Services Ltd,Large,974027,32.74,Stationery National Contracts,Administration
Land Registry,Land Registry,10/10/2013,Projects and Programme Centre,Stationery National Contracts,Banner Business Services Ltd,Large,974027,0.46,Stationery National Contracts,Administration
Land Registry,Land Registry,10/10/2013,International Unit,Stationery National Contracts,Banner Business Services Ltd,Large,974027,1.62,Stationery National Contracts,Administration
Land Registry,Land Registry,10/10/2013,Weymouth Office,Stationery National Contracts,Banner Business Services Ltd,Large,974027,60.82,Stationery National Contracts,Administration
Land Registry,Land Registry,10/10/2013,Wales Office,Stationery National Contracts,Banner Business Services Ltd,Large,974027,94.76,Stationery National Contracts,Administration
Land Registry,Land Registry,10/10/2013,Telford Office,Stationery National Contracts,Banner Business Services Ltd,Large,974027,1.57,Stationery National Contracts,Administration
Land Registry,Land Registry,10/10/2013,Plymouth Office,Stationery National Contracts,Banner Business Services Ltd,Large,974027,534.5,Stationery National Contracts,Administration
Land Registry,Land Registry,10/10/2013,Peterborough Office,Stationery National Contracts,Banner Business Services Ltd,Large,974027,66.29,Stationery National Contracts,Administration
Land Registry,Land Registry,10/10/2013,Nottingham Office,Stationery National Contracts,Banner Business Services Ltd,Large,974027,1.3,Stationery National Contracts,Administration
Land Registry,Land Registry,10/10/2013,Leicester Office,Stationery National Contracts,Banner Business Services Ltd,Large,974027,3.09,Stationery National Contracts,Administration
Land Registry,Land Registry,10/10/2013,Fylde Office,Stationery National Contracts,Banner Business Services Ltd,Large,974027,109.93,Stationery National Contracts,Administration
Land Registry,Land Registry,10/10/2013,Hull Office,Stationery National Contracts,Banner Business Services Ltd,Large,974027,10.18,Stationery National Contracts,Administration
Land Registry,Land Registry,10/10/2013,Gloucester Office,Stationery National Contracts,Banner Business Services Ltd,Large,974027,69.91,Stationery National Contracts,Administration
Land Registry,Land Registry,10/10/2013,Durham Office,Stationery National Contracts,Banner Business Services Ltd,Large,974027,49.56,Stationery National Contracts,Administration
Land Registry,Land Registry,10/10/2013,Coventry Office,Stationery National Contracts,Banner Business Services Ltd,Large,974027,217.68,Stationery National Contracts,Administration
Land Registry,Land Registry,10/10/2013,Birkenhead Office,Stationery National Contracts,Banner Business Services Ltd,Large,974027,381.9,Stationery National Contracts,Administration
Land Registry,Land Registry,10/10/2013,Nottingham Office,Stationery National Contracts,Banner Business Services Ltd,Large,974027,19.74,Stationery National Contracts,Administration
Land Registry,Land Registry,10/10/2013,Property Asset Management Group,Stationery National Contracts,Banner Business Services Ltd,Large,974027,8.87,Stationery National Contracts,Administration
Land Registry,Land Registry,10/10/2013,IS Service Delivery,Stationery National Contracts,Banner Business Services Ltd,Large,974027,10.61,Stationery National Contracts,Administration
Land Registry,Land Registry,10/10/2013,Governance & Policy,Stationery National Contracts,Banner Business Services Ltd,Large,974027,14.04,Stationery National Contracts,Administration
Land Registry,Land Registry,10/10/2013,Internal Solutions Group,Stationery National Contracts,Banner Business Services Ltd,Large,974027,23.33,Stationery National Contracts,Administration
Land Registry,Land Registry,10/10/2013,Central Operations Group,Stationery National Contracts,Banner Business Services Ltd,Large,974027,2.63,Stationery National Contracts,Administration
Land Registry,Land Registry,10/10/2013,Projects and Programme Centre,Stationery National Contracts,Banner Business Services Ltd,Large,974027,11.38,Stationery National Contracts,Administration
Land Registry,Land Registry,10/10/2013,International Unit,Stationery National Contracts,Banner Business Services Ltd,Large,974027,1.11,Stationery National Contracts,Administration
Land Registry,Land Registry,10/10/2013,Weymouth Office,Stationery National Contracts,Banner Business Services Ltd,Large,974027,184.24,Stationery National Contracts,Administration
Land Registry,Land Registry,10/10/2013,Wales Office,Stationery National Contracts,Banner Business Services Ltd,Large,974027,456.91,Stationery National Contracts,Administration
Land Registry,Land Registry,10/10/2013,Telford Office,Stationery National Contracts,Banner Business Services Ltd,Large,974027,8.08,Stationery National Contracts,Administration
Land Registry,Land Registry,10/10/2013,Plymouth Office,Stationery National Contracts,Banner Business Services Ltd,Large,974027,180.79,Stationery National Contracts,Administration
Land Registry,Land Registry,10/10/2013,Peterborough Office,Stationery National Contracts,Banner Business Services Ltd,Large,974027,111.92,Stationery National Contracts,Administration
Land Registry,Land Registry,10/10/2013,Nottingham Office,Stationery National Contracts,Banner Business Services Ltd,Large,974027,54.63,Stationery National Contracts,Administration
Land Registry,Land Registry,10/10/2013,Leicester Office,Stationery National Contracts,Banner Business Services Ltd,Large,974027,6.41,Stationery National Contracts,Administration
Land Registry,Land Registry,10/10/2013,Fylde Office,Stationery National Contracts,Banner Business Services Ltd,Large,974027,152.25,Stationery National Contracts,Administration
Land Registry,Land Registry,10/10/2013,Hull Office,Stationery National Contracts,Banner Business Services Ltd,Large,974027,28.07,Stationery National Contracts,Administration
Land Registry,Land Registry,10/10/2013,Gloucester Office,Stationery National Contracts,Banner Business Services Ltd,Large,974027,42.55,Stationery National Contracts,Administration
Land Registry,Land Registry,10/10/2013,Durham Office,Stationery National Contracts,Banner Business Services Ltd,Large,974027,164.51,Stationery National Contracts,Administration
Land Registry,Land Registry,10/10/2013,Croydon Office,Stationery National Contracts,Banner Business Services Ltd,Large,974027,95.19,Stationery National Contracts,Administration
Land Registry,Land Registry,10/10/2013,Coventry Office,Stationery National Contracts,Banner Business Services Ltd,Large,974027,423.03,Stationery National Contracts,Administration
Land Registry,Land Registry,10/10/2013,Birkenhead Office,Stationery National Contracts,Banner Business Services Ltd,Large,974027,362.38,Stationery National Contracts,Administration
Land Registry,Land Registry,10/10/2013,Nottingham Office,Stationery National Contracts,Banner Business Services Ltd,Large,974027,43.35,Stationery National Contracts,Administration
Land Registry,Land Registry,10/10/2013,Birkenhead Office,Stationery National Contracts,Banner Business Services Ltd,Large,974027,434.45,Stationery National Contracts,Administration
Land Registry,Land Registry,10/10/2013,Nottingham Office,Stationery National Contracts,Banner Business Services Ltd,Large,974027,8.75,Stationery National Contracts,Administration
Land Registry,Land Registry,10/10/2013,Business Development,Stationery National Contracts,Banner Business Services Ltd,Large,974027,1.99,Stationery National Contracts,Administration
Land Registry,Land Registry,10/10/2013,Property Asset Management Group,Stationery National Contracts,Banner Business Services Ltd,Large,974027,5.88,Stationery National Contracts,Administration
Land Registry,Land Registry,10/10/2013,IS Service Delivery,Stationery National Contracts,Banner Business Services Ltd,Large,974027,1.4,Stationery National Contracts,Administration
Land Registry,Land Registry,10/10/2013,Governance & Policy,Stationery National Contracts,Banner Business Services Ltd,Large,974027,15,Stationery National Contracts,Administration
Land Registry,Land Registry,10/10/2013,Internal Solutions Group,Stationery National Contracts,Banner Business Services Ltd,Large,974027,16.72,Stationery National Contracts,Administration
Land Registry,Land Registry,10/10/2013,Independent Complaints Reviewer,Stationery National Contracts,Banner Business Services Ltd,Large,974027,0.74,Stationery National Contracts,Administration
Land Registry,Land Registry,10/10/2013,Central Operations Group,Stationery National Contracts,Banner Business Services Ltd,Large,974027,0.94,Stationery National Contracts,Administration
Land Registry,Land Registry,10/10/2013,Projects and Programme Centre,Stationery National Contracts,Banner Business Services Ltd,Large,974027,4.39,Stationery National Contracts,Administration
Land Registry,Land Registry,10/10/2013,Finance Group,Stationery National Contracts,Banner Business Services Ltd,Large,974027,11.89,Stationery National Contracts,Administration
Land Registry,Land Registry,10/10/2013,International Unit,Stationery National Contracts,Banner Business Services Ltd,Large,974027,1.11,Stationery National Contracts,Administration
Land Registry,Land Registry,10/10/2013,Capability,Stationery National Contracts,Banner Business Services Ltd,Large,974027,15.4,Stationery National Contracts,Administration
Land Registry,Land Registry,10/10/2013,HR,Stationery National Contracts,Banner Business Services Ltd,Large,974027,14.3,Stationery National Contracts,Administration
Land Registry,Land Registry,10/10/2013,Chief Executives Office,Stationery National Contracts,Banner Business Services Ltd,Large,974027,27.14,Stationery National Contracts,Administration
Land Registry,Land Registry,10/10/2013,IS Service Delivery,Stationery National Contracts,Banner Business Services Ltd,Large,974027,74.5,Stationery National Contracts,Administration
Land Registry,Land Registry,10/10/2013,Land Charges,Stationery National Contracts,Banner Business Services Ltd,Large,974027,176.37,Stationery National Contracts,Administration
Land Registry,Land Registry,10/10/2013,Weymouth Office,Stationery National Contracts,Banner Business Services Ltd,Large,974027,489.15,Stationery National Contracts,Administration
Land Registry,Land Registry,10/10/2013,Wales Office,Stationery National Contracts,Banner Business Services Ltd,Large,974027,259.83,Stationery National Contracts,Administration
Land Registry,Land Registry,10/10/2013,Telford Office,Stationery National Contracts,Banner Business Services Ltd,Large,974027,78.85,Stationery National Contracts,Administration
Land Registry,Land Registry,10/10/2013,Plymouth Office,Stationery National Contracts,Banner Business Services Ltd,Large,974027,272.58,Stationery National Contracts,Administration
Land Registry,Land Registry,10/10/2013,Peterborough Office,Stationery National Contracts,Banner Business Services Ltd,Large,974027,157.89,Stationery National Contracts,Administration
Land Registry,Land Registry,10/10/2013,Nottingham Office,Stationery National Contracts,Banner Business Services Ltd,Large,974027,115.78,Stationery National Contracts,Administration
Land Registry,Land Registry,10/10/2013,Leicester Office,Stationery National Contracts,Banner Business Services Ltd,Large,974027,825.09,Stationery National Contracts,Administration
Land Registry,Land Registry,10/10/2013,Fylde Office,Stationery National Contracts,Banner Business Services Ltd,Large,974027,304.24,Stationery National Contracts,Administration
Land Registry,Land Registry,10/10/2013,Hull Office,Stationery National Contracts,Banner Business Services Ltd,Large,974027,563.49,Stationery National Contracts,Administration
Land Registry,Land Registry,10/10/2013,Land Charges,Stationery National Contracts,Banner Business Services Ltd,Large,974027,0.84,Stationery National Contracts,Administration
Land Registry,Land Registry,10/10/2013,Weymouth Office,Stationery National Contracts,Banner Business Services Ltd,Large,974027,263.18,Stationery National Contracts,Administration
Land Registry,Land Registry,10/10/2013,Wales Office,Stationery National Contracts,Banner Business Services Ltd,Large,974027,394.07,Stationery National Contracts,Administration
Land Registry,Land Registry,10/10/2013,Telford Office,Stationery National Contracts,Banner Business Services Ltd,Large,974027,907.14,Stationery National Contracts,Administration
Land Registry,Land Registry,10/10/2013,Plymouth Office,Stationery National Contracts,Banner Business Services Ltd,Large,974027,139.22,Stationery National Contracts,Administration
Land Registry,Land Registry,10/10/2013,Peterborough Office,Stationery National Contracts,Banner Business Services Ltd,Large,974027,167.54,Stationery National Contracts,Administration
Land Registry,Land Registry,10/10/2013,Nottingham Office,Stationery National Contracts,Banner Business Services Ltd,Large,974027,911.09,Stationery National Contracts,Administration
Land Registry,Land Registry,10/10/2013,Leicester Office,Stationery National Contracts,Banner Business Services Ltd,Large,974027,393.93,Stationery National Contracts,Administration
Land Registry,Land Registry,10/10/2013,Fylde Office,Stationery National Contracts,Banner Business Services Ltd,Large,974027,919.48,Stationery National Contracts,Administration
Land Registry,Land Registry,10/10/2013,Hull Office,Stationery National Contracts,Banner Business Services Ltd,Large,974027,853.78,Stationery National Contracts,Administration
Land Registry,Land Registry,10/10/2013,Gloucester Office,Stationery National Contracts,Banner Business Services Ltd,Large,974027,315.67,Stationery National Contracts,Administration
Land Registry,Land Registry,10/10/2013,Durham Office,Stationery National Contracts,Banner Business Services Ltd,Large,974027,1456.67,Stationery National Contracts,Administration
Land Registry,Land Registry,10/10/2013,Croydon Office,Stationery National Contracts,Banner Business Services Ltd,Large,974027,135.96,Stationery National Contracts,Administration
Land Registry,Land Registry,10/10/2013,Gloucester Office,Stationery National Contracts,Banner Business Services Ltd,Large,974027,378.1,Stationery National Contracts,Administration
Land Registry,Land Registry,10/10/2013,Durham Office,Stationery National Contracts,Banner Business Services Ltd,Large,974027,729.09,Stationery National Contracts,Administration
Land Registry,Land Registry,10/10/2013,Croydon Office,Stationery National Contracts,Banner Business Services Ltd,Large,974027,381.94,Stationery National Contracts,Administration
Land Registry,Land Registry,10/10/2013,Coventry Office,Stationery National Contracts,Banner Business Services Ltd,Large,974027,680.93,Stationery National Contracts,Administration
Land Registry,Land Registry,10/10/2013,Birkenhead Office,Stationery National Contracts,Banner Business Services Ltd,Large,974027,492.68,Stationery National Contracts,Administration
Land Registry,Land Registry,10/10/2013,Nottingham Office,Stationery National Contracts,Banner Business Services Ltd,Large,974027,26.25,Stationery National Contracts,Administration
Land Registry,Land Registry,10/10/2013,Business Development,Stationery National Contracts,Banner Business Services Ltd,Large,974027,10.5,Stationery National Contracts,Administration
Land Registry,Land Registry,10/10/2013,Property Asset Management Group,Stationery National Contracts,Banner Business Services Ltd,Large,974027,1.99,Stationery National Contracts,Administration
Land Registry,Land Registry,10/10/2013,IS Service Delivery,Stationery National Contracts,Banner Business Services Ltd,Large,974027,20.85,Stationery National Contracts,Administration
Land Registry,Land Registry,10/10/2013,Governance & Policy,Stationery National Contracts,Banner Business Services Ltd,Large,974027,33.51,Stationery National Contracts,Administration
Land Registry,Land Registry,10/10/2013,Internal Solutions Group,Stationery National Contracts,Banner Business Services Ltd,Large,974027,13.85,Stationery National Contracts,Administration
Land Registry,Land Registry,10/10/2013,Guarantee & Litigation,Stationery National Contracts,Banner Business Services Ltd,Large,974027,5.68,Stationery National Contracts,Administration
Land Registry,Land Registry,10/10/2013,Registration Legal Services Group,Stationery National Contracts,Banner Business Services Ltd,Large,974027,3.01,Stationery National Contracts,Administration
Land Registry,Land Registry,10/10/2013,Independent Complaints Reviewer,Stationery National Contracts,Banner Business Services Ltd,Large,974027,0.89,Stationery National Contracts,Administration
Land Registry,Land Registry,10/10/2013,Central Operations Group,Stationery National Contracts,Banner Business Services Ltd,Large,974027,0.8,Stationery National Contracts,Administration
Land Registry,Land Registry,10/10/2013,Projects and Programme Centre,Stationery National Contracts,Banner Business Services Ltd,Large,974027,11.26,Stationery National Contracts,Administration
Land Registry,Land Registry,10/10/2013,Finance Group,Stationery National Contracts,Banner Business Services Ltd,Large,974027,29.47,Stationery National Contracts,Administration
Land Registry,Land Registry,10/10/2013,International Unit,Stationery National Contracts,Banner Business Services Ltd,Large,974027,13.19,Stationery National Contracts,Administration
Land Registry,Land Registry,10/10/2013,Capability,Stationery National Contracts,Banner Business Services Ltd,Large,974027,20.4,Stationery National Contracts,Administration
Land Registry,Land Registry,10/10/2013,HR,Stationery National Contracts,Banner Business Services Ltd,Large,974027,2,Stationery National Contracts,Administration
Land Registry,Land Registry,10/10/2013,Chief Executives Office,Stationery National Contracts,Banner Business Services Ltd,Large,974027,13.86,Stationery National Contracts,Administration
Land Registry,Land Registry,10/10/2013,IS Service Delivery,Stationery National Contracts,Banner Business Services Ltd,Large,974027,223.5,Stationery National Contracts,Administration
Land Registry,Land Registry,10/10/2013,Land Charges,Stationery National Contracts,Banner Business Services Ltd,Large,974027,50.1,Stationery National Contracts,Administration
Land Registry,Land Registry,10/10/2013,Croydon Office,Stationery National Contracts,Banner Business Services Ltd,Large,974027,288.35,Stationery National Contracts,Administration
Land Registry,Land Registry,10/10/2013,Coventry Office,Stationery National Contracts,Banner Business Services Ltd,Large,974027,1549.15,Stationery National Contracts,Administration
Land Registry,Land Registry,10/10/2013,Birkenhead Office,Stationery National Contracts,Banner Business Services Ltd,Large,974027,750.78,Stationery National Contracts,Administration
Land Registry,Land Registry,10/10/2013,Croydon Office,Stationery National Contracts,Banner Business Services Ltd,Large,974027,13.68,Stationery National Contracts,Administration
Land Registry,Land Registry,10/10/2013,Nottingham Office,Stationery National Contracts,Banner Business Services Ltd,Large,974027,29.59,Stationery National Contracts,Administration
Land Registry,Land Registry,10/10/2013,Business Development,Stationery National Contracts,Banner Business Services Ltd,Large,974027,5.53,Stationery National Contracts,Administration
Land Registry,Land Registry,10/10/2013,IS Service Delivery,Stationery National Contracts,Banner Business Services Ltd,Large,974027,42.06,Stationery National Contracts,Administration
Land Registry,Land Registry,10/10/2013,Governance & Policy,Stationery National Contracts,Banner Business Services Ltd,Large,974027,44.62,Stationery National Contracts,Administration
Land Registry,Land Registry,10/10/2013,Internal Solutions Group,Stationery National Contracts,Banner Business Services Ltd,Large,974027,125.45,Stationery National Contracts,Administration
Land Registry,Land Registry,10/10/2013,Guarantee & Litigation,Stationery National Contracts,Banner Business Services Ltd,Large,974027,2.89,Stationery National Contracts,Administration
Land Registry,Land Registry,10/10/2013,Registration Legal Services Group,Stationery National Contracts,Banner Business Services Ltd,Large,974027,6.3,Stationery National Contracts,Administration
Land Registry,Land Registry,10/10/2013,Independent Complaints Reviewer,Stationery National Contracts,Banner Business Services Ltd,Large,974027,71.5,Stationery National Contracts,Administration
Land Registry,Land Registry,10/10/2013,Central RFS,Stationery National Contracts,Banner Business Services Ltd,Large,974027,576.47,Stationery National Contracts,Administration
Land Registry,Land Registry,10/10/2013,Central Operations Group,Stationery National Contracts,Banner Business Services Ltd,Large,974027,1.75,Stationery National Contracts,Administration
Land Registry,Land Registry,10/10/2013,Projects and Programme Centre,Stationery National Contracts,Banner Business Services Ltd,Large,974027,12.45,Stationery National Contracts,Administration
Land Registry,Land Registry,10/10/2013,Corp Procurement,Stationery National Contracts,Banner Business Services Ltd,Large,974027,37.95,Stationery National Contracts,Administration
Land Registry,Land Registry,10/10/2013,Finance Group,Stationery National Contracts,Banner Business Services Ltd,Large,974027,44.59,Stationery National Contracts,Administration
Land Registry,Land Registry,10/10/2013,International Unit,Stationery National Contracts,Banner Business Services Ltd,Large,974027,13.68,Stationery National Contracts,Administration
Land Registry,Land Registry,10/10/2013,Capability,Stationery National Contracts,Banner Business Services Ltd,Large,974027,22.16,Stationery National Contracts,Administration
Land Registry,Land Registry,10/10/2013,Learning and Development,Stationery National Contracts,Banner Business Services Ltd,Large,974027,37.9,Stationery National Contracts,Administration
Land Registry,Land Registry,10/10/2013,HR,Stationery National Contracts,Banner Business Services Ltd,Large,974027,38.3,Stationery National Contracts,Administration
Land Registry,Land Registry,10/10/2013,Chief Executives Office,Stationery National Contracts,Banner Business Services Ltd,Large,974027,31.51,Stationery National Contracts,Administration
Land Registry,Land Registry,10/10/2013,IS Service Delivery,Stationery National Contracts,Banner Business Services Ltd,Large,974027,1081.5,Stationery National Contracts,Administration
Land Registry,Land Registry,10/10/2013,Land Charges,Stationery National Contracts,Banner Business Services Ltd,Large,974027,205.1,Stationery National Contracts,Administration
Land Registry,Land Registry,10/10/2013,Weymouth Office,Stationery National Contracts,Banner Business Services Ltd,Large,974027,538.96,Stationery National Contracts,Administration
Land Registry,Land Registry,10/10/2013,Wales Office,Stationery National Contracts,Banner Business Services Ltd,Large,974027,2017.78,Stationery National Contracts,Administration
Land Registry,Land Registry,10/10/2013,Telford Office,Stationery National Contracts,Banner Business Services Ltd,Large,974027,1108.7,Stationery National Contracts,Administration
Land Registry,Land Registry,10/10/2013,Plymouth Office,Stationery National Contracts,Banner Business Services Ltd,Large,974027,349.83,Stationery National Contracts,Administration
Land Registry,Land Registry,10/10/2013,Peterborough Office,Stationery National Contracts,Banner Business Services Ltd,Large,974027,1071.11,Stationery National Contracts,Administration
Land Registry,Land Registry,10/10/2013,Nottingham Office,Stationery National Contracts,Banner Business Services Ltd,Large,974027,1937.5,Stationery National Contracts,Administration
Land Registry,Land Registry,10/10/2013,Leicester Office,Stationery National Contracts,Banner Business Services Ltd,Large,974027,674.94,Stationery National Contracts,Administration
Land Registry,Land Registry,10/10/2013,Fylde Office,Stationery National Contracts,Banner Business Services Ltd,Large,974027,410.74,Stationery National Contracts,Administration
Land Registry,Land Registry,10/10/2013,Hull Office,Stationery National Contracts,Banner Business Services Ltd,Large,974027,545.86,Stationery National Contracts,Administration
Land Registry,Land Registry,10/10/2013,Gloucester Office,Stationery National Contracts,Banner Business Services Ltd,Large,974027,1612.54,Stationery National Contracts,Administration
Land Registry,Land Registry,10/10/2013,Durham Office,Stationery National Contracts,Banner Business Services Ltd,Large,974027,1737.14,Stationery National Contracts,Administration
Land Registry,Land Registry,10/10/2013,Croydon Office,Stationery National Contracts,Banner Business Services Ltd,Large,974027,1868.23,Stationery National Contracts,Administration
Land Registry,Land Registry,10/10/2013,Coventry Office,Stationery National Contracts,Banner Business Services Ltd,Large,974027,3058.04,Stationery National Contracts,Administration
Land Registry,Land Registry,10/10/2013,Birkenhead Office,Stationery National Contracts,Banner Business Services Ltd,Large,974027,458.54,Stationery National Contracts,Administration
Land Registry,Land Registry,10/10/2013,Central Facilities Management Team,Waste Disposal,Banner Business Services Ltd,Large,974027,19133.05,Waste Disposal,Administration
Land Registry,Land Registry,10/10/2013,Hull Office,Rates Payable,Kingston Upon Hull City Council,Large,474811,13424,Rates Payable,Administration
Land Registry,Land Registry,11/10/2013,Dir: HR,Consultancy Non-IT Implement,Deloitte MCS Ltd,Large,974284,56312,Consultancy Non-IT Implement,Administration
Land Registry,Land Registry,11/10/2013,Dir: HR,Consultancy Non-IT Advice Only,Deloitte MCS Ltd,Large,974284,-56312,Consultancy Non-IT Advice Only,Administration
Land Registry,Land Registry,11/10/2013,Dir: HR,Consultancy Non-IT Implement,Deloitte MCS Ltd,Large,974284,42720,Consultancy Non-IT Implement,Administration
Land Registry,Land Registry,11/10/2013,Dir: HR,Consultancy Non-IT Advice Only,Deloitte MCS Ltd,Large,974284,75780,Consultancy Non-IT Advice Only,Administration
Land Registry,Land Registry,11/10/2013,IS Service Delivery,Computer Equipment Maintenance,IBM United Kingdom Ltd,Large,974285,62250,Computer Equipment Maintenance,Administration
Land Registry,Land Registry,11/10/2013,IS Service Delivery,Computer Equipment Maintenance,Innovation Data Processing Ltd,SME,974286,53261,Computer Equipment Maintenance,Administration
Land Registry,Land Registry,11/10/2013,Land Charges,Letter Post,Royal Mail,Large,974297,17.41,Letter Post,Administration
Land Registry,Land Registry,11/10/2013,Birkenhead Office,Letter Post,Royal Mail,Large,974297,3.36,Letter Post,Administration
Land Registry,Land Registry,11/10/2013,Central Facilities Management Team,Letter Post,Royal Mail,Large,974297,1.14,Letter Post,Administration
Land Registry,Land Registry,11/10/2013,Weymouth Office,Letter Post,Royal Mail,Large,974297,10.43,Letter Post,Administration
Land Registry,Land Registry,11/10/2013,Durham Office,Letter Post,Royal Mail,Large,974297,2.71,Letter Post,Administration
Land Registry,Land Registry,11/10/2013,Croydon Office,Letter Post,Royal Mail,Large,974297,14.9,Letter Post,Administration
Land Registry,Land Registry,11/10/2013,Telford Office,Letter Post,Royal Mail,Large,974297,39.76,Letter Post,Administration
Land Registry,Land Registry,11/10/2013,Plymouth Office,Letter Post,Royal Mail,Large,974297,52.25,Letter Post,Administration
Land Registry,Land Registry,11/10/2013,Land Charges,Letter Post,Royal Mail,Large,974297,1.12,Letter Post,Administration
Land Registry,Land Registry,11/10/2013,Wales Office,Letter Post,Royal Mail,Large,974297,22.29,Letter Post,Administration
Land Registry,Land Registry,11/10/2013,Nottingham Office,Letter Post,Royal Mail,Large,974297,3.22,Letter Post,Administration
Land Registry,Land Registry,11/10/2013,Fylde Office,Letter Post,Royal Mail,Large,974297,6980.36,Letter Post,Administration
Land Registry,Land Registry,11/10/2013,Birkenhead Office,Letter Post,Royal Mail,Large,974297,5133.84,Letter Post,Administration
Land Registry,Land Registry,11/10/2013,Nottingham Office,Letter Post,Royal Mail,Large,974297,4663.95,Letter Post,Administration
Land Registry,Land Registry,11/10/2013,Durham Office,Letter Post,Royal Mail,Large,974297,8636.02,Letter Post,Administration
Land Registry,Land Registry,11/10/2013,Hull Office,Letter Post,Royal Mail,Large,974297,2569.43,Letter Post,Administration
Land Registry,Land Registry,11/10/2013,Croydon Office,Letter Post,Royal Mail,Large,974297,2147.89,Letter Post,Administration
Land Registry,Land Registry,11/10/2013,Nottingham Office,Letter Post,Royal Mail,Large,974297,115.82,Letter Post,Administration
Land Registry,Land Registry,11/10/2013,Peterborough Office,Letter Post,Royal Mail,Large,974297,2620.5,Letter Post,Administration
Land Registry,Land Registry,11/10/2013,Telford Office,Letter Post,Royal Mail,Large,974297,3532.31,Letter Post,Administration
Land Registry,Land Registry,11/10/2013,Birkenhead Office,Letter Post,Royal Mail,Large,974297,63.16,Letter Post,Administration
Land Registry,Land Registry,11/10/2013,Coventry Office,Letter Post,Royal Mail,Large,974297,20.7,Letter Post,Administration
Land Registry,Land Registry,11/10/2013,Peterborough Office,Parcel and Datapost,Royal Mail,Large,974297,15.46,Parcel and Datapost,Administration
Land Registry,Land Registry,11/10/2013,Hull Office,Letter Post,Royal Mail,Large,974297,23.29,Letter Post,Administration
Land Registry,Land Registry,11/10/2013,Durham Office,Letter Post,Royal Mail,Large,974297,39.14,Letter Post,Administration
Land Registry,Land Registry,11/10/2013,Leicester Office,Letter Post,Royal Mail,Large,974297,2332.74,Letter Post,Administration
Land Registry,Land Registry,11/10/2013,Weymouth Office,Letter Post,Royal Mail,Large,974297,59.34,Letter Post,Administration
Land Registry,Land Registry,11/10/2013,Coventry Office,Letter Post,Royal Mail,Large,974297,10034.93,Letter Post,Administration
Land Registry,Land Registry,11/10/2013,Plymouth Office,Letter Post,Royal Mail,Large,974297,3.36,Letter Post,Administration
Land Registry,Land Registry,11/10/2013,Land Charges,Letter Post,Royal Mail,Large,974297,983.32,Letter Post,Administration
Land Registry,Land Registry,11/10/2013,Plymouth Office,Letter Post,Royal Mail,Large,974297,2949.96,Letter Post,Administration
Land Registry,Land Registry,11/10/2013,Land Charges,Letter Post,Royal Mail,Large,974297,5.12,Letter Post,Administration
Land Registry,Land Registry,11/10/2013,Plymouth Office,Letter Post,Royal Mail,Large,974297,15.38,Letter Post,Administration
Land Registry,Land Registry,11/10/2013,Land Charges,Letter Post,Royal Mail,Large,974297,1.78,Letter Post,Administration
Land Registry,Land Registry,11/10/2013,IS Service Delivery,Letter Post,Royal Mail,Large,974297,16461.74,Letter Post,Administration
Land Registry,Land Registry,11/10/2013,Gloucester Office,Letter Post,Royal Mail,Large,974297,3979.4,Letter Post,Administration
Land Registry,Land Registry,11/10/2013,Weymouth Office,Letter Post,Royal Mail,Large,974297,2717.16,Letter Post,Administration
Land Registry,Land Registry,11/10/2013,Wales Office,Letter Post,Royal Mail,Large,974297,7162.35,Letter Post,Administration
Land Registry,Land Registry,11/10/2013,Plymouth Office,Letter Post,Royal Mail,Large,974297,5.34,Letter Post,Administration
Land Registry,Land Registry,11/10/2013,Nottingham Office,Letter Post,Royal Mail,Large,974297,283.33,Letter Post,Administration
Land Registry,Land Registry,11/10/2013,Weymouth Office,Letter Post,Royal Mail,Large,974297,283.33,Letter Post,Administration
Land Registry,Land Registry,11/10/2013,Coventry Office,Letter Post,Royal Mail,Large,974297,283.33,Letter Post,Administration
Land Registry,Land Registry,11/10/2013,Leicester Office,Letter Post,Royal Mail,Large,974297,283.33,Letter Post,Administration
Land Registry,Land Registry,11/10/2013,Croydon Office,Letter Post,Royal Mail,Large,974297,283.33,Letter Post,Administration
Land Registry,Land Registry,11/10/2013,Gloucester Office,Letter Post,Royal Mail,Large,974297,283.33,Letter Post,Administration
Land Registry,Land Registry,11/10/2013,Durham Office,Letter Post,Royal Mail,Large,974297,283.33,Letter Post,Administration
Land Registry,Land Registry,11/10/2013,Croydon Office,Letter Post,Royal Mail,Large,974297,283.33,Letter Post,Administration
Land Registry,Land Registry,11/10/2013,Weymouth Office,Letter Post,Royal Mail,Large,974297,45,Letter Post,Administration
Land Registry,Land Registry,15/10/2013,Independent Adjudicator,Independent Adjudicators's Office Costs,HM Courts & Tribunals Service,Large,974626,1025515,Independent Adjudicators's Office Costs,Administration
Land Registry,Land Registry,16/10/2013,HR,Taxation of Relocation Expenses,H M Revenue and Customs,Large,975077,142437.54,Taxation of Relocation Expenses,Administration
Land Registry,Land Registry,16/10/2013,Customer Services,Travel & Subsistence General Duty,Redfern Travel Ltd,Large,975080,67.05,Travel & Subsistence General Duty,Administration
Land Registry,Land Registry,16/10/2013,International Unit,Travel & Subsistence General Duty,Redfern Travel Ltd,Large,975080,239.75,Travel & Subsistence General Duty,Administration
Land Registry,Land Registry,16/10/2013,Marketing Services Team,Travel & Subsistence General Duty,Redfern Travel Ltd,Large,975080,151,Travel & Subsistence General Duty,Administration
Land Registry,Land Registry,16/10/2013,Product Development & Management,Travel & Subsistence General Duty,Redfern Travel Ltd,Large,975080,216.75,Travel & Subsistence General Duty,Administration
Land Registry,Land Registry,16/10/2013,Commercial & Customer Strategy & Performance,Travel & Subsistence General Duty,Redfern Travel Ltd,Large,975080,61.6,Travel & Subsistence General Duty,Administration
Land Registry,Land Registry,16/10/2013,Business Development,Travel & Subsistence General Duty,Redfern Travel Ltd,Large,975080,301.8,Travel & Subsistence General Duty,Administration
Land Registry,Land Registry,16/10/2013,Customer Services,Travel & Subsistence General Duty,Redfern Travel Ltd,Large,975080,-80.46,Travel & Subsistence General Duty,Administration
Land Registry,Land Registry,16/10/2013,International Unit,Travel & Subsistence General Duty,Redfern Travel Ltd,Large,975080,-287.7,Travel & Subsistence General Duty,Administration
Land Registry,Land Registry,16/10/2013,Marketing Services Team,Travel & Subsistence General Duty,Redfern Travel Ltd,Large,975080,-181.2,Travel & Subsistence General Duty,Administration
Land Registry,Land Registry,16/10/2013,Product Development & Management,Travel & Subsistence General Duty,Redfern Travel Ltd,Large,975080,-260.1,Travel & Subsistence General Duty,Administration
Land Registry,Land Registry,16/10/2013,Commercial & Customer Strategy & Performance,Travel & Subsistence General Duty,Redfern Travel Ltd,Large,975080,-73.92,Travel & Subsistence General Duty,Administration
Land Registry,Land Registry,16/10/2013,Business Development,Travel & Subsistence General Duty,Redfern Travel Ltd,Large,975080,-362.16,Travel & Subsistence General Duty,Administration
Land Registry,Land Registry,16/10/2013,Corporate Legal Services,Travel & Subsistence General Duty,Redfern Travel Ltd,Large,975080,136.15,Travel & Subsistence General Duty,Administration
Land Registry,Land Registry,16/10/2013,HR,Travel & Subsistence General Duty,Redfern Travel Ltd,Large,975080,192.77,Travel & Subsistence General Duty,Administration
Land Registry,Land Registry,16/10/2013,Property Asset Management Group,Travel & Subsistence General Duty,Redfern Travel Ltd,Large,975080,124.36,Travel & Subsistence General Duty,Administration
Land Registry,Land Registry,16/10/2013,Business Development,Travel & Subsistence General Duty,Redfern Travel Ltd,Large,975080,120.75,Travel & Subsistence General Duty,Administration
Land Registry,Land Registry,16/10/2013,Central Facilities Management Team,Travel & Subsistence General Duty,Redfern Travel Ltd,Large,975080,105.81,Travel & Subsistence General Duty,Administration
Land Registry,Land Registry,16/10/2013,Product Development & Management,Travel & Subsistence General Duty,Redfern Travel Ltd,Large,975080,110.71,Travel & Subsistence General Duty,Administration
Land Registry,Land Registry,16/10/2013,Central Facilities Management Team,Travel & Subsistence General Duty,Redfern Travel Ltd,Large,975080,32.18,Travel & Subsistence General Duty,Administration
Land Registry,Land Registry,16/10/2013,Coventry Office,Travel & Subsistence General Duty,Redfern Travel Ltd,Large,975080,111.88,Travel & Subsistence General Duty,Administration
Land Registry,Land Registry,16/10/2013,Internal Solutions Group,Travel & Subsistence General Duty,Redfern Travel Ltd,Large,975080,114.61,Travel & Subsistence General Duty,Administration
Land Registry,Land Registry,16/10/2013,Gloucester Office,Travel & Subsistence General Duty,Redfern Travel Ltd,Large,975080,70.19,Travel & Subsistence General Duty,Administration
Land Registry,Land Registry,16/10/2013,Internal Solutions Group,Travel & Subsistence General Duty,Redfern Travel Ltd,Large,975080,114.61,Travel & Subsistence General Duty,Administration
Land Registry,Land Registry,16/10/2013,HR,Travel & Subsistence General Duty,Redfern Travel Ltd,Large,975080,318.51,Travel & Subsistence General Duty,Administration
Land Registry,Land Registry,16/10/2013,Hull Office,Travel & Subsistence General Duty,Redfern Travel Ltd,Large,975080,105.62,Travel & Subsistence General Duty,Administration
Land Registry,Land Registry,16/10/2013,Governance & Policy,Travel & Subsistence General Duty,Redfern Travel Ltd,Large,975080,134.41,Travel & Subsistence General Duty,Administration
Land Registry,Land Registry,16/10/2013,HR,Travel & Subsistence General Duty,Redfern Travel Ltd,Large,975080,229.78,Travel & Subsistence General Duty,Administration
Land Registry,Land Registry,16/10/2013,Business Development,Travel & Subsistence General Duty,Redfern Travel Ltd,Large,975080,159.3,Travel & Subsistence General Duty,Administration
Land Registry,Land Registry,16/10/2013,Croydon Office,Travel & Subsistence General Duty,Redfern Travel Ltd,Large,975080,39.72,Travel & Subsistence General Duty,Administration
Land Registry,Land Registry,16/10/2013,Central Operations Group,Travel & Subsistence General Duty,Redfern Travel Ltd,Large,975080,75.97,Travel & Subsistence General Duty,Administration
Land Registry,Land Registry,16/10/2013,Central Facilities Management Team,Travel & Subsistence General Duty,Redfern Travel Ltd,Large,975080,57.9,Travel & Subsistence General Duty,Administration
Land Registry,Land Registry,16/10/2013,Marketing Services Team,Travel & Subsistence General Duty,Redfern Travel Ltd,Large,975080,9.71,Travel & Subsistence General Duty,Administration
Land Registry,Land Registry,16/10/2013,Business Development,Travel & Subsistence General Duty,Redfern Travel Ltd,Large,975080,302.74,Travel & Subsistence General Duty,Administration
Land Registry,Land Registry,16/10/2013,Central Operations Group,Travel & Subsistence General Duty,Redfern Travel Ltd,Large,975080,77.01,Travel & Subsistence General Duty,Administration
Land Registry,Land Registry,16/10/2013,Technical Assurance Group,Travel & Subsistence General Duty,Redfern Travel Ltd,Large,975080,1.56,Travel & Subsistence General Duty,Administration
Land Registry,Land Registry,16/10/2013,Business Continuity,Travel & Subsistence General Duty,Redfern Travel Ltd,Large,975080,117.55,Travel & Subsistence General Duty,Administration
Land Registry,Land Registry,16/10/2013,Central Operations Group,Travel & Subsistence General Duty,Redfern Travel Ltd,Large,975080,48.75,Travel & Subsistence General Duty,Administration
Land Registry,Land Registry,16/10/2013,Business Continuity,Travel & Subsistence General Duty,Redfern Travel Ltd,Large,975080,20.93,Travel & Subsistence General Duty,Administration
Land Registry,Land Registry,16/10/2013,Central Operations Group,Travel & Subsistence General Duty,Redfern Travel Ltd,Large,975080,2407.55,Travel & Subsistence General Duty,Administration
Land Registry,Land Registry,16/10/2013,Strategy Team,Travel & Subsistence General Duty,Redfern Travel Ltd,Large,975080,79.7,Travel & Subsistence General Duty,Administration
Land Registry,Land Registry,16/10/2013,HR,Travel & Subsistence General Duty,Redfern Travel Ltd,Large,975080,180.19,Travel & Subsistence General Duty,Administration
Land Registry,Land Registry,16/10/2013,Capability,Travel & Subsistence General Duty,Redfern Travel Ltd,Large,975080,38.49,Travel & Subsistence General Duty,Administration
Land Registry,Land Registry,16/10/2013,International Unit,Travel & Subsistence General Duty,Redfern Travel Ltd,Large,975080,19.17,Travel & Subsistence General Duty,Administration
Land Registry,Land Registry,16/10/2013,Finance Group,Travel & Subsistence General Duty,Redfern Travel Ltd,Large,975080,169.24,Travel & Subsistence General Duty,Administration
Land Registry,Land Registry,16/10/2013,Chief Executives Office,Travel & Subsistence General Duty,Redfern Travel Ltd,Large,975080,27.56,Travel & Subsistence General Duty,Administration
Land Registry,Land Registry,16/10/2013,Central Operations Group,Travel & Subsistence General Duty,Redfern Travel Ltd,Large,975080,84.12,Travel & Subsistence General Duty,Administration
Land Registry,Land Registry,16/10/2013,Product Development & Management,Travel & Subsistence General Duty,Redfern Travel Ltd,Large,975080,81.51,Travel & Subsistence General Duty,Administration
Land Registry,Land Registry,16/10/2013,Learning and Development,Travel & Subsistence General Duty,Redfern Travel Ltd,Large,975080,52.63,Travel & Subsistence General Duty,Administration
Land Registry,Land Registry,16/10/2013,HR,Travel & Subsistence General Duty,Redfern Travel Ltd,Large,975080,65.95,Travel & Subsistence General Duty,Administration
Land Registry,Land Registry,16/10/2013,Capability,Travel & Subsistence General Duty,Redfern Travel Ltd,Large,975080,1.56,Travel & Subsistence General Duty,Administration
Land Registry,Land Registry,16/10/2013,Central Operations Group,Travel & Subsistence General Duty,Redfern Travel Ltd,Large,975080,75.97,Travel & Subsistence General Duty,Administration
Land Registry,Land Registry,16/10/2013,Corp Procurement,Travel & Subsistence General Duty,Redfern Travel Ltd,Large,975080,70.98,Travel & Subsistence General Duty,Administration
Land Registry,Land Registry,16/10/2013,HR,Travel & Subsistence General Duty,Redfern Travel Ltd,Large,975080,156.12,Travel & Subsistence General Duty,Administration
Land Registry,Land Registry,16/10/2013,Business Continuity,Travel & Subsistence General Duty,Redfern Travel Ltd,Large,975080,70.98,Travel & Subsistence General Duty,Administration
Land Registry,Land Registry,16/10/2013,Central Operations Group,Travel & Subsistence General Duty,Redfern Travel Ltd,Large,975080,77.01,Travel & Subsistence General Duty,Administration
Land Registry,Land Registry,16/10/2013,Chief Executives Office,Travel & Subsistence General Duty,Redfern Travel Ltd,Large,975080,188.18,Travel & Subsistence General Duty,Administration
Land Registry,Land Registry,16/10/2013,Central Operations Group,Travel & Subsistence General Duty,Redfern Travel Ltd,Large,975080,102.8,Travel & Subsistence General Duty,Administration
Land Registry,Land Registry,16/10/2013,Nottingham Office,Travel & Subsistence General Duty,Redfern Travel Ltd,Large,975080,77.01,Travel & Subsistence General Duty,Administration
Land Registry,Land Registry,16/10/2013,Central Facilities Management Team,Travel & Subsistence General Duty,Redfern Travel Ltd,Large,975080,87.8,Travel & Subsistence General Duty,Administration
Land Registry,Land Registry,16/10/2013,Hull Office,Travel & Subsistence General Duty,Redfern Travel Ltd,Large,975080,81.51,Travel & Subsistence General Duty,Administration
Land Registry,Land Registry,16/10/2013,Director of Legal Services,Travel & Subsistence General Duty,Redfern Travel Ltd,Large,975080,80.03,Travel & Subsistence General Duty,Administration
Land Registry,Land Registry,16/10/2013,HR,Travel & Subsistence General Duty,Redfern Travel Ltd,Large,975080,92.15,Travel & Subsistence General Duty,Administration
Land Registry,Land Registry,16/10/2013,Central Facilities Management Team,Travel & Subsistence General Duty,Redfern Travel Ltd,Large,975080,125.44,Travel & Subsistence General Duty,Administration
Land Registry,Land Registry,16/10/2013,Commercial Director,Travel & Subsistence General Duty,Redfern Travel Ltd,Large,975080,100.25,Travel & Subsistence General Duty,Administration
Land Registry,Land Registry,16/10/2013,HR,Travel & Subsistence General Duty,Redfern Travel Ltd,Large,975080,145.83,Travel & Subsistence General Duty,Administration
Land Registry,Land Registry,16/10/2013,Plymouth Office,Travel & Subsistence General Duty,Redfern Travel Ltd,Large,975080,51.86,Travel & Subsistence General Duty,Administration
Land Registry,Land Registry,16/10/2013,Peterborough Office,Travel & Subsistence General Duty,Redfern Travel Ltd,Large,975080,154.61,Travel & Subsistence General Duty,Administration
Land Registry,Land Registry,16/10/2013,Central Facilities Management Team,Travel & Subsistence General Duty,Redfern Travel Ltd,Large,975080,81.62,Travel & Subsistence General Duty,Administration
Land Registry,Land Registry,16/10/2013,Central Operations Group,Travel & Subsistence General Duty,Redfern Travel Ltd,Large,975080,90.9,Travel & Subsistence General Duty,Administration
Land Registry,Land Registry,16/10/2013,Customer Services,Travel & Subsistence General Duty,Redfern Travel Ltd,Large,975080,35.7,Travel & Subsistence General Duty,Administration
Land Registry,Land Registry,16/10/2013,IS Service Delivery,Travel & Subsistence General Duty,Redfern Travel Ltd,Large,975080,78.78,Travel & Subsistence General Duty,Administration
Land Registry,Land Registry,16/10/2013,Property Asset Management Group,Travel & Subsistence General Duty,Redfern Travel Ltd,Large,975080,71.98,Travel & Subsistence General Duty,Administration
Land Registry,Land Registry,16/10/2013,Commercial Director,Travel & Subsistence General Duty,Redfern Travel Ltd,Large,975080,39.75,Travel & Subsistence General Duty,Administration
Land Registry,Land Registry,16/10/2013,Capability,Travel & Subsistence General Duty,Redfern Travel Ltd,Large,975080,85.13,Travel & Subsistence General Duty,Administration
Land Registry,Land Registry,16/10/2013,HR,Travel & Subsistence General Duty,Redfern Travel Ltd,Large,975080,80.03,Travel & Subsistence General Duty,Administration
Land Registry,Land Registry,16/10/2013,Central Operations Group,Travel & Subsistence General Duty,Redfern Travel Ltd,Large,975080,173.64,Travel & Subsistence General Duty,Administration
Land Registry,Land Registry,16/10/2013,Finance Group,Travel & Subsistence General Duty,Redfern Travel Ltd,Large,975080,32.63,Travel & Subsistence General Duty,Administration
Land Registry,Land Registry,16/10/2013,Internal Solutions Group,Travel & Subsistence General Duty,Redfern Travel Ltd,Large,975080,95.87,Travel & Subsistence General Duty,Administration
Land Registry,Land Registry,16/10/2013,Chief Executives Office,Travel & Subsistence General Duty,Redfern Travel Ltd,Large,975080,53.91,Travel & Subsistence General Duty,Administration
Land Registry,Land Registry,16/10/2013,Research & Data Mining,Travel & Subsistence General Duty,Redfern Travel Ltd,Large,975080,113.48,Travel & Subsistence General Duty,Administration
Land Registry,Land Registry,16/10/2013,Director of Legal Services,Travel & Subsistence General Duty,Redfern Travel Ltd,Large,975080,80.03,Travel & Subsistence General Duty,Administration
Land Registry,Land Registry,16/10/2013,Chief Executives Office,Travel & Subsistence General Duty,Redfern Travel Ltd,Large,975080,61.81,Travel & Subsistence General Duty,Administration
Land Registry,Land Registry,16/10/2013,Leicester Office,Travel & Subsistence General Duty,Redfern Travel Ltd,Large,975080,97.22,Travel & Subsistence General Duty,Administration
Land Registry,Land Registry,16/10/2013,Central Facilities Management Team,Travel & Subsistence General Duty,Redfern Travel Ltd,Large,975080,100.65,Travel & Subsistence General Duty,Administration
Land Registry,Land Registry,16/10/2013,Croydon Office,Travel & Subsistence General Duty,Redfern Travel Ltd,Large,975080,51.56,Travel & Subsistence General Duty,Administration
Land Registry,Land Registry,16/10/2013,Customer Services,Travel & Subsistence General Duty,Redfern Travel Ltd,Large,975080,80.03,Travel & Subsistence General Duty,Administration
Land Registry,Land Registry,16/10/2013,International Unit,Travel & Subsistence General Duty,Redfern Travel Ltd,Large,975080,19.17,Travel & Subsistence General Duty,Administration
Land Registry,Land Registry,16/10/2013,HR,Travel & Subsistence General Duty,Redfern Travel Ltd,Large,975080,70.19,Travel & Subsistence General Duty,Administration
Land Registry,Land Registry,16/10/2013,Internal Solutions Group,Travel & Subsistence General Duty,Redfern Travel Ltd,Large,975080,142.4,Travel & Subsistence General Duty,Administration
Land Registry,Land Registry,16/10/2013,Employee & Management Support Manager,Travel & Subsistence General Duty,Redfern Travel Ltd,Large,975080,144.23,Travel & Subsistence General Duty,Administration
Land Registry,Land Registry,16/10/2013,Finance Group,Travel & Subsistence General Duty,Redfern Travel Ltd,Large,975080,70.98,Travel & Subsistence General Duty,Administration
Land Registry,Land Registry,16/10/2013,Peterborough Office,Travel & Subsistence General Duty,Redfern Travel Ltd,Large,975080,154.61,Travel & Subsistence General Duty,Administration
Land Registry,Land Registry,16/10/2013,Capability,Travel & Subsistence General Duty,Redfern Travel Ltd,Large,975080,64.64,Travel & Subsistence General Duty,Administration
Land Registry,Land Registry,16/10/2013,Director of Legal Services,Travel & Subsistence General Duty,Redfern Travel Ltd,Large,975080,194.14,Travel & Subsistence General Duty,Administration
Land Registry,Land Registry,16/10/2013,Central Operations Group,Travel & Subsistence General Duty,Redfern Travel Ltd,Large,975080,71.98,Travel & Subsistence General Duty,Administration
Land Registry,Land Registry,16/10/2013,Commercial & Customer Strategy & Performance,Travel & Subsistence General Duty,Redfern Travel Ltd,Large,975080,72.99,Travel & Subsistence General Duty,Administration
Land Registry,Land Registry,16/10/2013,Central Operations Group,Travel & Subsistence General Duty,Redfern Travel Ltd,Large,975080,71.98,Travel & Subsistence General Duty,Administration
Land Registry,Land Registry,16/10/2013,Finance Group,Travel & Subsistence General Duty,Redfern Travel Ltd,Large,975080,114.61,Travel & Subsistence General Duty,Administration
Land Registry,Land Registry,16/10/2013,Central Operations Group,Travel & Subsistence General Duty,Redfern Travel Ltd,Large,975080,71.98,Travel & Subsistence General Duty,Administration
Land Registry,Land Registry,16/10/2013,International Unit,Travel & Subsistence General Duty,Redfern Travel Ltd,Large,975080,19.17,Travel & Subsistence General Duty,Administration
Land Registry,Land Registry,16/10/2013,Central Operations Group,Travel & Subsistence General Duty,Redfern Travel Ltd,Large,975080,71.98,Travel & Subsistence General Duty,Administration
Land Registry,Land Registry,16/10/2013,Marketing Services Team,Travel & Subsistence General Duty,Redfern Travel Ltd,Large,975080,92.1,Travel & Subsistence General Duty,Administration
Land Registry,Land Registry,16/10/2013,Central Operations Group,Travel & Subsistence General Duty,Redfern Travel Ltd,Large,975080,71.98,Travel & Subsistence General Duty,Administration
Land Registry,Land Registry,16/10/2013,Learning and Development,Travel & Subsistence General Duty,Redfern Travel Ltd,Large,975080,114.71,Travel & Subsistence General Duty,Administration
Land Registry,Land Registry,16/10/2013,HR,Travel & Subsistence General Duty,Redfern Travel Ltd,Large,975080,188.03,Travel & Subsistence General Duty,Administration
Land Registry,Land Registry,16/10/2013,Central Facilities Management Team,Travel & Subsistence General Duty,Redfern Travel Ltd,Large,975080,63.46,Travel & Subsistence General Duty,Administration
Land Registry,Land Registry,16/10/2013,Commercial & Customer Strategy & Performance,Travel & Subsistence General Duty,Redfern Travel Ltd,Large,975080,162.71,Travel & Subsistence General Duty,Administration
Land Registry,Land Registry,16/10/2013,Internal Audit,Travel & Subsistence General Duty,Redfern Travel Ltd,Large,975080,72.99,Travel & Subsistence General Duty,Administration
Land Registry,Land Registry,16/10/2013,Employee & Management Support Manager,Travel & Subsistence General Duty,Redfern Travel Ltd,Large,975080,39.75,Travel & Subsistence General Duty,Administration
Land Registry,Land Registry,16/10/2013,Central Facilities Management Team,Travel & Subsistence General Duty,Redfern Travel Ltd,Large,975080,39.44,Travel & Subsistence General Duty,Administration
Land Registry,Land Registry,16/10/2013,HR,Travel & Subsistence General Duty,Redfern Travel Ltd,Large,975080,189.99,Travel & Subsistence General Duty,Administration
Land Registry,Land Registry,16/10/2013,Capability,Travel & Subsistence General Duty,Redfern Travel Ltd,Large,975080,64.64,Travel & Subsistence General Duty,Administration
Land Registry,Land Registry,16/10/2013,Gloucester Office,Travel & Subsistence General Duty,Redfern Travel Ltd,Large,975080,70.98,Travel & Subsistence General Duty,Administration
Land Registry,Land Registry,16/10/2013,Weymouth Office,Travel & Subsistence General Duty,Redfern Travel Ltd,Large,975080,160.27,Travel & Subsistence General Duty,Administration
Land Registry,Land Registry,16/10/2013,Central Operations Group,Travel & Subsistence General Duty,Redfern Travel Ltd,Large,975080,6.24,Travel & Subsistence General Duty,Administration
Land Registry,Land Registry,16/10/2013,Internal Solutions Group,Travel & Subsistence General Duty,Redfern Travel Ltd,Large,975080,101.11,Travel & Subsistence General Duty,Administration
Land Registry,Land Registry,16/10/2013,Chief Executives Office,Travel & Subsistence General Duty,Redfern Travel Ltd,Large,975080,114.99,Travel & Subsistence General Duty,Administration
Land Registry,Land Registry,16/10/2013,Internal Solutions Group,Travel & Subsistence General Duty,Redfern Travel Ltd,Large,975080,50.54,Travel & Subsistence General Duty,Administration
Land Registry,Land Registry,16/10/2013,Central Operations Group,Travel & Subsistence General Duty,Redfern Travel Ltd,Large,975080,110.5,Travel & Subsistence General Duty,Administration
Land Registry,Land Registry,16/10/2013,Product Development & Management,Travel & Subsistence General Duty,Redfern Travel Ltd,Large,975080,33.41,Travel & Subsistence General Duty,Administration
Land Registry,Land Registry,16/10/2013,HR,Travel & Subsistence General Duty,Redfern Travel Ltd,Large,975080,85.06,Travel & Subsistence General Duty,Administration
Land Registry,Land Registry,16/10/2013,Guarantee & Litigation,Travel & Subsistence General Duty,Redfern Travel Ltd,Large,975080,31.18,Travel & Subsistence General Duty,Administration
Land Registry,Land Registry,16/10/2013,HR,Travel & Subsistence General Duty,Redfern Travel Ltd,Large,975080,52.25,Travel & Subsistence General Duty,Administration
Land Registry,Land Registry,16/10/2013,Governance & Policy,Travel & Subsistence General Duty,Redfern Travel Ltd,Large,975080,66.95,Travel & Subsistence General Duty,Administration
Land Registry,Land Registry,16/10/2013,IS Service Delivery,Travel & Subsistence General Duty,Redfern Travel Ltd,Large,975080,63.93,Travel & Subsistence General Duty,Administration
Land Registry,Land Registry,16/10/2013,Guarantee & Litigation,Travel & Subsistence General Duty,Redfern Travel Ltd,Large,975080,66.12,Travel & Subsistence General Duty,Administration
Land Registry,Land Registry,16/10/2013,Employee & Management Support Manager,Travel & Subsistence General Duty,Redfern Travel Ltd,Large,975080,77.01,Travel & Subsistence General Duty,Administration
Land Registry,Land Registry,16/10/2013,Croydon Office,Travel & Subsistence General Duty,Redfern Travel Ltd,Large,975080,97.22,Travel & Subsistence General Duty,Administration
Land Registry,Land Registry,16/10/2013,Chief Executives Office,Travel & Subsistence General Duty,Redfern Travel Ltd,Large,975080,109.92,Travel & Subsistence General Duty,Administration
Land Registry,Land Registry,16/10/2013,Customer Services,Travel & Subsistence General Duty,Redfern Travel Ltd,Large,975080,42.59,Travel & Subsistence General Duty,Administration
Land Registry,Land Registry,16/10/2013,Central Facilities Management Team,Travel & Subsistence General Duty,Redfern Travel Ltd,Large,975080,105.34,Travel & Subsistence General Duty,Administration
Land Registry,Land Registry,16/10/2013,Survey & Mapping Services,Travel & Subsistence General Duty,Redfern Travel Ltd,Large,975080,0.78,Travel & Subsistence General Duty,Administration
Land Registry,Land Registry,16/10/2013,IS Service Delivery,Travel & Subsistence General Duty,Redfern Travel Ltd,Large,975080,97.73,Travel & Subsistence General Duty,Administration
Land Registry,Land Registry,16/10/2013,Leicester Office,Travel & Subsistence General Duty,Redfern Travel Ltd,Large,975080,117.25,Travel & Subsistence General Duty,Administration
Land Registry,Land Registry,16/10/2013,HR,Travel & Subsistence General Duty,Redfern Travel Ltd,Large,975080,206.59,Travel & Subsistence General Duty,Administration
Land Registry,Land Registry,16/10/2013,Marketing Services Team,Travel & Subsistence General Duty,Redfern Travel Ltd,Large,975080,89.08,Travel & Subsistence General Duty,Administration
Land Registry,Land Registry,16/10/2013,Gloucester Office,Travel & Subsistence General Duty,Redfern Travel Ltd,Large,975080,73.21,Travel & Subsistence General Duty,Administration
Land Registry,Land Registry,16/10/2013,Business Development,Travel & Subsistence General Duty,Redfern Travel Ltd,Large,975080,140.39,Travel & Subsistence General Duty,Administration
Land Registry,Land Registry,16/10/2013,Registration Legal Services Group,Travel & Subsistence General Duty,Redfern Travel Ltd,Large,975080,64.94,Travel & Subsistence General Duty,Administration
Land Registry,Land Registry,16/10/2013,Property Asset Management Group,Travel & Subsistence General Duty,Redfern Travel Ltd,Large,975080,113.13,Travel & Subsistence General Duty,Administration
Land Registry,Land Registry,16/10/2013,Internal Solutions Group,Travel & Subsistence General Duty,Redfern Travel Ltd,Large,975080,83.88,Travel & Subsistence General Duty,Administration
Land Registry,Land Registry,16/10/2013,Property Asset Management Group,Travel & Subsistence General Duty,Redfern Travel Ltd,Large,975080,88.04,Travel & Subsistence General Duty,Administration
Land Registry,Land Registry,16/10/2013,Product Development & Management,Travel & Subsistence General Duty,Redfern Travel Ltd,Large,975080,161.45,Travel & Subsistence General Duty,Administration
Land Registry,Land Registry,16/10/2013,Property Asset Management Group,Travel & Subsistence General Duty,Redfern Travel Ltd,Large,975080,12.06,Travel & Subsistence General Duty,Administration
Land Registry,Land Registry,16/10/2013,Nottingham Office,Travel & Subsistence General Duty,Redfern Travel Ltd,Large,975080,19.66,Travel & Subsistence General Duty,Administration
Land Registry,Land Registry,16/10/2013,Property Asset Management Group,Travel & Subsistence General Duty,Redfern Travel Ltd,Large,975080,143.4,Travel & Subsistence General Duty,Administration
Land Registry,Land Registry,16/10/2013,Product Development & Management,Travel & Subsistence General Duty,Redfern Travel Ltd,Large,975080,41.22,Travel & Subsistence General Duty,Administration
Land Registry,Land Registry,16/10/2013,Business Development,Travel & Subsistence General Duty,Redfern Travel Ltd,Large,975080,77.01,Travel & Subsistence General Duty,Administration
Land Registry,Land Registry,16/10/2013,HR,Travel & Subsistence General Duty,Redfern Travel Ltd,Large,975080,82.32,Travel & Subsistence General Duty,Administration
Land Registry,Land Registry,16/10/2013,Central Operations Group,Travel & Subsistence General Duty,Redfern Travel Ltd,Large,975080,97.22,Travel & Subsistence General Duty,Administration
Land Registry,Land Registry,16/10/2013,Property Asset Management Group,Travel & Subsistence General Duty,Redfern Travel Ltd,Large,975080,88.04,Travel & Subsistence General Duty,Administration
Land Registry,Land Registry,16/10/2013,Central Operations Group,Travel & Subsistence General Duty,Redfern Travel Ltd,Large,975080,100.41,Travel & Subsistence General Duty,Administration
Land Registry,Land Registry,16/10/2013,Learning and Development,Travel & Subsistence General Duty,Redfern Travel Ltd,Large,975080,74.25,Travel & Subsistence General Duty,Administration
Land Registry,Land Registry,16/10/2013,HR,Travel & Subsistence General Duty,Redfern Travel Ltd,Large,975080,103.37,Travel & Subsistence General Duty,Administration
Land Registry,Land Registry,16/10/2013,Internal Solutions Group,Travel & Subsistence General Duty,Redfern Travel Ltd,Large,975080,83.05,Travel & Subsistence General Duty,Administration
Land Registry,Land Registry,16/10/2013,Business Continuity,Travel & Subsistence General Duty,Redfern Travel Ltd,Large,975080,73.99,Travel & Subsistence General Duty,Administration
Land Registry,Land Registry,16/10/2013,Product Development & Management,Travel & Subsistence General Duty,Redfern Travel Ltd,Large,975080,33.41,Travel & Subsistence General Duty,Administration
Land Registry,Land Registry,16/10/2013,Property Asset Management Group,Travel & Subsistence General Duty,Redfern Travel Ltd,Large,975080,215.85,Travel & Subsistence General Duty,Administration
Land Registry,Land Registry,16/10/2013,Strategy Team,Travel & Subsistence General Duty,Redfern Travel Ltd,Large,975080,70.98,Travel & Subsistence General Duty,Administration
Land Registry,Land Registry,16/10/2013,Central Operations Group,Travel & Subsistence General Duty,Redfern Travel Ltd,Large,975080,147.78,Travel & Subsistence General Duty,Administration
Land Registry,Land Registry,16/10/2013,Director of Operations,Travel & Subsistence General Duty,Redfern Travel Ltd,Large,975080,70.98,Travel & Subsistence General Duty,Administration
Land Registry,Land Registry,16/10/2013,Coventry Office,Travel & Subsistence General Duty,Redfern Travel Ltd,Large,975080,97.22,Travel & Subsistence General Duty,Administration
Land Registry,Land Registry,16/10/2013,LR Sports Council,Travel & Subsistence General Duty,Redfern Travel Ltd,Large,975080,102.82,Travel & Subsistence General Duty,Administration
Land Registry,Land Registry,16/10/2013,Chief Executives Office,Travel & Subsistence General Duty,Redfern Travel Ltd,Large,975080,300.34,Travel & Subsistence General Duty,Administration
Land Registry,Land Registry,16/10/2013,Product Development & Management,Travel & Subsistence General Duty,Redfern Travel Ltd,Large,975080,174.59,Travel & Subsistence General Duty,Administration
Land Registry,Land Registry,16/10/2013,Property Asset Management Group,Travel & Subsistence General Duty,Redfern Travel Ltd,Large,975080,56.35,Travel & Subsistence General Duty,Administration
Land Registry,Land Registry,16/10/2013,Internal Solutions Group,Travel & Subsistence General Duty,Redfern Travel Ltd,Large,975080,73.99,Travel & Subsistence General Duty,Administration
Land Registry,Land Registry,16/10/2013,Central Operations Group,Travel & Subsistence General Duty,Redfern Travel Ltd,Large,975080,77.01,Travel & Subsistence General Duty,Administration
Land Registry,Land Registry,16/10/2013,Business Development,Travel & Subsistence General Duty,Redfern Travel Ltd,Large,975080,140.39,Travel & Subsistence General Duty,Administration
Land Registry,Land Registry,16/10/2013,Property Asset Management Group,Travel & Subsistence General Duty,Redfern Travel Ltd,Large,975080,215.84,Travel & Subsistence General Duty,Administration
Land Registry,Land Registry,16/10/2013,Capability,Travel & Subsistence General Duty,Redfern Travel Ltd,Large,975080,1.56,Travel & Subsistence General Duty,Administration
Land Registry,Land Registry,16/10/2013,Central Operations Group,Travel & Subsistence General Duty,Redfern Travel Ltd,Large,975080,146.76,Travel & Subsistence General Duty,Administration
Land Registry,Land Registry,16/10/2013,Gloucester Office,Travel & Subsistence General Duty,Redfern Travel Ltd,Large,975080,73.21,Travel & Subsistence General Duty,Administration
Land Registry,Land Registry,16/10/2013,Guarantee & Litigation,Travel & Subsistence General Duty,Redfern Travel Ltd,Large,975080,64.94,Travel & Subsistence General Duty,Administration
Land Registry,Land Registry,16/10/2013,IS Service Delivery,Travel & Subsistence General Duty,Redfern Travel Ltd,Large,975080,282.24,Travel & Subsistence General Duty,Administration
Land Registry,Land Registry,16/10/2013,LR Board & Board Chair,Travel & Subsistence General Duty,Redfern Travel Ltd,Large,975080,72.99,Travel & Subsistence General Duty,Administration
Land Registry,Land Registry,16/10/2013,Projects and Programme Centre,Travel & Subsistence General Duty,Redfern Travel Ltd,Large,975080,130.33,Travel & Subsistence General Duty,Administration
Land Registry,Land Registry,16/10/2013,Research & Data Mining,Travel & Subsistence General Duty,Redfern Travel Ltd,Large,975080,1.56,Travel & Subsistence General Duty,Administration
Land Registry,Land Registry,16/10/2013,Property Asset Management Group,Travel & Subsistence General Duty,Redfern Travel Ltd,Large,975080,56.35,Travel & Subsistence General Duty,Administration
Land Registry,Land Registry,16/10/2013,Central Facilities Management Team,Travel & Subsistence General Duty,Redfern Travel Ltd,Large,975080,20.73,Travel & Subsistence General Duty,Administration
Land Registry,Land Registry,16/10/2013,Research & Data Mining,Travel & Subsistence General Duty,Redfern Travel Ltd,Large,975080,157.34,Travel & Subsistence General Duty,Administration
Land Registry,Land Registry,16/10/2013,Internal Solutions Group,Travel & Subsistence General Duty,Redfern Travel Ltd,Large,975080,322.78,Travel & Subsistence General Duty,Administration
Land Registry,Land Registry,16/10/2013,Central Operations Group,Travel & Subsistence General Duty,Redfern Travel Ltd,Large,975080,77.01,Travel & Subsistence General Duty,Administration
Land Registry,Land Registry,16/10/2013,Business Development,Travel & Subsistence General Duty,Redfern Travel Ltd,Large,975080,91.47,Travel & Subsistence General Duty,Administration
Land Registry,Land Registry,16/10/2013,Croydon Office,Travel & Subsistence General Duty,Redfern Travel Ltd,Large,975080,51.56,Travel & Subsistence General Duty,Administration
Land Registry,Land Registry,16/10/2013,Central Operations Group,Travel & Subsistence General Duty,Redfern Travel Ltd,Large,975080,14.96,Travel & Subsistence General Duty,Administration
Land Registry,Land Registry,16/10/2013,Customer Services,Travel & Subsistence General Duty,Redfern Travel Ltd,Large,975080,10.59,Travel & Subsistence General Duty,Administration
Land Registry,Land Registry,16/10/2013,Internal Audit,Travel & Subsistence General Duty,Redfern Travel Ltd,Large,975080,202.04,Travel & Subsistence General Duty,Administration
Land Registry,Land Registry,16/10/2013,Property Asset Management Group,Travel & Subsistence General Duty,Redfern Travel Ltd,Large,975080,56.35,Travel & Subsistence General Duty,Administration
Land Registry,Land Registry,16/10/2013,International Unit,Travel & Subsistence General Duty,Redfern Travel Ltd,Large,975080,287.27,Travel & Subsistence General Duty,Administration
Land Registry,Land Registry,16/10/2013,Product Development & Management,Travel & Subsistence General Duty,Redfern Travel Ltd,Large,975080,41.22,Travel & Subsistence General Duty,Administration
Land Registry,Land Registry,16/10/2013,Governance & Policy,Travel & Subsistence General Duty,Redfern Travel Ltd,Large,975080,144.41,Travel & Subsistence General Duty,Administration
Land Registry,Land Registry,16/10/2013,HR,Travel & Subsistence General Duty,Redfern Travel Ltd,Large,975080,20.74,Travel & Subsistence General Duty,Administration
Land Registry,Land Registry,16/10/2013,Technical Assurance Group,Travel & Subsistence General Duty,Redfern Travel Ltd,Large,975080,28.93,Travel & Subsistence General Duty,Administration
Land Registry,Land Registry,16/10/2013,Central Facilities Management Team,Travel & Subsistence General Duty,Redfern Travel Ltd,Large,975080,173.42,Travel & Subsistence General Duty,Administration
Land Registry,Land Registry,16/10/2013,Fylde Office,Travel & Subsistence General Duty,Redfern Travel Ltd,Large,975080,62.82,Travel & Subsistence General Duty,Administration
Land Registry,Land Registry,16/10/2013,Central Facilities Management Team,Travel & Subsistence General Duty,Redfern Travel Ltd,Large,975080,87.82,Travel & Subsistence General Duty,Administration
Land Registry,Land Registry,16/10/2013,Internal Solutions Group,Travel & Subsistence General Duty,Redfern Travel Ltd,Large,975080,528.85,Travel & Subsistence General Duty,Administration
Land Registry,Land Registry,16/10/2013,Research & Data Mining,Travel & Subsistence General Duty,Redfern Travel Ltd,Large,975080,28.74,Travel & Subsistence General Duty,Administration
Land Registry,Land Registry,16/10/2013,Business Development,Travel & Subsistence General Duty,Redfern Travel Ltd,Large,975080,94.4,Travel & Subsistence General Duty,Administration
Land Registry,Land Registry,16/10/2013,Property Asset Management Group,Travel & Subsistence General Duty,Redfern Travel Ltd,Large,975080,260.53,Travel & Subsistence General Duty,Administration
Land Registry,Land Registry,16/10/2013,Central Facilities Management Team,Travel & Subsistence General Duty,Redfern Travel Ltd,Large,975080,1.56,Travel & Subsistence General Duty,Administration
Land Registry,Land Registry,16/10/2013,Gloucester Office,Travel & Subsistence General Duty,Redfern Travel Ltd,Large,975080,33.61,Travel & Subsistence General Duty,Administration
Land Registry,Land Registry,16/10/2013,Learning and Development,Travel & Subsistence General Duty,Redfern Travel Ltd,Large,975080,14.77,Travel & Subsistence General Duty,Administration
Land Registry,Land Registry,16/10/2013,Weymouth Office,Travel & Subsistence General Duty,Redfern Travel Ltd,Large,975080,70,Travel & Subsistence General Duty,Administration
Land Registry,Land Registry,16/10/2013,HR,Travel & Subsistence General Duty,Redfern Travel Ltd,Large,975080,349.05,Travel & Subsistence General Duty,Administration
Land Registry,Land Registry,16/10/2013,Commercial Director,Travel & Subsistence General Duty,Redfern Travel Ltd,Large,975080,100.25,Travel & Subsistence General Duty,Administration
Land Registry,Land Registry,16/10/2013,HR,Travel & Subsistence General Duty,Redfern Travel Ltd,Large,975080,242.93,Travel & Subsistence General Duty,Administration
Land Registry,Land Registry,16/10/2013,Property Asset Management Group,Travel & Subsistence General Duty,Redfern Travel Ltd,Large,975080,1.56,Travel & Subsistence General Duty,Administration
Land Registry,Land Registry,16/10/2013,Central Facilities Management Team,Travel & Subsistence General Duty,Redfern Travel Ltd,Large,975080,1.56,Travel & Subsistence General Duty,Administration
Land Registry,Land Registry,16/10/2013,IS Service Delivery,Travel & Subsistence General Duty,Redfern Travel Ltd,Large,975080,15.58,Travel & Subsistence General Duty,Administration
Land Registry,Land Registry,16/10/2013,International Unit,Travel & Subsistence General Duty,Redfern Travel Ltd,Large,975080,55.47,Travel & Subsistence General Duty,Administration
Land Registry,Land Registry,16/10/2013,Hull Office,Travel & Subsistence General Duty,Redfern Travel Ltd,Large,975080,48.88,Travel & Subsistence General Duty,Administration
Land Registry,Land Registry,16/10/2013,Learning and Development,Travel & Subsistence General Duty,Redfern Travel Ltd,Large,975080,34.1,Travel & Subsistence General Duty,Administration
Land Registry,Land Registry,16/10/2013,Internal Solutions Group,Travel & Subsistence General Duty,Redfern Travel Ltd,Large,975080,151.75,Travel & Subsistence General Duty,Administration
Land Registry,Land Registry,16/10/2013,Survey & Mapping Services,Travel & Subsistence General Duty,Redfern Travel Ltd,Large,975080,447.47,Travel & Subsistence General Duty,Administration
Land Registry,Land Registry,16/10/2013,Internal Solutions Group,Travel & Subsistence General Duty,Redfern Travel Ltd,Large,975080,51.11,Travel & Subsistence General Duty,Administration
Land Registry,Land Registry,16/10/2013,Director of Information Systems,Travel & Subsistence General Duty,Redfern Travel Ltd,Large,975080,893.38,Travel & Subsistence General Duty,Administration
Land Registry,Land Registry,16/10/2013,Registration Legal Services Group,Travel & Subsistence General Duty,Redfern Travel Ltd,Large,975080,134.41,Travel & Subsistence General Duty,Administration
Land Registry,Land Registry,16/10/2013,Central Facilities Management Team,Travel & Subsistence General Duty,Redfern Travel Ltd,Large,975080,59.27,Travel & Subsistence General Duty,Administration
Land Registry,Land Registry,16/10/2013,Product Development & Management,Travel & Subsistence General Duty,Redfern Travel Ltd,Large,975080,271,Travel & Subsistence General Duty,Administration
Land Registry,Land Registry,16/10/2013,Property Asset Management Group,Travel & Subsistence General Duty,Redfern Travel Ltd,Large,975080,162.71,Travel & Subsistence General Duty,Administration
Land Registry,Land Registry,16/10/2013,Central Facilities Management Team,Travel & Subsistence General Duty,Redfern Travel Ltd,Large,975080,1.56,Travel & Subsistence General Duty,Administration
Land Registry,Land Registry,16/10/2013,Hull Office,Travel & Subsistence General Duty,Redfern Travel Ltd,Large,975080,-90.6,Travel & Subsistence General Duty,Administration
Land Registry,Land Registry,16/10/2013,Croydon Office,Travel & Subsistence General Duty,Redfern Travel Ltd,Large,975080,-24.19,Travel & Subsistence General Duty,Administration
Land Registry,Land Registry,16/10/2013,Central Operations Group,Travel & Subsistence General Duty,Redfern Travel Ltd,Large,975080,-26.67,Travel & Subsistence General Duty,Administration
Land Registry,Land Registry,16/10/2013,Dir: (Statutory) Commercial & Customer,Travel & Subsistence General Duty,Redfern Travel Ltd,Large,975080,2.65,Travel & Subsistence General Duty,Administration
Land Registry,Land Registry,16/10/2013,Dir: (Statutory) Commercial & Customer,Travel & Subsistence General Duty,Redfern Travel Ltd,Large,975080,469.52,Travel & Subsistence General Duty,Administration
Land Registry,Land Registry,16/10/2013,Dir: (Statutory) Commercial & Customer,Travel & Subsistence General Duty,Redfern Travel Ltd,Large,975080,-567.24,Travel & Subsistence General Duty,Administration
Land Registry,Land Registry,16/10/2013,Dir: HR,Travel & Subsistence General Duty,Redfern Travel Ltd,Large,975080,117.73,Travel & Subsistence General Duty,Administration
Land Registry,Land Registry,16/10/2013,Dir: (Statutory) Commercial & Customer,Travel & Subsistence General Duty,Redfern Travel Ltd,Large,975080,115.17,Travel & Subsistence General Duty,Administration
Land Registry,Land Registry,16/10/2013,Dir: HR,Travel & Subsistence General Duty,Redfern Travel Ltd,Large,975080,202.42,Travel & Subsistence General Duty,Administration
Land Registry,Land Registry,16/10/2013,Dir: Legal Services,Travel & Subsistence General Duty,Redfern Travel Ltd,Large,975080,248.79,Travel & Subsistence General Duty,Administration
Land Registry,Land Registry,16/10/2013,Dir: (Statutory) Commercial & Customer,Travel & Subsistence General Duty,Redfern Travel Ltd,Large,975080,82.21,Travel & Subsistence General Duty,Administration
Land Registry,Land Registry,16/10/2013,Dir: HR,Travel & Subsistence General Duty,Redfern Travel Ltd,Large,975080,228.82,Travel & Subsistence General Duty,Administration
Land Registry,Land Registry,16/10/2013,Dir: (Statutory) Commercial & Customer,Travel & Subsistence General Duty,Redfern Travel Ltd,Large,975080,63.93,Travel & Subsistence General Duty,Administration
Land Registry,Land Registry,16/10/2013,Dir: HR,Travel & Subsistence General Duty,Redfern Travel Ltd,Large,975080,70.98,Travel & Subsistence General Duty,Administration
Land Registry,Land Registry,16/10/2013,Dir: HR,Travel & Subsistence General Duty,Redfern Travel Ltd,Large,975080,565.52,Travel & Subsistence General Duty,Administration
Land Registry,Land Registry,16/10/2013,Dir: HR,Travel & Subsistence General Duty,Redfern Travel Ltd,Large,975080,84.86,Travel & Subsistence General Duty,Administration
Land Registry,Land Registry,16/10/2013,Dir: HR,Travel & Subsistence General Duty,Redfern Travel Ltd,Large,975080,286.87,Travel & Subsistence General Duty,Administration
Land Registry,Land Registry,16/10/2013,Dir: HR,Travel & Subsistence General Duty,Redfern Travel Ltd,Large,975080,114.61,Travel & Subsistence General Duty,Administration
Land Registry,Land Registry,16/10/2013,Dir: HR,Travel & Subsistence General Duty,Redfern Travel Ltd,Large,975080,360.25,Travel & Subsistence General Duty,Administration
Land Registry,Land Registry,16/10/2013,Dir: HR,Travel & Subsistence General Duty,Redfern Travel Ltd,Large,975080,1.56,Travel & Subsistence General Duty,Administration
Land Registry,Land Registry,16/10/2013,Dir: (Statutory) Commercial & Customer,Travel & Subsistence General Duty,Redfern Travel Ltd,Large,975080,129.88,Travel & Subsistence General Duty,Administration
Land Registry,Land Registry,16/10/2013,Dir: HR,Travel & Subsistence General Duty,Redfern Travel Ltd,Large,975080,227.91,Travel & Subsistence General Duty,Administration
Land Registry,Land Registry,16/10/2013,Dir: (Statutory) Commercial & Customer,Travel & Subsistence General Duty,Redfern Travel Ltd,Large,975080,288.25,Travel & Subsistence General Duty,Administration
Land Registry,Land Registry,16/10/2013,Dir: Finance,Travel & Subsistence General Duty,Redfern Travel Ltd,Large,975080,144.41,Travel & Subsistence General Duty,Administration
Land Registry,Land Registry,16/10/2013,Dir: HR,Travel & Subsistence General Duty,Redfern Travel Ltd,Large,975080,350.19,Travel & Subsistence General Duty,Administration
Land Registry,Land Registry,16/10/2013,Dir: Legal Services,Travel & Subsistence General Duty,Redfern Travel Ltd,Large,975080,65.95,Travel & Subsistence General Duty,Administration
Land Registry,Land Registry,16/10/2013,Dir: HR,Travel & Subsistence General Duty,Redfern Travel Ltd,Large,975080,279.22,Travel & Subsistence General Duty,Administration
Land Registry,Land Registry,16/10/2013,Dir: (Statutory) Commercial & Customer,Travel & Subsistence General Duty,Redfern Travel Ltd,Large,975080,191.62,Travel & Subsistence General Duty,Administration
Land Registry,Land Registry,16/10/2013,Dir: HR,Travel & Subsistence General Duty,Redfern Travel Ltd,Large,975080,89.08,Travel & Subsistence General Duty,Administration
Land Registry,Land Registry,16/10/2013,Dir: (Statutory) Commercial & Customer,Travel & Subsistence General Duty,Redfern Travel Ltd,Large,975080,181.94,Travel & Subsistence General Duty,Administration
Land Registry,Land Registry,16/10/2013,Dir: Finance,Travel & Subsistence General Duty,Redfern Travel Ltd,Large,975080,51.67,Travel & Subsistence General Duty,Administration
Land Registry,Land Registry,16/10/2013,Dir: (Statutory) Commercial & Customer,Travel & Subsistence General Duty,Redfern Travel Ltd,Large,975080,151.3,Travel & Subsistence General Duty,Administration
Land Registry,Land Registry,16/10/2013,Dir: HR,Travel & Subsistence General Duty,Redfern Travel Ltd,Large,975080,10.59,Travel & Subsistence General Duty,Administration
Land Registry,Land Registry,16/10/2013,Dir: Finance,Travel & Subsistence General Duty,Redfern Travel Ltd,Large,975080,1.56,Travel & Subsistence General Duty,Administration
Land Registry,Land Registry,16/10/2013,Dir: (Statutory) Commercial & Customer,Travel & Subsistence General Duty,Redfern Travel Ltd,Large,975080,372.86,Travel & Subsistence General Duty,Administration
Land Registry,Land Registry,16/10/2013,Dir: HR,Travel & Subsistence General Duty,Redfern Travel Ltd,Large,975080,855.1,Travel & Subsistence General Duty,Administration
Land Registry,Land Registry,16/10/2013,Dir: (Statutory) Commercial & Customer,Travel & Subsistence General Duty,Redfern Travel Ltd,Large,975080,143.38,Travel & Subsistence General Duty,Administration
Land Registry,Land Registry,16/10/2013,Dir: HR,Travel & Subsistence General Duty,Redfern Travel Ltd,Large,975080,115.87,Travel & Subsistence General Duty,Administration
Land Registry,Land Registry,16/10/2013,Dir: HR,Travel & Subsistence General Duty,Redfern Travel Ltd,Large,975080,268.14,Travel & Subsistence General Duty,Administration
Land Registry,Land Registry,16/10/2013,Dir: Finance,Travel & Subsistence General Duty,Redfern Travel Ltd,Large,975080,91.68,Travel & Subsistence General Duty,Administration
Land Registry,Land Registry,16/10/2013,Dir: HR,Travel & Subsistence General Duty,Redfern Travel Ltd,Large,975080,77.17,Travel & Subsistence General Duty,Administration
Land Registry,Land Registry,16/10/2013,Dir: (Statutory) Commercial & Customer,Travel & Subsistence General Duty,Redfern Travel Ltd,Large,975080,224.68,Travel & Subsistence General Duty,Administration
Land Registry,Land Registry,16/10/2013,Dir: (Add Value) Commercial & Customer,Travel & Subsistence General Duty,Redfern Travel Ltd,Large,975080,39.75,Travel & Subsistence General Duty,Administration
Land Registry,Land Registry,16/10/2013,Dir: (Statutory) Commercial & Customer,Travel & Subsistence General Duty,Redfern Travel Ltd,Large,975080,82.44,Travel & Subsistence General Duty,Administration
Land Registry,Land Registry,18/10/2013,IS Service Delivery,DITI Managed Service,Steria Limited,Large,975590,688187.6,IT Managed Service,Administration
Land Registry,Land Registry,21/10/2013,Nottingham Office,Rates Payable,Nottingham City Council,Large,801358,968.6,Rates Payable,Administration
Land Registry,Land Registry,21/10/2013,Customer Services,Travel & Subsistence General Duty,Redfern Travel Ltd,Large,975834,117.65,Travel & Subsistence General Duty,Administration
Land Registry,Land Registry,21/10/2013,International Unit,Travel & Subsistence General Duty,Redfern Travel Ltd,Large,975834,122.15,Travel & Subsistence General Duty,Administration
Land Registry,Land Registry,21/10/2013,Marketing Services Team,Travel & Subsistence General Duty,Redfern Travel Ltd,Large,975834,0.4,Travel & Subsistence General Duty,Administration
Land Registry,Land Registry,21/10/2013,Product Development & Management,Travel & Subsistence General Duty,Redfern Travel Ltd,Large,975834,126.3,Travel & Subsistence General Duty,Administration
Land Registry,Land Registry,21/10/2013,Commercial & Customer Strategy & Performance,Travel & Subsistence General Duty,Redfern Travel Ltd,Large,975834,1.1,Travel & Subsistence General Duty,Administration
Land Registry,Land Registry,21/10/2013,Business Development,Travel & Subsistence General Duty,Redfern Travel Ltd,Large,975834,4.5,Travel & Subsistence General Duty,Administration
Land Registry,Land Registry,21/10/2013,Customer Services,Travel & Subsistence General Duty,Redfern Travel Ltd,Large,975834,-141.18,Travel & Subsistence General Duty,Administration
Land Registry,Land Registry,21/10/2013,International Unit,Travel & Subsistence General Duty,Redfern Travel Ltd,Large,975834,-146.58,Travel & Subsistence General Duty,Administration
Land Registry,Land Registry,21/10/2013,Marketing Services Team,Travel & Subsistence General Duty,Redfern Travel Ltd,Large,975834,-0.48,Travel & Subsistence General Duty,Administration
Land Registry,Land Registry,21/10/2013,Product Development & Management,Travel & Subsistence General Duty,Redfern Travel Ltd,Large,975834,-151.56,Travel & Subsistence General Duty,Administration
Land Registry,Land Registry,21/10/2013,Commercial & Customer Strategy & Performance,Travel & Subsistence General Duty,Redfern Travel Ltd,Large,975834,-1.32,Travel & Subsistence General Duty,Administration
Land Registry,Land Registry,21/10/2013,Business Development,Travel & Subsistence General Duty,Redfern Travel Ltd,Large,975834,-5.4,Travel & Subsistence General Duty,Administration
Land Registry,Land Registry,21/10/2013,HR,Travel & Subsistence General Duty,Redfern Travel Ltd,Large,975834,93.21,Travel & Subsistence General Duty,Administration
Land Registry,Land Registry,21/10/2013,Chief Executives Office,Travel & Subsistence General Duty,Redfern Travel Ltd,Large,975834,115.38,Travel & Subsistence General Duty,Administration
Land Registry,Land Registry,21/10/2013,Business Development,Travel & Subsistence General Duty,Redfern Travel Ltd,Large,975834,403.76,Travel & Subsistence General Duty,Administration
Land Registry,Land Registry,21/10/2013,HR,Travel & Subsistence General Duty,Redfern Travel Ltd,Large,975834,3.12,Travel & Subsistence General Duty,Administration
Land Registry,Land Registry,21/10/2013,Business Development,Travel & Subsistence General Duty,Redfern Travel Ltd,Large,975834,10.27,Travel & Subsistence General Duty,Administration
Land Registry,Land Registry,21/10/2013,Central Operations Group,Travel & Subsistence General Duty,Redfern Travel Ltd,Large,975834,1.56,Travel & Subsistence General Duty,Administration
Land Registry,Land Registry,21/10/2013,IS Service Delivery,Travel & Subsistence General Duty,Redfern Travel Ltd,Large,975834,219.51,Travel & Subsistence General Duty,Administration
Land Registry,Land Registry,21/10/2013,Business Development,Travel & Subsistence General Duty,Redfern Travel Ltd,Large,975834,60.46,Travel & Subsistence General Duty,Administration
Land Registry,Land Registry,21/10/2013,Director of Information Systems,Travel & Subsistence General Duty,Redfern Travel Ltd,Large,975834,436.04,Travel & Subsistence General Duty,Administration
Land Registry,Land Registry,21/10/2013,Central Operations Group,Travel & Subsistence General Duty,Redfern Travel Ltd,Large,975834,1.56,Travel & Subsistence General Duty,Administration
Land Registry,Land Registry,21/10/2013,International Unit,Travel & Subsistence General Duty,Redfern Travel Ltd,Large,975834,72.99,Travel & Subsistence General Duty,Administration
Land Registry,Land Registry,21/10/2013,Business Continuity,Travel & Subsistence General Duty,Redfern Travel Ltd,Large,975834,80.28,Travel & Subsistence General Duty,Administration
Land Registry,Land Registry,21/10/2013,Central Operations Group,Travel & Subsistence General Duty,Redfern Travel Ltd,Large,975834,68.73,Travel & Subsistence General Duty,Administration
Land Registry,Land Registry,21/10/2013,Property Asset Management Group,Travel & Subsistence General Duty,Redfern Travel Ltd,Large,975834,38.49,Travel & Subsistence General Duty,Administration
Land Registry,Land Registry,21/10/2013,Director of Legal Services,Travel & Subsistence General Duty,Redfern Travel Ltd,Large,975834,180.83,Travel & Subsistence General Duty,Administration
Land Registry,Land Registry,21/10/2013,Corporate Legal Services,Travel & Subsistence General Duty,Redfern Travel Ltd,Large,975834,37.73,Travel & Subsistence General Duty,Administration
Land Registry,Land Registry,21/10/2013,HR,Travel & Subsistence General Duty,Redfern Travel Ltd,Large,975834,73.24,Travel & Subsistence General Duty,Administration
Land Registry,Land Registry,21/10/2013,Central Facilities Management Team,Travel & Subsistence General Duty,Redfern Travel Ltd,Large,975834,70.98,Travel & Subsistence General Duty,Administration
Land Registry,Land Registry,21/10/2013,IS Service Delivery,Travel & Subsistence General Duty,Redfern Travel Ltd,Large,975834,80.25,Travel & Subsistence General Duty,Administration
Land Registry,Land Registry,21/10/2013,Learning and Development,Travel & Subsistence General Duty,Redfern Travel Ltd,Large,975834,70.98,Travel & Subsistence General Duty,Administration
Land Registry,Land Registry,21/10/2013,Internal Solutions Group,Travel & Subsistence General Duty,Redfern Travel Ltd,Large,975834,240.21,Travel & Subsistence General Duty,Administration
Land Registry,Land Registry,21/10/2013,Director of Legal Services,Travel & Subsistence General Duty,Redfern Travel Ltd,Large,975834,179.79,Travel & Subsistence General Duty,Administration
Land Registry,Land Registry,21/10/2013,Internal Solutions Group,Travel & Subsistence General Duty,Redfern Travel Ltd,Large,975834,239.54,Travel & Subsistence General Duty,Administration
Land Registry,Land Registry,21/10/2013,Projects and Programme Centre,Travel & Subsistence General Duty,Redfern Travel Ltd,Large,975834,160.06,Travel & Subsistence General Duty,Administration
Land Registry,Land Registry,21/10/2013,HR,Travel & Subsistence General Duty,Redfern Travel Ltd,Large,975834,125.44,Travel & Subsistence General Duty,Administration
Land Registry,Land Registry,21/10/2013,Guarantee & Litigation,Travel & Subsistence General Duty,Redfern Travel Ltd,Large,975834,42.68,Travel & Subsistence General Duty,Administration
Land Registry,Land Registry,21/10/2013,Internal Solutions Group,Travel & Subsistence General Duty,Redfern Travel Ltd,Large,975834,114.13,Travel & Subsistence General Duty,Administration
Land Registry,Land Registry,21/10/2013,HR,Travel & Subsistence General Duty,Redfern Travel Ltd,Large,975834,114.61,Travel & Subsistence General Duty,Administration
Land Registry,Land Registry,21/10/2013,Guarantee & Litigation,Travel & Subsistence General Duty,Redfern Travel Ltd,Large,975834,114.6,Travel & Subsistence General Duty,Administration
Land Registry,Land Registry,21/10/2013,Internal Solutions Group,Travel & Subsistence General Duty,Redfern Travel Ltd,Large,975834,359.05,Travel & Subsistence General Duty,Administration
Land Registry,Land Registry,21/10/2013,IS Service Delivery,Travel & Subsistence General Duty,Redfern Travel Ltd,Large,975834,80.25,Travel & Subsistence General Duty,Administration
Land Registry,Land Registry,21/10/2013,Internal Solutions Group,Travel & Subsistence General Duty,Redfern Travel Ltd,Large,975834,85.91,Travel & Subsistence General Duty,Administration
Land Registry,Land Registry,21/10/2013,Central Facilities Management Team,Travel & Subsistence General Duty,Redfern Travel Ltd,Large,975834,70.98,Travel & Subsistence General Duty,Administration
Land Registry,Land Registry,21/10/2013,IS Service Delivery,Travel & Subsistence General Duty,Redfern Travel Ltd,Large,975834,81.04,Travel & Subsistence General Duty,Administration
Land Registry,Land Registry,21/10/2013,Internal Solutions Group,Travel & Subsistence General Duty,Redfern Travel Ltd,Large,975834,119.98,Travel & Subsistence General Duty,Administration
Land Registry,Land Registry,21/10/2013,IS Service Delivery,Travel & Subsistence General Duty,Redfern Travel Ltd,Large,975834,81.04,Travel & Subsistence General Duty,Administration
Land Registry,Land Registry,21/10/2013,Central Operations Group,Travel & Subsistence General Duty,Redfern Travel Ltd,Large,975834,68.68,Travel & Subsistence General Duty,Administration
Land Registry,Land Registry,21/10/2013,Internal Solutions Group,Travel & Subsistence General Duty,Redfern Travel Ltd,Large,975834,86.09,Travel & Subsistence General Duty,Administration
Land Registry,Land Registry,21/10/2013,Central Operations Group,Travel & Subsistence General Duty,Redfern Travel Ltd,Large,975834,68.68,Travel & Subsistence General Duty,Administration
Land Registry,Land Registry,21/10/2013,Projects and Programme Centre,Travel & Subsistence General Duty,Redfern Travel Ltd,Large,975834,72.2,Travel & Subsistence General Duty,Administration
Land Registry,Land Registry,21/10/2013,Internal Solutions Group,Travel & Subsistence General Duty,Redfern Travel Ltd,Large,975834,110.71,Travel & Subsistence General Duty,Administration
Land Registry,Land Registry,21/10/2013,Projects and Programme Centre,Travel & Subsistence General Duty,Redfern Travel Ltd,Large,975834,72.2,Travel & Subsistence General Duty,Administration
Land Registry,Land Registry,21/10/2013,Guarantee & Litigation,Travel & Subsistence General Duty,Redfern Travel Ltd,Large,975834,80.03,Travel & Subsistence General Duty,Administration
Land Registry,Land Registry,21/10/2013,Capability,Travel & Subsistence General Duty,Redfern Travel Ltd,Large,975834,100.11,Travel & Subsistence General Duty,Administration
Land Registry,Land Registry,21/10/2013,Property Asset Management Group,Travel & Subsistence General Duty,Redfern Travel Ltd,Large,975834,76.23,Travel & Subsistence General Duty,Administration
Land Registry,Land Registry,21/10/2013,Director of Legal Services,Travel & Subsistence General Duty,Redfern Travel Ltd,Large,975834,388.28,Travel & Subsistence General Duty,Administration
Land Registry,Land Registry,21/10/2013,Projects and Programme Centre,Travel & Subsistence General Duty,Redfern Travel Ltd,Large,975834,53.58,Travel & Subsistence General Duty,Administration
Land Registry,Land Registry,21/10/2013,Property Asset Management Group,Travel & Subsistence General Duty,Redfern Travel Ltd,Large,975834,154.02,Travel & Subsistence General Duty,Administration
Land Registry,Land Registry,21/10/2013,HR,Travel & Subsistence General Duty,Redfern Travel Ltd,Large,975834,143.18,Travel & Subsistence General Duty,Administration
Land Registry,Land Registry,21/10/2013,Central Facilities Management Team,Travel & Subsistence General Duty,Redfern Travel Ltd,Large,975834,75.85,Travel & Subsistence General Duty,Administration
Land Registry,Land Registry,21/10/2013,HR,Travel & Subsistence General Duty,Redfern Travel Ltd,Large,975834,71.98,Travel & Subsistence General Duty,Administration
Land Registry,Land Registry,21/10/2013,Property Asset Management Group,Travel & Subsistence General Duty,Redfern Travel Ltd,Large,975834,122.28,Travel & Subsistence General Duty,Administration
Land Registry,Land Registry,21/10/2013,HR,Travel & Subsistence General Duty,Redfern Travel Ltd,Large,975834,173.81,Travel & Subsistence General Duty,Administration
Land Registry,Land Registry,21/10/2013,Product Development & Management,Travel & Subsistence General Duty,Redfern Travel Ltd,Large,975834,153.16,Travel & Subsistence General Duty,Administration
Land Registry,Land Registry,21/10/2013,Central Operations Group,Travel & Subsistence General Duty,Redfern Travel Ltd,Large,975834,89.08,Travel & Subsistence General Duty,Administration
Land Registry,Land Registry,21/10/2013,HR,Travel & Subsistence General Duty,Redfern Travel Ltd,Large,975834,173.81,Travel & Subsistence General Duty,Administration
Land Registry,Land Registry,21/10/2013,Central Facilities Management Team,Travel & Subsistence General Duty,Redfern Travel Ltd,Large,975834,75.97,Travel & Subsistence General Duty,Administration
Land Registry,Land Registry,21/10/2013,Corp Procurement,Travel & Subsistence General Duty,Redfern Travel Ltd,Large,975834,77.01,Travel & Subsistence General Duty,Administration
Land Registry,Land Registry,21/10/2013,HR,Travel & Subsistence General Duty,Redfern Travel Ltd,Large,975834,71.2,Travel & Subsistence General Duty,Administration
Land Registry,Land Registry,21/10/2013,Central Facilities Management Team,Travel & Subsistence General Duty,Redfern Travel Ltd,Large,975834,76.23,Travel & Subsistence General Duty,Administration
Land Registry,Land Registry,21/10/2013,IS Service Delivery,Travel & Subsistence General Duty,Redfern Travel Ltd,Large,975834,127.3,Travel & Subsistence General Duty,Administration
Land Registry,Land Registry,21/10/2013,Property Asset Management Group,Travel & Subsistence General Duty,Redfern Travel Ltd,Large,975834,75.97,Travel & Subsistence General Duty,Administration
Land Registry,Land Registry,21/10/2013,Central Facilities Management Team,Travel & Subsistence General Duty,Redfern Travel Ltd,Large,975834,75.85,Travel & Subsistence General Duty,Administration
Land Registry,Land Registry,21/10/2013,Croydon Office,Travel & Subsistence General Duty,Redfern Travel Ltd,Large,975834,215.84,Travel & Subsistence General Duty,Administration
Land Registry,Land Registry,21/10/2013,Central Facilities Management Team,Travel & Subsistence General Duty,Redfern Travel Ltd,Large,975834,154.02,Travel & Subsistence General Duty,Administration
Land Registry,Land Registry,21/10/2013,Business Development,Travel & Subsistence General Duty,Redfern Travel Ltd,Large,975834,39.37,Travel & Subsistence General Duty,Administration
Land Registry,Land Registry,21/10/2013,Central Facilities Management Team,Travel & Subsistence General Duty,Redfern Travel Ltd,Large,975834,76.23,Travel & Subsistence General Duty,Administration
Land Registry,Land Registry,21/10/2013,Property Asset Management Group,Travel & Subsistence General Duty,Redfern Travel Ltd,Large,975834,153.24,Travel & Subsistence General Duty,Administration
Land Registry,Land Registry,21/10/2013,HR,Travel & Subsistence General Duty,Redfern Travel Ltd,Large,975834,73.99,Travel & Subsistence General Duty,Administration
Land Registry,Land Registry,21/10/2013,Technical Assurance Group,Travel & Subsistence General Duty,Redfern Travel Ltd,Large,975834,77.01,Travel & Subsistence General Duty,Administration
Land Registry,Land Registry,21/10/2013,Central Facilities Management Team,Travel & Subsistence General Duty,Redfern Travel Ltd,Large,975834,75.85,Travel & Subsistence General Duty,Administration
Land Registry,Land Registry,21/10/2013,International Unit,Travel & Subsistence General Duty,Redfern Travel Ltd,Large,975834,168.08,Travel & Subsistence General Duty,Administration
Land Registry,Land Registry,21/10/2013,Business Development,Travel & Subsistence General Duty,Redfern Travel Ltd,Large,975834,35.82,Travel & Subsistence General Duty,Administration
Land Registry,Land Registry,21/10/2013,Product Development & Management,Travel & Subsistence General Duty,Redfern Travel Ltd,Large,975834,90.49,Travel & Subsistence General Duty,Administration
Land Registry,Land Registry,21/10/2013,Business Development,Travel & Subsistence General Duty,Redfern Travel Ltd,Large,975834,84.46,Travel & Subsistence General Duty,Administration
Land Registry,Land Registry,21/10/2013,HR,Travel & Subsistence General Duty,Redfern Travel Ltd,Large,975834,201.95,Travel & Subsistence General Duty,Administration
Land Registry,Land Registry,21/10/2013,International Unit,Travel & Subsistence General Duty,Redfern Travel Ltd,Large,975834,3.12,Travel & Subsistence General Duty,Administration
Land Registry,Land Registry,21/10/2013,Director of Information Systems,Travel & Subsistence General Duty,Redfern Travel Ltd,Large,975834,181.41,Travel & Subsistence General Duty,Administration
Land Registry,Land Registry,21/10/2013,Projects and Programme Centre,Travel & Subsistence General Duty,Redfern Travel Ltd,Large,975834,75.58,Travel & Subsistence General Duty,Administration
Land Registry,Land Registry,21/10/2013,Customer Services,Travel & Subsistence General Duty,Redfern Travel Ltd,Large,975834,77.33,Travel & Subsistence General Duty,Administration
Land Registry,Land Registry,21/10/2013,Central Operations Group,Travel & Subsistence General Duty,Redfern Travel Ltd,Large,975834,222.72,Travel & Subsistence General Duty,Administration
Land Registry,Land Registry,21/10/2013,Commercial Director,Travel & Subsistence General Duty,Redfern Travel Ltd,Large,975834,200.5,Travel & Subsistence General Duty,Administration
Land Registry,Land Registry,21/10/2013,Internal Solutions Group,Travel & Subsistence General Duty,Redfern Travel Ltd,Large,975834,121.72,Travel & Subsistence General Duty,Administration
Land Registry,Land Registry,21/10/2013,Property Asset Management Group,Travel & Subsistence General Duty,Redfern Travel Ltd,Large,975834,197.98,Travel & Subsistence General Duty,Administration
Land Registry,Land Registry,21/10/2013,Product Development & Management,Travel & Subsistence General Duty,Redfern Travel Ltd,Large,975834,95.03,Travel & Subsistence General Duty,Administration
Land Registry,Land Registry,21/10/2013,Property Asset Management Group,Travel & Subsistence General Duty,Redfern Travel Ltd,Large,975834,143.4,Travel & Subsistence General Duty,Administration
Land Registry,Land Registry,21/10/2013,Product Development & Management,Travel & Subsistence General Duty,Redfern Travel Ltd,Large,975834,149.75,Travel & Subsistence General Duty,Administration
Land Registry,Land Registry,21/10/2013,Commercial Director,Travel & Subsistence General Duty,Redfern Travel Ltd,Large,975834,-91.57,Travel & Subsistence General Duty,Administration
Land Registry,Land Registry,21/10/2013,Property Asset Management Group,Travel & Subsistence General Duty,Redfern Travel Ltd,Large,975834,-0.53,Travel & Subsistence General Duty,Administration
Land Registry,Land Registry,21/10/2013,Research & Data Mining,Travel & Subsistence General Duty,Redfern Travel Ltd,Large,975834,-13.51,Travel & Subsistence General Duty,Administration
Land Registry,Land Registry,21/10/2013,HR,Travel & Subsistence General Duty,Redfern Travel Ltd,Large,975834,-32.53,Travel & Subsistence General Duty,Administration
Land Registry,Land Registry,21/10/2013,Internal Solutions Group,Travel & Subsistence General Duty,Redfern Travel Ltd,Large,975834,-141.82,Travel & Subsistence General Duty,Administration
Land Registry,Land Registry,21/10/2013,Property Asset Management Group,Travel & Subsistence General Duty,Redfern Travel Ltd,Large,975834,-80.84,Travel & Subsistence General Duty,Administration
Land Registry,Land Registry,21/10/2013,Central Facilities Management Team,Travel & Subsistence General Duty,Redfern Travel Ltd,Large,975834,-67.66,Travel & Subsistence General Duty,Administration
Land Registry,Land Registry,21/10/2013,Dir: (Statutory) Commercial & Customer,Travel & Subsistence General Duty,Redfern Travel Ltd,Large,975834,52.05,Travel & Subsistence General Duty,Administration
Land Registry,Land Registry,21/10/2013,Dir: (Statutory) Commercial & Customer,Travel & Subsistence General Duty,Redfern Travel Ltd,Large,975834,195.04,Travel & Subsistence General Duty,Administration
Land Registry,Land Registry,21/10/2013,Dir: (Statutory) Commercial & Customer,Travel & Subsistence General Duty,Redfern Travel Ltd,Large,975834,-309,Travel & Subsistence General Duty,Administration
Land Registry,Land Registry,21/10/2013,Dir: HR,Travel & Subsistence General Duty,Redfern Travel Ltd,Large,975834,68.96,Travel & Subsistence General Duty,Administration
Land Registry,Land Registry,21/10/2013,Dir: HR,Travel & Subsistence General Duty,Redfern Travel Ltd,Large,975834,78.22,Travel & Subsistence General Duty,Administration
Land Registry,Land Registry,21/10/2013,Dir: (Statutory) Commercial & Customer,Travel & Subsistence General Duty,Redfern Travel Ltd,Large,975834,70.98,Travel & Subsistence General Duty,Administration
Land Registry,Land Registry,21/10/2013,Dir: HR,Travel & Subsistence General Duty,Redfern Travel Ltd,Large,975834,232.7,Travel & Subsistence General Duty,Administration
Land Registry,Land Registry,21/10/2013,Dir: Legal Services,Travel & Subsistence General Duty,Redfern Travel Ltd,Large,975834,80.84,Travel & Subsistence General Duty,Administration
Land Registry,Land Registry,21/10/2013,Dir: HR,Travel & Subsistence General Duty,Redfern Travel Ltd,Large,975834,183.2,Travel & Subsistence General Duty,Administration
Land Registry,Land Registry,21/10/2013,Dir: Legal Services,Travel & Subsistence General Duty,Redfern Travel Ltd,Large,975834,70.98,Travel & Subsistence General Duty,Administration
Land Registry,Land Registry,21/10/2013,Dir: (Statutory) Commercial & Customer,Travel & Subsistence General Duty,Redfern Travel Ltd,Large,975834,154.61,Travel & Subsistence General Duty,Administration
Land Registry,Land Registry,21/10/2013,Dir: Legal Services,Travel & Subsistence General Duty,Redfern Travel Ltd,Large,975834,140.39,Travel & Subsistence General Duty,Administration
Land Registry,Land Registry,21/10/2013,Dir: (Statutory) Commercial & Customer,Travel & Subsistence General Duty,Redfern Travel Ltd,Large,975834,359.24,Travel & Subsistence General Duty,Administration
Land Registry,Land Registry,21/10/2013,Dir: Legal Services,Travel & Subsistence General Duty,Redfern Travel Ltd,Large,975834,87.19,Travel & Subsistence General Duty,Administration
Land Registry,Land Registry,21/10/2013,Dir: HR,Travel & Subsistence General Duty,Redfern Travel Ltd,Large,975834,180.5,Travel & Subsistence General Duty,Administration
Land Registry,Land Registry,21/10/2013,HR,Travel & Subsistence General Duty,Redfern Travel Ltd,Large,975834,84.36,Travel & Subsistence General Duty,Administration
Land Registry,Land Registry,21/10/2013,Capability,Travel & Subsistence General Duty,Redfern Travel Ltd,Large,975834,165.82,Travel & Subsistence General Duty,Administration
Land Registry,Land Registry,21/10/2013,Weymouth Office,Travel & Subsistence General Duty,Redfern Travel Ltd,Large,975834,447.21,Travel & Subsistence General Duty,Administration
Land Registry,Land Registry,21/10/2013,Central Operations Group,Travel & Subsistence General Duty,Redfern Travel Ltd,Large,975834,1.56,Travel & Subsistence General Duty,Administration
Land Registry,Land Registry,21/10/2013,Business Development,Travel & Subsistence General Duty,Redfern Travel Ltd,Large,975834,37.78,Travel & Subsistence General Duty,Administration
Land Registry,Land Registry,21/10/2013,Governance & Policy,Travel & Subsistence General Duty,Redfern Travel Ltd,Large,975834,133.15,Travel & Subsistence General Duty,Administration
Land Registry,Land Registry,21/10/2013,HR,Travel & Subsistence General Duty,Redfern Travel Ltd,Large,975834,112.93,Travel & Subsistence General Duty,Administration
Land Registry,Land Registry,21/10/2013,Commercial Director,Travel & Subsistence General Duty,Redfern Travel Ltd,Large,975834,110.36,Travel & Subsistence General Duty,Administration
Land Registry,Land Registry,21/10/2013,HR,Travel & Subsistence General Duty,Redfern Travel Ltd,Large,975834,67.42,Travel & Subsistence General Duty,Administration
Land Registry,Land Registry,21/10/2013,Wales Office,Travel & Subsistence General Duty,Redfern Travel Ltd,Large,975834,90.11,Travel & Subsistence General Duty,Administration
Land Registry,Land Registry,21/10/2013,Central Operations Group,Travel & Subsistence General Duty,Redfern Travel Ltd,Large,975834,111.67,Travel & Subsistence General Duty,Administration
Land Registry,Land Registry,21/10/2013,Internal Solutions Group,Travel & Subsistence General Duty,Redfern Travel Ltd,Large,975834,264.4,Travel & Subsistence General Duty,Administration
Land Registry,Land Registry,21/10/2013,Central Operations Group,Travel & Subsistence General Duty,Redfern Travel Ltd,Large,975834,94.11,Travel & Subsistence General Duty,Administration
Land Registry,Land Registry,21/10/2013,HR,Travel & Subsistence General Duty,Redfern Travel Ltd,Large,975834,173.51,Travel & Subsistence General Duty,Administration
Land Registry,Land Registry,21/10/2013,Commercial Director,Travel & Subsistence General Duty,Redfern Travel Ltd,Large,975834,200.5,Travel & Subsistence General Duty,Administration
Land Registry,Land Registry,21/10/2013,HR,Travel & Subsistence General Duty,Redfern Travel Ltd,Large,975834,159.5,Travel & Subsistence General Duty,Administration
Land Registry,Land Registry,21/10/2013,Guarantee & Litigation,Travel & Subsistence General Duty,Redfern Travel Ltd,Large,975834,71.98,Travel & Subsistence General Duty,Administration
Land Registry,Land Registry,21/10/2013,HR,Travel & Subsistence General Duty,Redfern Travel Ltd,Large,975834,72.71,Travel & Subsistence General Duty,Administration
Land Registry,Land Registry,21/10/2013,Fylde Office,Travel & Subsistence General Duty,Redfern Travel Ltd,Large,975834,140.39,Travel & Subsistence General Duty,Administration
Land Registry,Land Registry,21/10/2013,HR,Travel & Subsistence General Duty,Redfern Travel Ltd,Large,975834,162.9,Travel & Subsistence General Duty,Administration
Land Registry,Land Registry,21/10/2013,Projects and Programme Centre,Travel & Subsistence General Duty,Redfern Travel Ltd,Large,975834,72.99,Travel & Subsistence General Duty,Administration
Land Registry,Land Registry,21/10/2013,Central Facilities Management Team,Travel & Subsistence General Duty,Redfern Travel Ltd,Large,975834,323.42,Travel & Subsistence General Duty,Administration
Land Registry,Land Registry,21/10/2013,International Unit,Travel & Subsistence General Duty,Redfern Travel Ltd,Large,975834,30.99,Travel & Subsistence General Duty,Administration
Land Registry,Land Registry,21/10/2013,Director of Information Systems,Travel & Subsistence General Duty,Redfern Travel Ltd,Large,975834,11.47,Travel & Subsistence General Duty,Administration
Land Registry,Land Registry,21/10/2013,HR,Travel & Subsistence General Duty,Redfern Travel Ltd,Large,975834,94.11,Travel & Subsistence General Duty,Administration
Land Registry,Land Registry,21/10/2013,International Unit,Travel & Subsistence General Duty,Redfern Travel Ltd,Large,975834,1.56,Travel & Subsistence General Duty,Administration
Land Registry,Land Registry,21/10/2013,Business Development,Travel & Subsistence General Duty,Redfern Travel Ltd,Large,975834,67.57,Travel & Subsistence General Duty,Administration
Land Registry,Land Registry,21/10/2013,Employee & Management Support Manager,Travel & Subsistence General Duty,Redfern Travel Ltd,Large,975834,101.67,Travel & Subsistence General Duty,Administration
Land Registry,Land Registry,21/10/2013,Director of Information Systems,Travel & Subsistence General Duty,Redfern Travel Ltd,Large,975834,1.56,Travel & Subsistence General Duty,Administration
Land Registry,Land Registry,21/10/2013,HR,Travel & Subsistence General Duty,Redfern Travel Ltd,Large,975834,147.09,Travel & Subsistence General Duty,Administration
Land Registry,Land Registry,21/10/2013,Marketing Services Team,Travel & Subsistence General Duty,Redfern Travel Ltd,Large,975834,17.91,Travel & Subsistence General Duty,Administration
Land Registry,Land Registry,21/10/2013,Business Development,Travel & Subsistence General Duty,Redfern Travel Ltd,Large,975834,151.25,Travel & Subsistence General Duty,Administration
Land Registry,Land Registry,21/10/2013,Internal Solutions Group,Travel & Subsistence General Duty,Redfern Travel Ltd,Large,975834,85.91,Travel & Subsistence General Duty,Administration
Land Registry,Land Registry,21/10/2013,Finance Group,Travel & Subsistence General Duty,Redfern Travel Ltd,Large,975834,70.98,Travel & Subsistence General Duty,Administration
Land Registry,Land Registry,21/10/2013,Central Operations Group,Travel & Subsistence General Duty,Redfern Travel Ltd,Large,975834,1868.93,Travel & Subsistence General Duty,Administration
Land Registry,Land Registry,21/10/2013,HR,Travel & Subsistence General Duty,Redfern Travel Ltd,Large,975834,159.5,Travel & Subsistence General Duty,Administration
Land Registry,Land Registry,21/10/2013,Registration Legal Services Group,Travel & Subsistence General Duty,Redfern Travel Ltd,Large,975834,76.54,Travel & Subsistence General Duty,Administration
Land Registry,Land Registry,21/10/2013,Central Operations Group,Travel & Subsistence General Duty,Redfern Travel Ltd,Large,975834,1419.85,Travel & Subsistence General Duty,Administration
Land Registry,Land Registry,21/10/2013,International Unit,Travel & Subsistence General Duty,Redfern Travel Ltd,Large,975834,85.62,Travel & Subsistence General Duty,Administration
Land Registry,Land Registry,21/10/2013,Marketing Services Team,Travel & Subsistence General Duty,Redfern Travel Ltd,Large,975834,75.58,Travel & Subsistence General Duty,Administration
Land Registry,Land Registry,21/10/2013,Central Facilities Management Team,Travel & Subsistence General Duty,Redfern Travel Ltd,Large,975834,10.39,Travel & Subsistence General Duty,Administration
Land Registry,Land Registry,21/10/2013,Gloucester Office,Travel & Subsistence General Duty,Redfern Travel Ltd,Large,975834,33.61,Travel & Subsistence General Duty,Administration
Land Registry,Land Registry,21/10/2013,Croydon Office,Travel & Subsistence General Duty,Redfern Travel Ltd,Large,975834,17.91,Travel & Subsistence General Duty,Administration
Land Registry,Land Registry,21/10/2013,Internal Solutions Group,Travel & Subsistence General Duty,Redfern Travel Ltd,Large,975834,85.91,Travel & Subsistence General Duty,Administration
Land Registry,Land Registry,21/10/2013,Customer Services,Travel & Subsistence General Duty,Redfern Travel Ltd,Large,975834,140.39,Travel & Subsistence General Duty,Administration
Land Registry,Land Registry,21/10/2013,Wales Office,Travel & Subsistence General Duty,Redfern Travel Ltd,Large,975834,60.8,Travel & Subsistence General Duty,Administration
Land Registry,Land Registry,21/10/2013,HR,Travel & Subsistence General Duty,Redfern Travel Ltd,Large,975834,90.32,Travel & Subsistence General Duty,Administration
Land Registry,Land Registry,21/10/2013,Internal Solutions Group,Travel & Subsistence General Duty,Redfern Travel Ltd,Large,975834,240.21,Travel & Subsistence General Duty,Administration
Land Registry,Land Registry,21/10/2013,Corp Procurement,Travel & Subsistence General Duty,Redfern Travel Ltd,Large,975834,203.89,Travel & Subsistence General Duty,Administration
Land Registry,Land Registry,21/10/2013,Director of Legal Services,Travel & Subsistence General Duty,Redfern Travel Ltd,Large,975834,179.79,Travel & Subsistence General Duty,Administration
Land Registry,Land Registry,21/10/2013,IS Service Delivery,Travel & Subsistence General Duty,Redfern Travel Ltd,Large,975834,272.99,Travel & Subsistence General Duty,Administration
Land Registry,Land Registry,21/10/2013,Central Facilities Management Team,Travel & Subsistence General Duty,Redfern Travel Ltd,Large,975834,41.72,Travel & Subsistence General Duty,Administration
Land Registry,Land Registry,21/10/2013,Corporate Legal Services,Travel & Subsistence General Duty,Redfern Travel Ltd,Large,975834,53.52,Travel & Subsistence General Duty,Administration
Land Registry,Land Registry,21/10/2013,Peterborough Office,Travel & Subsistence General Duty,Redfern Travel Ltd,Large,975834,62.69,Travel & Subsistence General Duty,Administration
Land Registry,Land Registry,21/10/2013,Corporate Legal Services,Travel & Subsistence General Duty,Redfern Travel Ltd,Large,975834,84.36,Travel & Subsistence General Duty,Administration
